{"text_format":"1","workbook":"xlsx","n_sheets":8,"sheets":["Notes","Planets - Planètes","Terraformation","Difficulties - Difficultés","Language","MAP","Sources","Infos diverses & Notes"],"not_rendered":{"charts":0,"images":12,"macros":1,"external_links":0,"defined_names":46,"comments":0,"pivot_tables":0},"unopened":[],"bounds":{"document_bytes":16777216,"sheet_cells":100000,"rows_first":2000,"rows_last":500,"rows_between":2000,"halvings":0,"cell_chars":16384,"cell_head_chars":4096},"cells_cut":0,"cells_raw":0,"read":"whole","date_system":"1900"}

{"sheet":"Notes","index":0,"n_rows":39,"n_cols":3,"rows_kept":39,"cut":false,"hidden":false,"merged":[]}
["Endless Space 2",{"$f":"Language!A2","v":"Planets and Terraforming"}]
["V1.4.9 S5","V2.4","←Choose language"]
[null,null,"↖ Choisir la langue"]
[]
[]
["Français",null,"English"]
["Macros :\nElles ne sont pas obligatoires mais elles permettent de changer correctement de langue, de vérifier les cohérences entre les choix sur la page 'Terraformation' (par exemple: empêche de selectionner plus d'une spécialisation de planète).\n\nVous pouvez vérifier les macros avant de les activer avec Alt+F11.\nIl n'y a aucun mot de passe.",null,"Macros:\nThey are not mandatory but they allow to change correctly language, check the coherences between the choices on the page 'Terraforming' (for example: prevents selection of more than one planet specialization).\n\nYou can check the macros before activating them with Alt + F11.\nThere is no password."]
["\n\n\n"]
["Note",null,"Note"]
["Lors d'un jeu, je me suis demandé si je pouvez améliorer mon super système industriel composé de planètes de type chaude (laves et déserts) en le terraformant.\nJ'ai donc sortie ma feuille de papier et commencé à compter les points. Finalement tout ça s'est retrouvé sur une feuille Excel.",null,"During a game, I wondered if I can improve my super industrial system composed of hot-type planets (lavas and deserts) by terraforming it.\nSo I took out my sheet of paper and started counting the points. Finally all this ended up on an Excel sheet."]
["\n\n",null,"\n\n"]
["Bonus population : symbole",null,"Population bonus : symbol"]
["Ils concernent tous les bonus qui vont appliqués des effets sur la population de la planète.\n\n",null,"They concern all the bonuses that will apply effects on the population of the planet."]
["Utilisation de la feuille terraformation",null,"Using the terraformation sheet"]
["Pour réussir à calculer la \"bonne production NIBSI\" d'une planète, on peut suivre cet ordre :",null,"To succeed in calculating the \"good FIDSI production\" of a planet, we can follow this order:"]
["1. Choisir le type de planète et sa taille.\n",null,"1. Choose the type of planet and its size.\n"]
["2. Sélectionner dans paramètres le statut du Système ou Empire :\n  - si l'approbation est 'Extatique' ou 'Heureux'\n  - si le gouvernement est une république\n  - si la faction est Cravers, cocher la case 'Esclavagisme' \n  - si la planète est totalement épuisée (-50% NIBSI sur toutes les populations)\n  - si la ou les lunes sont explorées\n",null,"2. Select in parameters the status of the System or Empire:\n  - if the approval is 'Ecstatic' or 'Happy'\n  - if the government is a Republic\n  - if the faction is Cravers, check the box 'Slavery'\n  - if the planet is totally depleted (-50% NIBSI on all populations)\n  - if the moons are explored\n"]
["3. Sélectionner les anomalies, curiosités et gisements présents sur la planètes.\nCocher les anomalies néfastes ou complexes qui ont été réduites.\n",null,"3. Select the anomalies, curiosities and deposits present on the planets.\nCheck for detrimental or mixed anomalies that have been reduced.\n"]
["4. Sélectionner toutes les améliorations d'empires qui contiennent le symbole population.\nIl y a deux sections pour les améliorations d'empires :\n- Les améliorations \"classiques\", communes à toutes les factions\n- Les améliorations uniques (une seule construction par empire ou galaxie) ou spécifiques à une faction.\nVoir la section \"Améliorations\" plus bas.\nParmi les améliorations, il y a les développements de système (niveau 1/2/3) qui peuvent ajouter des bonus sur la population. Il faudra les ajouter à la section \"Développement de systèmes\".\n",null,"4. Select all empires enhancements that contain the population symbol.\nThere are two sections for Empires Improvements:\n- The \"classic\" improvements, common to all factions\n- Unique enhancements (once per empire or galaxy build) or faction specific.\nSee the \"Improvements\" section below.\nAmong the improvements, there are System developments (level 1/2/3) that can add bonuses on the population). They will need to be added to the \"System Development\" section.\n"]
["5. Sélectionner la spécialisation de la planète s'il y en a une (hors spécialisation extraction de ressources).\n",null,"5. Select the specialization of the planet if there is one (except extraction of resources).\n"]
["6. Activer les bonus sur les sénateurs et les lois.\n.",null,"6. Enable bonuses on Senators and laws.\n"]
["7. Les bonus du héros sur la population (s'il y a un héros affecté au système) : elles sont résumées dans la colonne de gauche dans l'écran de compétences du héros (toujours avec l'icône population).\nNe pas oublier les compétences de départ des héros !\n",null,"7. The hero bonuses on the population (if there is a hero assigned to the system): they are summarized in the left column in the hero's skill screen (always with the population icon).\nDo not forget the starting skills of the heroes!\n"]
["8. Saisir les populations présentes sur la planètes.\nIl faudra cocher la population autotochne (votre faction de départ) pour que les calculs s'effectuent correctement sur les bonus concernées.\nVous pouvez aussi cocher si cette population est favorisée.\nCas spécial : Les Horatios\nDans une partie avec la faction Horatio, il faudra aussi cocher les populations assimilées génétiquement.\n",null,"8. To grasp the populations present on the planets.\nIt will be necessary to check the major population (your starting faction) so that the calculations are carried out correctly on the bonuses concerned.\nYou can also check if this population is favored.\nSpecial case: The Horatios\nIn a game with the Horatio faction, it will also be necessary to check the populations assimilated genetically.\n"]
["9. Trouver les traits d'Empire.\nElles sont énumérées dans l'écran \"Résume de l'Empire\" (F1).\nCertains traits d'Empire sont acquis lors de l'assimilation d'une population mineure (ou majeure ?).\n",null,"9. Find the features of Empire.\nThey are listed in the \"Empire Summary\" screen (F1).\nSome traits of Empire are acquired when assimilating a minor population (or major?).\n"]
["Viens la partie la plus compliquée :",null,"Come the most complicated part:"]
["10. Trouver les améliorations d'Empire.\nIl n'y a aucune liste et il faudra les rechercher dans l'écran \"Technologie\" (F4). Le plus simple est de taper 'amélioration d'empir' dans la zone de recherche.\nOn pourra trouver par exemple \"Superstructures flottantes\".\nIl faudra aussi rechercher dans l'écran \"Quêtes et événements\" (F7), toutes les quêtes réussies : certaines quêtes peuvent vous donner une améliorations d'empire comme \"Académie de l'Empire\".\n",null,"10. Find Empire's improvements.\nThere is no list and it will be necessary to look for them in the \"Technology\" Screen (F4). The simplest is to type 'empire improvement' in the search box.We can find for example \"Floating Superstructures\".\nIt will also be necessary to look in the \"Quests and Events\" screen (F7), all the successful quests: some quests can give you an empire improvements like \"Empire Academy\"."]
["Pour finir :",null,"To finish:"]
["9. La section 'Autres bonus'.\nLes étoiles à neutrons.\nCertains bonus ne sont pas présents dans cette liste. Notamment :\n  - Les bonus sur les planètes uniques.\n  - D'autres améliorations tout simplement non recensées…\nIls pourront être saisis dans cette section\n",null,"9. The section 'Other bonuses'.\nNeutron stars.\nSome bonuses are not present in this list. Especially :\n  - The bonuses on the unique planets.\n  - Other improvements simply not listed …\nThey can be entered in this section\n"]
[]
[]
["Non pris en charge :\nLes améliorations sur une population suite à une quète réussie. Par exemple :\n+2 Nourriture sur les Haroshems pendant 20 Tours",null,"Non supported :\nImprovements on a population following a successful quest. For example:\n+2 Food on the Haroshems during 20 Tours"]
["\n\n"]
["\n\n"]
["Les différentes améliorations systèmes :",null,"The different system improvements:"]
["Amélioration système \"classique\"\nGénéralement commune à toutes les factions.",null,"\"Classic\" System Improvement"]
["Amélioration système spécifique à une faction.\nIci pour les Sophos.\nNoter le coin argneté en haut à droite",null,"\"Faction Specific\" System improvement \"\nHere Sophos."]
["Amélioration système \"une par Empire\"",null,"System improvement \"Once per empire\""]
["Amélioration système \"une par Galaxy\"",null,"System improvement \"Once per galaxy\""]
["Améliorations systèmes provenant d'une quête.",null,"Quest system improvement"]

{"sheet":"Planets - Planètes","index":1,"n_rows":43,"n_cols":42,"rows_kept":43,"cut":false,"hidden":false,"merged":[[0,30,0,33],[0,20,0,24],[0,34,0,36],[0,1,0,5],[0,9,0,13],[0,15,0,18],[37,39,38,39],[37,38,38,38],[2,40,3,40],[2,38,3,38],[2,39,3,39],[10,40,11,40],[19,40,20,40],[23,38,24,38],[23,39,24,39],[23,40,24,40]]}
[{"$f":"Language!A45","v":"Endless Space 2 - Planets"},{"$f":"Language!A46","v":"FIDSI"},null,null,null,null,null,null,null,{"$f":"Language!A47","v":"Population by size"},null,null,null,null,"Bonus",{"$f":"Language!A48","v":"Various informations"},null,null,null,"Tier",{"$f":"Language!A49","v":"Planet size probability"},null,null,null,null,null,null,null,null,null,{"$f":"Language!A50","v":"Terraforming"},null,null,null,{"$f":"Language!A51","v":"Riftborn terraforming"}]
[{"$f":"Language!A53","v":"Planet type"},{"$f":"Language!A54","v":"Food"},{"$f":"Language!A55","v":"Industry"},{"$f":"Language!A56","v":"Dust"},{"$f":"Language!A57","v":"Science"},{"$f":"Language!A58","v":"Influence"},{"$f":"Language!A59","v":"Approuval"},{"$f":"Language!A61","v":"Total FIDSI"},{"$f":"Language!A61 & CHAR(10) & CHAR(13) & \" - \" & Language!A59","v":"Total FIDSI\n\r - Approuval"},{"$f":"Language!A63","v":"Tiny"},{"$f":"Language!A64","v":"Small"},{"$f":"Language!A65","v":"Medium"},{"$f":"Language!A66","v":"Large"},{"$f":"Language!A67","v":"Huge"},{"$f":"Language!A68&INDEX($AM$5:$AM$9,A38)","v":"Total X Population on Medium"},{"$f":"Language!A69","v":"Planet class"},{"$f":"Language!A71","v":"Temperature"},{"$f":"Language!A72","v":"Land"},{"$f":"Language!A73","v":"Tree (Guardians)"},{"$f":"Language!A74","v":"Tier"},{"$f":"Language!A75","v":"% tiny"},{"$f":"Language!A76","v":"% small"},{"$f":"Language!A77","v":"% medium"},{"$f":"Language!A78","v":"% large"},{"$f":"Language!A79","v":"% huge"},"Tiny","Small","Normal","Large","Huge",null,{"$f":"Language!A85","v":"Terraforming to"},null,"  ","  ",{"$f":"Language!A85","v":"Terraforming to"},{"$f":"Language!A86","v":"Cost = 2000"}]
[{"$f":"Language!$A5","v":"Terran"},8,3,4,4,null,null,{"$f":"SUM(B3:F3)","v":19},{"$f":"SUM(B3:G3)","v":19},{"$f":"AN$9+AO$13","v":6},{"$f":"AN$8+AO$13","v":7},{"$f":"AN$7+AO$13","v":8},{"$f":"AN$6+AO$13","v":9},{"$f":"AN$5+AO$13","v":10},{"$f":"I3*INDEX($J$3:$N$28,CELL(\"ligne\",O3)-2,6-$A$38)","v":152},"P1",{"$f":"Language!A$41","v":"Temperate"},{"$f":"Language!A$38","v":"Fertile"},"ü","T1",{"$f":"Z3/SUM($Z3:$AD3)","v":0.35714285714285715},{"$f":"AA3/SUM($Z3:$AD3)","v":0.21428571428571427},0.21428571428571427,0.14285714285714285,7.1428571428571425E-2,5,3,3,2,1,null,null,null,null,{"$f":"Language!A36","v":"Mediterran."},{"$f":"A13","v":"Monsoon"},{"$f":"A8","v":"Jungle"},null,{"$f":"Language!A112","v":"Non-Gas planet size"},{"$f":"Language!A114","v":"Default population"},{"$f":"Language!A121","v":"Depletion points"}]
[{"$f":"Language!$A6","v":"Forest"},8,4,4,3,null,null,{"$f":"SUM(B4:F4)","v":19},19,{"$f":"AN$9+AO$13","v":6},{"$f":"AN$8+AO$13","v":7},{"$f":"AN$7+AO$13","v":8},{"$f":"AN$6+AO$13","v":9},{"$f":"AN$5+AO$13","v":10},152,"P1",{"$f":"Language!A$41","v":"Temperate"},{"$f":"Language!A$38","v":"Fertile"},"ü","T1",{"$f":"Z4/SUM($Z4:$AD4)","v":0.35714285714285715},{"$f":"AA4/SUM($Z4:$AD4)","v":0.21428571428571427},{"$f":"AB4/SUM($Z4:$AD4)","v":0.21428571428571427},{"$f":"AC4/SUM($Z4:$AD4)","v":0.14285714285714285},{"$f":"AD4/SUM($Z4:$AD4)","v":7.1428571428571425E-2},5,3,3,2,1,null,null,null,null,{"$f":"A9","v":"Tundra"},{"$f":"A13","v":"Monsoon"},{"$f":"A7","v":"Boreal"}]
[{"$f":"Language!$A7","v":"Ocean"},8,2,4,6,null,null,20,20,{"$f":"AN$9+AO$13","v":6},{"$f":"AN$8+AO$13","v":7},{"$f":"AN$7+AO$13","v":8},{"$f":"AN$6+AO$13","v":9},{"$f":"AN$5+AO$13","v":10},160,"P1",{"$f":"Language!A$41","v":"Temperate"},{"$f":"Language!A$38","v":"Fertile"},null,"T1",0.35714285714285715,0.21428571428571427,0.21428571428571427,0.14285714285714285,7.1428571428571425E-2,5,3,3,2,1,null,null,null,null,{"$f":"A7","v":"Boreal"},null,null,null,{"$f":"Language!A$67","v":"Huge"},5,200]
[{"$f":"Language!$A8","v":"Atoll"},8,6,4,2,null,null,20,20,{"$f":"AN$9+AO$13","v":6},{"$f":"AN$8+AO$13","v":7},{"$f":"AN$7+AO$13","v":8},{"$f":"AN$6+AO$13","v":9},{"$f":"AN$5+AO$13","v":10},160,"P1",{"$f":"Language!A$41","v":"Temperate"},{"$f":"Language!A$38","v":"Fertile"},null,"T1",0.35714285714285715,0.21428571428571427,0.21428571428571427,0.14285714285714285,7.1428571428571425E-2,5,3,3,2,1,null,null,null,null,{"$f":"A8","v":"Jungle"},null,null,null,{"$f":"Language!A$66","v":"Large"},4,180]
[{"$f":"Language!$A9","v":"Boreal"},6,null,3,5,null,null,14,14,{"$f":"AN$9+AO$14","v":5},{"$f":"AN$8+AO$14","v":6},{"$f":"AN$7+AO$14","v":7},{"$f":"AN$6+AO$14","v":8},{"$f":"AN$5+AO$14","v":9},98,"P2",{"$f":"Language!A$42","v":"Cold"},{"$f":"Language!A$38","v":"Fertile"},"ü","T1",0.35714285714285715,0.21428571428571427,0.21428571428571427,0.14285714285714285,7.1428571428571425E-2,5,3,3,2,1,{"$f":"A5","v":"Ocean"},"- 2000",{"$f":"A4","v":"Forest"},"- 2000",{"$f":"A14","v":"Snow"},{"$f":"A9","v":"Tundra"},null,null,{"$f":"Language!A$65","v":"Medium"},3,150]
[{"$f":"Language!$A10","v":"Jungle"},6,5,3,null,null,null,14,14,5,6,7,8,9,98,"P2",{"$f":"Language!A$43","v":"Hot"},{"$f":"Language!A$38","v":"Fertile"},"ü","T1",0.35714285714285715,0.21428571428571427,0.21428571428571427,0.14285714285714285,7.1428571428571425E-2,5,3,3,2,1,{"$f":"A3","v":"Terran"},"- 2000",{"$f":"A6","v":"Atoll"},"- 2000",{"$f":"A15","v":"Arid"},{"$f":"Language!A36","v":"Mediterran."},null,null,{"$f":"Language!A$64","v":"Small"},2,120]
[{"$f":"Language!$A11","v":"Tundra"},6,null,3,6,null,-1,15,14,5,6,7,8,9,98,"P2",{"$f":"Language!A$42","v":"Cold"},null,null,"T1",0.21428571428571427,0.35714285714285715,0.21428571428571427,0.14285714285714285,7.1428571428571425E-2,3,5,3,2,1,{"$f":"A7","v":"Boreal"},"- 2000",{"$f":"A4","v":"Forest"},"- 2000",{"$f":"A11","v":"Steppes"},{"$f":"A14","v":"Snow"},null,null,{"$f":"Language!A$63","v":"Tiny"},1,100]
[{"$f":"Language!$A12","v":"Mediterranean"},6,6,3,null,null,-1,15,14,5,6,7,8,9,98,"P2",{"$f":"Language!A$43","v":"Hot"},null,null,"T1",0.21428571428571427,0.35714285714285715,0.21428571428571427,0.14285714285714285,7.1428571428571425E-2,3,5,3,2,1,{"$f":"A3","v":"Terran"},"- 2000",{"$f":"A8","v":"Jungle"},"- 2000",{"$f":"A12","v":"Savannah"},{"$f":"A15","v":"Arid"}]
[{"$f":"Language!$A13","v":"Steppes"},4,2,5,3,null,-1,14,13,5,6,7,8,9,91,"P2",{"$f":"Language!A$41","v":"Temperate"},null,null,"T2",0.21428571428571427,0.35714285714285715,0.21428571428571427,0.14285714285714285,7.1428571428571425E-2,3,5,3,2,1,{"$f":"A13","v":"Monsoon"},"- 2000",null,null,{"$f":"A16","v":"Arctic"},{"$f":"A20","v":"Toxic"},{"$f":"A14","v":"Snow"},null,{"$f":"Language!A115","v":"Planet class"},null,{"$f":"Language!A116","v":"Population bonus"}]
[{"$f":"Language!$A14","v":"Savannah"},4,3,5,2,null,-1,14,13,5,6,7,8,9,91,"P2",{"$f":"Language!A$41","v":"Temperate"},null,null,"T2",0.21428571428571427,0.35714285714285715,0.21428571428571427,0.14285714285714285,7.1428571428571425E-2,3,5,3,2,1,{"$f":"A13","v":"Monsoon"},"- 2000",null,null,{"$f":"A17","v":"Desert"},{"$f":"A20","v":"Toxic"},{"$f":"A15","v":"Arid"}]
[{"$f":"Language!$A15","v":"Monsoon"},6,2,4,2,null,-1,14,13,5,6,7,8,9,91,"P2",{"$f":"Language!A$41","v":"Temperate"},null,"ü","T1",0.35714285714285715,0.21428571428571427,0.21428571428571427,0.14285714285714285,7.1428571428571425E-2,5,3,3,2,1,{"$f":"A3","v":"Terran"},"- 2000",{"$f":"A4","v":"Forest"},"- 2000",{"$f":"A12","v":"Savannah"},{"$f":"A11","v":"Steppes"},null,null,{"$f":"Language!A104","v":"P1 : Outstanding"},null,5]
[{"$f":"Language!$A16","v":"Snow"},2,null,4,8,null,-3,14,11,{"$f":"AN$9+AO$15","v":3},{"$f":"AN$8+AO$15","v":4},{"$f":"AN$7+AO$15","v":5},{"$f":"AN$6+AO$15","v":6},{"$f":"AN$5+AO$15","v":7},55,"P3",{"$f":"Language!A$42","v":"Cold"},null,null,"T2",0.15384615384615385,0.23076923076923078,0.38461538461538464,0.15384615384615385,7.6923076923076927E-2,2,3,5,2,1,{"$f":"A11","v":"Steppes"},"- 2000",{"$f":"A7","v":"Boreal"},"- 2000",{"$f":"A22","v":"Barren"},{"$f":"A18","v":"Ice"},{"$f":"A16","v":"Arctic"},null,{"$f":"Language!A105","v":"P2 : Good"},null,4]
[{"$f":"Language!$A17","v":"Arid"},2,8,4,null,null,null,14,14,{"$f":"AN$9+AO$15","v":3},{"$f":"AN$8+AO$15","v":4},{"$f":"AN$7+AO$15","v":5},{"$f":"AN$6+AO$15","v":6},{"$f":"AN$5+AO$15","v":7},70,"P3",{"$f":"Language!A$43","v":"Hot"},null,null,"T2",0.15384615384615385,0.23076923076923078,0.38461538461538464,0.15384615384615385,7.6923076923076927E-2,2,3,5,2,1,{"$f":"A8","v":"Jungle"},"- 2000",{"$f":"A12","v":"Savannah"},"- 2000",{"$f":"A21","v":"Lava"},{"$f":"A19","v":"Ash"},{"$f":"A17","v":"Desert"},null,{"$f":"Language!A106","v":"P3 : Rough"},null,2]
[{"$f":"Language!$A18","v":"Arctic"},1,null,6,8,null,-3,15,12,{"$f":"AN$9+AO$15","v":3},{"$f":"AN$8+AO$15","v":4},{"$f":"AN$7+AO$15","v":5},{"$f":"AN$6+AO$15","v":6},{"$f":"AN$5+AO$15","v":7},60,"P3",{"$f":"Language!A$42","v":"Cold"},{"$f":"Language!A$39","v":"Sterile"},null,"T2",7.1428571428571425E-2,0.14285714285714285,0.21428571428571427,0.35714285714285715,0.21428571428571427,1,2,3,5,3,{"$f":"A14","v":"Snow"},"- 1000",{"$f":"A11","v":"Steppes"},"- 2000",null,null,null,null,{"$f":"Language!A107","v":"P4 : Hard"},null,1]
[{"$f":"Language!$A19","v":"Desert"},1,8,6,null,null,-3,15,12,{"$f":"AN$9+AO$15","v":3},{"$f":"AN$8+AO$15","v":4},{"$f":"AN$7+AO$15","v":5},{"$f":"AN$6+AO$15","v":6},{"$f":"AN$5+AO$15","v":7},60,"P3",{"$f":"Language!A$43","v":"Hot"},{"$f":"Language!A$39","v":"Sterile"},null,"T3",7.1428571428571425E-2,0.14285714285714285,0.21428571428571427,0.35714285714285715,0.21428571428571427,1,2,3,5,3,{"$f":"A15","v":"Arid"},"- 1000",{"$f":"A12","v":"Savannah"},"- 2000",null,null,null,null,{"$f":"Language!A108","v":"P5 : Extreme"},null,0]
[{"$f":"Language!$A20","v":"Ice"},null,null,4,12,null,-5,16,11,{"$f":"AN$9+AO$16","v":2},{"$f":"AN$8+AO$16","v":3},{"$f":"AN$7+AO$16","v":4},{"$f":"AN$6+AO$16","v":5},{"$f":"AN$5+AO$16","v":6},44,"P4",{"$f":"Language!A$42","v":"Cold"},{"$f":"Language!A$39","v":"Sterile"},null,"T3",7.1428571428571425E-2,0.14285714285714285,0.21428571428571427,0.35714285714285715,0.21428571428571427,1,2,3,5,3,{"$f":"A16","v":"Arctic"},"- 0560"]
[{"$f":"Language!$A21","v":"Ash"},null,12,4,null,null,-5,16,11,{"$f":"AN$9+AO$16","v":2},{"$f":"AN$8+AO$16","v":3},{"$f":"AN$7+AO$16","v":4},{"$f":"AN$6+AO$16","v":5},{"$f":"AN$5+AO$16","v":6},44,"P4",{"$f":"Language!A$43","v":"Hot"},{"$f":"Language!A$39","v":"Sterile"},null,"T2",7.1428571428571425E-2,0.14285714285714285,0.21428571428571427,0.35714285714285715,0.21428571428571427,1,2,3,5,3,{"$f":"A17","v":"Desert"},"- 0560",null,null,null,null,null,null,{"$f":"Language!A117","v":"All planets"},{"$f":"Language!A118","v":"Default"},"Max pop."]
[{"$f":"Language!$A22","v":"Toxic"},3,2,8,2,null,-8,15,7,{"$f":"AN$9+AO$17","v":1},{"$f":"AN$8+AO$17","v":2},{"$f":"AN$7+AO$17","v":3},{"$f":"AN$6+AO$17","v":4},{"$f":"AN$5+AO$17","v":5},21,"P5",{"$f":"Language!A$41","v":"Temperate"},{"$f":"Language!A$39","v":"Sterile"},"ü","T3",7.1428571428571425E-2,0.14285714285714285,0.21428571428571427,0.35714285714285715,0.21428571428571427,1,2,3,5,3,{"$f":"A12","v":"Savannah"},"- 2000",{"$f":"A11","v":"Steppes"},"- 2000",null,null,null,null,{"$f":"Language!A119","v":"Non-Gas"},null,14]
[{"$f":"Language!$A23","v":"Lava"},null,16,2,null,null,-8,18,10,{"$f":"AN$9+AO$17","v":1},{"$f":"AN$8+AO$17","v":2},{"$f":"AN$7+AO$17","v":3},{"$f":"AN$6+AO$17","v":4},{"$f":"AN$5+AO$17","v":5},30,"P5",{"$f":"Language!A$43","v":"Hot"},{"$f":"Language!A$39","v":"Sterile"},null,"T3",7.1428571428571425E-2,0.14285714285714285,0.21428571428571427,0.35714285714285715,0.21428571428571427,1,2,3,5,3,{"$f":"A17","v":"Desert"},"- 1120",null,null,null,null,null,null,{"$f":"Language!A120","v":"Gas"},1]
[{"$f":"Language!$A24","v":"Barren"},null,null,2,16,null,-8,18,10,{"$f":"AN$9+AO$17","v":1},{"$f":"AN$8+AO$17","v":2},{"$f":"AN$7+AO$17","v":3},{"$f":"AN$6+AO$17","v":4},{"$f":"AN$5+AO$17","v":5},30,"P5",{"$f":"Language!A$42","v":"Cold"},{"$f":"Language!A$39","v":"Sterile"},null,"T2",{"$f":"Z22/SUM($Z22:$AD22)","v":7.1428571428571425E-2},0.14285714285714285,0.21428571428571427,0.35714285714285715,0.21428571428571427,1,2,3,5,3,{"$f":"A16","v":"Arctic"},"- 1120"]
[{"$f":"Language!$A25","v":"GasFrozen"},null,null,null,26,null,-5,26,21,null,null,{"$f":"AN$28+AN$20","v":1},{"$f":"AN$27+AN$20","v":1},{"$f":"AN$26+AN$20","v":2},21,{"$f":"Language!A$100","v":"Gas"},{"$f":"Language!A$42","v":"Cold"},null,null,"T3",null,null,{"$f":"AB23/SUM($Z23:$AD23)","v":0.16666666666666666},{"$f":"AC23/SUM($Z23:$AD23)","v":0.33333333333333331},{"$f":"AD23/SUM($Z23:$AD23)","v":0.5},null,null,2,4,6]
[{"$f":"Language!$A26","v":"GasCold"},null,null,14,14,null,-5,28,23,null,null,1,1,2,23,{"$f":"Language!A$100","v":"Gas"},{"$f":"Language!A$42","v":"Cold"},null,null,"T3",null,null,0.16666666666666666,0.33333333333333331,0.5,null,null,2,4,6,null,null,null,null,null,null,null,null,{"$f":"Language!A113","v":"Gas planet size"},{"$f":"Language!A116","v":"Population bonus"},{"$f":"Language!A121","v":"Depletion points"}]
[{"$f":"Language!$A27","v":"GasTemperate"},null,null,26,null,null,-5,26,21,null,null,1,1,2,21,{"$f":"Language!A$100","v":"Gas"},{"$f":"Language!A$41","v":"Temperate"},null,null,"T3",null,null,0.16666666666666666,0.33333333333333331,0.5,null,null,2,4,6]
[{"$f":"Language!$A28","v":"GasWarm"},null,10,18,null,null,-5,28,23,null,null,1,1,2,23,{"$f":"Language!A$100","v":"Gas"},{"$f":"Language!A$41","v":"Temperate"},null,null,"T3",null,null,0.16666666666666666,0.33333333333333331,0.5,null,null,2,4,6,null,null,null,null,null,null,null,null,{"$f":"Language!A$67","v":"Huge"},2,200]
[{"$f":"Language!$A29","v":"GasHot"},null,14,null,14,null,-5,28,23,null,null,1,1,2,23,{"$f":"Language!A$100","v":"Gas"},{"$f":"Language!A$43","v":"Hot"},null,null,"T3",null,null,0.16666666666666666,0.33333333333333331,0.5,null,null,2,4,6,null,null,null,null,null,null,null,null,{"$f":"Language!A$66","v":"Large"},1,180]
[{"$f":"Language!$A30","v":"GasBurning"},null,26,null,null,null,-5,26,21,null,null,1,1,2,21,{"$f":"Language!A$100","v":"Gas"},{"$f":"Language!A$43","v":"Hot"},null,null,"T3",null,null,0.16666666666666666,0.33333333333333331,0.5,null,null,2,4,6,null,null,null,null,null,null,null,null,{"$f":"Language!A$65","v":"Medium"},1,150]
[{"$f":"Language!$A31","v":"Crescent Solo"},3,3,3,3,null,null,{"$f":"SUM(B29:F29)","v":12},{"$f":"SUM(B29:G29)","v":12},4,4,4,4,4,{"$f":"I29*J29","v":48},{"$f":"Language!$A$101","v":"Nexus"},{"$f":"Language!A$42","v":"Cold"},{"$f":"Language!A$39","v":"Sterile"},null,null,null,null,null,null,null,{"$f":"Language!$A$87","v":"Solo"},null,null,null,null,{"$f":"Language!A$88","v":"Duo"},"-  250"]
[{"$f":"Language!$A32","v":"Crescent Duo"},3,4,3,4,1,null,{"$f":"SUM(B30:F30)","v":15},{"$f":"SUM(B30:G30)","v":15},5,5,5,5,5,{"$f":"I30*J30","v":75},{"$f":"Language!$A$101","v":"Nexus"},{"$f":"Language!A$42","v":"Cold"},{"$f":"Language!A$39","v":"Sterile"},null,null,null,null,null,null,null,{"$f":"Language!$A$88","v":"Duo"},null,null,null,null,{"$f":"Language!A$89","v":"Trio"},"-  500",null,null,null,null,null,null,{"$f":"Language!A92","v":"Planet yield"},{"$f":"Language!A93","v":"Lev."},"Min.","Max."]
[{"$f":"Language!$A33","v":"Crescent Trio"},4,4,4,4,1,null,17,17,6,6,6,6,6,102,{"$f":"Language!$A$101","v":"Nexus"},{"$f":"Language!A$42","v":"Cold"},{"$f":"Language!A$39","v":"Sterile"},null,null,null,null,null,null,null,{"$f":"Language!$A$89","v":"Trio"},null,null,null,null,{"$f":"Language!A$90","v":"Hypertrio"},"-  750",null,null,null,null,null,null,{"$f":"Language!A94","v":"None"},0,"-ꚙ",0]
[{"$f":"Language!$A34","v":"Crescent Hypertrio"},4,5,4,5,1,null,19,19,7,7,7,7,7,133,{"$f":"Language!$A$101","v":"Nexus"},{"$f":"Language!A$42","v":"Cold"},{"$f":"Language!A$39","v":"Sterile"},null,null,null,null,null,null,null,{"$f":"Language!$A$90","v":"Hypertrio"},null,null,null,null,null,null,null,null,null,null,null,null,{"$f":"Language!A95","v":"Weak"},1,"> 0",3]
[null,null,null,null,null,null,null,null,null,null,null,null,null,null,null,null,null,null,null,null,null,null,null,null,null,null,null,null,null,null,null,null,null,null,null,null,null,null,{"$f":"Language!A96","v":"Low"},2,"> 3",6]
[null,null,null,null,null,null,null,null,null,null,null,null,null,null,null,null,null,null,null,null,null,null,null,null,null,null,null,null,null,null,null,null,null,null,null,null,null,null,{"$f":"Language!A97","v":"Medium"},3,"> 6",10]
[{"$f":"Language!A110","v":"From → To → Size"},{"$f":"IF(A36>=27,INDEX(A3:A32,$A$36,1) & \" → \" & INDEX(Z3:Z32,$A$37,1),INDEX(AM5:AM9,$A$38,1) & \" \" & INDEX(A3:A32,$A$36,1) & \" → \" & INDEX(A3:A32,$A$37,1))","v":"Medium Terran → Terran"},null,null,null,null,null,null,null,null,null,null,null,null,null,null,null,null,null,null,null,null,null,null,null,null,null,null,null,null,null,null,null,null,null,null,null,null,{"$f":"Language!A98","v":"High"},4,">10",14]
[1,{"$f":"INDEX(B3:B32,$A$36,1)","v":8},3,4,4,0,0,{"$f":"INDEX('Planets - Planètes'!$J$3:$N$32,'Planets - Planètes'!$A$36,6-'Planets - Planètes'!$A$38)","v":8},null,null,null,null,null,null,null,null,null,null,null,null,null,null,null,null,null,null,null,null,null,null,null,null,null,null,null,null,null,null,{"$f":"Language!A99","v":"Outstanding"},5,">14","ꚙ"]
[1,{"$f":"INDEX(B3:B32,$A$37,1)","v":8},3,4,4,0,0,{"$f":"INDEX('Planets - Planètes'!$J$3:$N$32,'Planets - Planètes'!$A$37,6-'Planets - Planètes'!$A$38)","v":8}]
[3,{"$f":"(INDEX(J3:N32,A37,6-A38)*B37)-(INDEX(J3:N32,A36,6-A38)*B36)","v":0},{"$f":"(INDEX(J3:N32,A37,6-A38)*C37)-(INDEX(J3:N32,A36,6-A38)*C36)","v":0},{"$f":"(INDEX(J3:N32,A37,6-A38)*D37)-(INDEX(J3:N32,A36,6-A38)*D36)","v":0},{"$f":"(INDEX(J3:N32,A37,6-A38)*E37)-(INDEX(J3:N32,A36,6-A38)*E36)","v":0},{"$f":"(INDEX(J3:N32,A37,6-A38)*F37)-(INDEX(J3:N32,A36,6-A38)*F36)","v":0},{"$f":"(INDEX(J3:N32,A37,6-A38)*G37)-(INDEX(J3:N32,A36,6-A38)*G36)","v":0},{"$f":"H37-H36","v":0},{"$f":"Language!A111","v":"←Difference x Population"},null,null,null,null,null,null,null,null,null,null,null,null,null,null,null,null,null,null,null,null,null,null,null,null,null,null,null,null,null,{"$f":"Language!A122","v":"Vodyani Ark level"},{"$f":"Language!A114","v":"Default population"}]
[]
[null,null,null,null,null,null,null,null,null,null,null,null,null,null,null,null,null,null,null,null,null,null,null,null,null,null,null,null,null,null,null,null,null,null,null,null,null,null,1,3]
[null,null,null,null,null,null,null,null,null,null,null,null,null,null,null,null,null,null,null,null,null,null,null,null,null,null,null,null,null,null,null,null,null,null,null,null,null,null,2,5]
[null,null,null,null,null,null,null,null,null,null,null,null,null,null,null,null,null,null,null,null,null,null,null,null,null,null,null,null,null,null,null,null,null,null,null,null,null,null,3,7]
[null,null,null,null,null,null,null,null,null,null,null,null,null,null,null,null,null,null,null,null,null,null,null,null,null,null,null,null,null,null,null,null,null,null,null,null,null,null,4,9]

{"sheet":"Terraformation","index":2,"n_rows":378,"n_cols":45,"rows_kept":378,"cut":false,"hidden":false,"merged":[[0,3,0,7],[15,3,15,8],[15,11,15,16],[14,3,14,8],[14,11,14,16]]}
[null,null,null,{"$f":"Language!A124","v":"Σ = FIDSI"}]
[null,null,{"$f":"Language!A156","v":"Terraformation\n\nPlanet: from → to"},{"$f":"Language!A54","v":"Food"},{"$f":"Language!A55","v":"Industry"},{"$f":"Language!A56","v":"Dust"},{"$f":"Language!A57","v":"Science"},{"$f":"Language!A58","v":"Influence"},{"$f":"Language!A59","v":"Approuval"},{"$f":"Language!A60","v":"Population"},{"$f":"Language!A$43","v":"Hot"},{"$f":"Language!A$42","v":"Cold"},{"$f":"Language!A$41","v":"Temperate"},{"$f":"Language!A$38","v":"Fertile"},{"$f":"Language!A$39","v":"Sterile"},{"$f":"Language!A$70","v":"Class"},null,null,null,null,null,null,{"$f":"Language!A185","v":"Links"},null,null,{"$f":"Language!A187","v":"Details\ncalculation"},{"$f":"Language!$A54","v":"Food"},{"$f":"Language!$A55","v":"Industry"},{"$f":"Language!$A56","v":"Dust"},{"$f":"Language!$A57","v":"Science"},{"$f":"Language!$A58","v":"Influence"},{"$f":"Language!$A59","v":"Approuval"},{"$f":"Language!$A60","v":"Population"},null,{"$f":"Language!$A54","v":"Food"},{"$f":"Language!$A55","v":"Industry"},{"$f":"Language!$A56","v":"Dust"},{"$f":"Language!$A57","v":"Science"},{"$f":"Language!$A58","v":"Influence"},{"$f":"Language!$A59","v":"Approuval"},{"$f":"Language!$A60","v":"Population"}]
[null,null,null,{"$f":"IF(AND(NOT(PopUmbral),$P$3=Language!$A$101),'Planets - Planètes'!B29,INDEX('Planets - Planètes'!B$3:B$32,'Planets - Planètes'!$A$36,1))","v":8},{"$f":"IF(AND(NOT(PopUmbral),$P$3=Language!$A$101),'Planets - Planètes'!C29,INDEX('Planets - Planètes'!C$3:C$32,'Planets - Planètes'!$A$36,1))","v":3},{"$f":"IF(AND(NOT(PopUmbral),$P$3=Language!$A$101),'Planets - Planètes'!D29,INDEX('Planets - Planètes'!D$3:D$32,'Planets - Planètes'!$A$36,1))","v":4},{"$f":"IF(AND(NOT(PopUmbral),$P$3=Language!$A$101),'Planets - Planètes'!E29,INDEX('Planets - Planètes'!E$3:E$32,'Planets - Planètes'!$A$36,1))","v":4},{"$f":"IF(AND(NOT(PopUmbral),$P$3=Language!$A$101),'Planets - Planètes'!F29,INDEX('Planets - Planètes'!F$3:F$32,'Planets - Planètes'!$A$36,1))","v":0},{"$f":"INDEX('Planets - Planètes'!G$3:G$32,'Planets - Planètes'!$A$36,1)","v":0},{"$f":"INDEX('Planets - Planètes'!$J$3:$N$32,'Planets - Planètes'!$A$36,6-'Planets - Planètes'!$A$38)","v":8},{"$f":"IF(INDEX('Planets - Planètes'!Q$3:Q$32,'Planets - Planètes'!$A$36,1)=Language!A43,1,0)","v":0},{"$f":"IF(INDEX('Planets - Planètes'!Q$3:Q$32,'Planets - Planètes'!$A$36,1)=Language!A42,1,0)","v":0},{"$f":"IF(INDEX('Planets - Planètes'!Q$3:Q$32,'Planets - Planètes'!$A$36,1)=Language!A41,1,0)","v":1},{"$f":"IF(INDEX('Planets - Planètes'!R$3:R$32,'Planets - Planètes'!$A$36,1)=Language!A$38,1,0)","v":1},{"$f":"IF(INDEX('Planets - Planètes'!R$3:R$32,'Planets - Planètes'!$A$36,1)=Language!A$39,1,0)","v":0},{"$f":"INDEX('Planets - Planètes'!P$3:P$32,'Planets - Planètes'!$A$36,1)","v":"P1"},null,null,null,null,null,null,null,null,"A","Base NIBSI + A + P",{"$f":"D$3","v":8},{"$f":"E$3","v":3},4,4,0,0,8,null,{"$f":"D$4","v":8},{"$f":"E$4","v":3},4,4,0,0,8,null,"A","Production de base NIBSI + Approbation sur planète par population  + Population max.","Raw FIDSI production + Approval on planet per population + Maximum Population "]
[false,null,null,{"$f":"IF(AND(NOT(PopUmbral),$P$4=Language!$A$101),'Planets - Planètes'!B29,INDEX('Planets - Planètes'!B$3:B$32,'Planets - Planètes'!$A$37,1))","v":8},{"$f":"IF(AND(NOT(PopUmbral),$P$4=Language!$A$101),'Planets - Planètes'!C29,INDEX('Planets - Planètes'!C$3:C$32,'Planets - Planètes'!$A$37,1))","v":3},{"$f":"IF(AND(NOT(PopUmbral),$P$4=Language!$A$101),'Planets - Planètes'!D29,INDEX('Planets - Planètes'!D$3:D$32,'Planets - Planètes'!$A$37,1))","v":4},{"$f":"IF(AND(NOT(PopUmbral),$P$4=Language!$A$101),'Planets - Planètes'!E29,INDEX('Planets - Planètes'!E$3:E$32,'Planets - Planètes'!$A$37,1))","v":4},{"$f":"IF(AND(NOT(PopUmbral),$P$4=Language!$A$101),'Planets - Planètes'!F29,INDEX('Planets - Planètes'!F$3:F$32,'Planets - Planètes'!$A$37,1))","v":0},{"$f":"INDEX('Planets - Planètes'!G$3:G$32,'Planets - Planètes'!$A$37,1)","v":0},{"$f":"INDEX('Planets - Planètes'!$J$3:$N$32,'Planets - Planètes'!$A$37,6-'Planets - Planètes'!$A$38)","v":8},{"$f":"IF(INDEX('Planets - Planètes'!Q$3:Q$32,'Planets - Planètes'!$A$37,1)=Language!A43,1,0)","v":0},{"$f":"IF(INDEX('Planets - Planètes'!Q$3:Q$32,'Planets - Planètes'!$A$37,1)=Language!A42,1,0)","v":0},{"$f":"IF(INDEX('Planets - Planètes'!Q$3:Q$32,'Planets - Planètes'!$A$37,1)=Language!A41,1,0)","v":1},{"$f":"IF(INDEX('Planets - Planètes'!R$3:R$32,'Planets - Planètes'!$A$37,1)=Language!A$38,1,0)","v":1},{"$f":"IF(INDEX('Planets - Planètes'!R$3:R$32,'Planets - Planètes'!$A$37,1)=Language!A$39,1,0)","v":0},{"$f":"INDEX('Planets - Planètes'!P$3:P$32,'Planets - Planètes'!$A$37,1)","v":"P1"},null,null,null,{"$f":"IF(A4,1,0)","v":0},{"$f":"Language!A178","v":"Explored moon(s)"},null,null,null,"B","Bonus améliorations",{"$f":"SUMIF($Z$19:$Z$286,\"=DUO\",D$19:D$286)+SUMIF($Z$19:$Z$286,\"=\",D$19:D$286)","v":0},0,0,0,0,0,{"$f":"SUM(J$19:J$286)","v":0},null,{"$f":"SUMIF($Z$19:$Z$286,\"=DUO\",L$19:L$286)+SUMIF($Z$19:$Z$286,\"=\",L$19:L$286)","v":0},0,0,0,0,0,{"$f":"SUM(R$19:R$286)","v":0},null,"B","Total des bonus des améliorations systèmes hors bonus Autotochnes par population","Total des bonus des améliorations systèmes hors bonus Autotochnes par population"]
[false,null,null,null,null,null,null,null,null,null,null,"Strat.","Luxe","Ano.","Red.","Escl.","OverPop","Neg.",null,{"$f":"IF(A5,1,0)","v":0},{"$f":"Language!A179","v":"Republic (laws bonus)"},null,null,null,"C","Somme A+B",{"$f":"AA3+AA4","v":8},{"$f":"AB3+AB4","v":3},4,4,0,0,{"$f":"SUM(AG3:AG4)","v":8},null,{"$f":"AI3+AI4","v":8},{"$f":"AJ3+AJ4","v":3},{"$f":"AK3+AK4","v":4},{"$f":"AL3+AL4","v":4},{"$f":"AM3+AM4","v":0},{"$f":"AN3+AN4","v":0},{"$f":"SUM(AO3:AO4)","v":8},null,"C","Somme = A+B                                         Production par population     (= L.9)","Sum = A+B                                                 Production per population     (= L.9)"]
[false,null,"Population",{"$f":"IF('Planets - Planètes'!$A$36<>'Planets - Planètes'!$A$37,'Planets - Planètes'!B35,\"Total des améliorations par population\")","v":"Total des améliorations par population"},null,null,null,null,null,null,null,{"$f":"SUM($B$135:$B$140)","v":0},{"$f":"SUM($B$142:$B$165)","v":0},{"$f":"SUM($B$176:$B$248)","v":0},{"$f":"SUMIF($K$179:$K$200,\"=\"&TRUE(),$B$179:$B$200)","v":0},{"$f":"IF($K$291,IF(AND($A$291>0,SUM($A$292:$A$336)>0),2,1),1)","v":1},{"$f":"J15>J16","v":false},{"$f":"SUMIF($K$190:$K$200,\"=\"&FALSE(),$B$190:$B$200)","v":0},null,{"$f":"IF(A6,1,0)","v":0},{"$f":"Language!A180","v":"Happy    / Loyal"},null,null,null,"D","Produit  C x <Pop>",{"$f":"AA5*$AG$6+$A$326*AA5","v":0},{"$f":"AB5*$AG$6+$A$326*AB5","v":0},{"$f":"AC5*$AG$6+$A$326*AC5","v":0},{"$f":"AD5*$AG$6+$A$326*AD5","v":0},{"$f":"AE5*$AG$6+$A$326*AE5","v":0},{"$f":"AF5*$AG$6","v":0},{"$f":" SUM($A$291:$A$336)","v":0},null,{"$f":"AI5*$AO$6+$T$326*AI5","v":0},{"$f":"AJ5*$AO$6+$T$326*AJ5","v":0},{"$f":"AK5*$AO$6+$T$326*AK5","v":0},{"$f":"AL5*$AO$6+$T$326*AL5","v":0},{"$f":"AM5*$AO$6+$T$326*AM5","v":0},{"$f":"AN5*$AO$6","v":0},{"$f":" SUM($T$291:$T$336)","v":0},null,"D","Produit = C x <Population>           Production sur la planète (avec 2 x  NIBSI pour OO)","Product = C x <Population>           Production on the planet (with x 2 FIDSI for US)"]
[false,null,{"$f":"6-'Planets - Planètes'!$A$38","v":3},{"$f":"IF('Planets - Planètes'!$A$36<>'Planets - Planètes'!$A$37,D$4-D$3,SUM(D$19:D$286))","v":0},{"$f":"IF('Planets - Planètes'!$A$36<>'Planets - Planètes'!$A$37,E$4-E$3,SUM(E$19:E$286))","v":0},{"$f":"IF('Planets - Planètes'!$A$36<>'Planets - Planètes'!$A$37,F$4-F$3,SUM(F$19:F$286))","v":0},{"$f":"IF('Planets - Planètes'!$A$36<>'Planets - Planètes'!$A$37,G$4-G$3,SUM(G$19:G$286))","v":0},{"$f":"IF('Planets - Planètes'!$A$36<>'Planets - Planètes'!$A$37,H$4-H$3,SUM(H$19:H$286))","v":0},{"$f":"IF('Planets - Planètes'!$A$36<>'Planets - Planètes'!$A$37,I$4-I$3,SUM(I$19:I$286))","v":0},{"$f":"IF('Planets - Planètes'!$A$36<>'Planets - Planètes'!$A$37,J$4-J$3,SUM(J$19:J$286))","v":0},null,{"$f":"IF(L$6>0,1,0)","v":0},{"$f":"IF(M$6>0,1,0)","v":0},{"$f":"IF(N$6>0,1,0)","v":0},{"$f":"IF(O$6>0,1,0)","v":0},{"$f":"IF($K$291,IF(AND($T$291>0,SUM($T$292:$T$336)>0),2,1),1)","v":1},{"$f":"R15>R16","v":false},{"$f":"IF(R$6>0,1,0)","v":0},null,{"$f":"IF(A7,1,0)","v":0},{"$f":"Language!A181","v":"Ecstatic / Devoted"},null,null,null,"E","Total D (-50% si épuis.)",{"$f":"AA$6/$T$8","v":0},{"$f":"AB$6/$T$8","v":0},{"$f":"AC$6/$T$8","v":0},{"$f":"AD$6/$T$8","v":0},{"$f":"AE$6/$T$8","v":0},{"$f":"AF$6","v":0},null,null,{"$f":"AI$6/$T$8","v":0},{"$f":"AJ$6/$T$8","v":0},{"$f":"AK$6/$T$8","v":0},{"$f":"AL$6/$T$8","v":0},{"$f":"AM$6/$T$8","v":0},{"$f":"AN$6","v":0},null,null,"E","Total = D /2                                              Si planète épuisée (Sauf Approbation)","Sum = D /2                                                If planet depleted (except Approval)"]
[false,null,null,null,null,null,{"$f":"IF($Q$6,Language!A166,\"\")","v":""},null,null,null,{"$f":"IF(SUMIF(U19:U286,Language!A175,B19:B286)>0,Language!A165,\"\")","v":""},null,null,null,{"$f":"IF($Q$7,Language!A166,\"\")","v":""},null,null,null,null,{"$f":"IF(A8,2,1)","v":1},{"$f":"Language!A182","v":"Planet depleted -50% FIDSI"},null,null,null,"F","Bonus Autotochnes",{"$f":"SUMIF($Z$19:$Z$286,\"=DUO\",D$19:D$286)+SUMIF($Z$19:$Z$286,\"=\"&TRUE(),D$19:D$286)","v":0},0,0,0,0,0,null,null,{"$f":"SUMIF($Z$19:$Z$286,\"=DUO\",L$19:L$286)+SUMIF($Z$19:$Z$286,\"=\"&TRUE(),L$19:L$286)","v":0},0,0,0,0,0,null,null,"F","Total des bonus des améliorations systèmes par Autotochnes par population","System improvement bonus sum per Original Empire population"]
[null,null,{"$f":"Language!A160 & IF($T$8=2,Language!A159,\"\")","v":"Total Planet + Bonus (without Original Empire and Population bonus)"},{"$f":"AA6","v":0},0,0,0,0,0,{"$f":"AG5","v":8},null,{"$f":"AI6","v":0},0,0,0,0,0,{"$f":"AO5","v":8},null,1,{"$f":"Language!A183 & $T$9","v":"Modernization level 1"},null,null,null,"G","Produit F x <Autot.>",{"$f":"AA8*$A$290","v":0},0,0,0,0,0,{"$f":"$A$290","v":0},null,{"$f":"AI8*$T$290","v":0},0,0,0,0,0,{"$f":"$T$290","v":0},null,"G","Produit = F x <Autotochnes>        Production spécifique des Autotochnes","Product = F x <Original>                   Original Empire population production"]
[null,null,{"$f":"Language!A161 & SUM($A$291:$A$336) & \"  →  \" & SUM($T$291:$T$336) & \")\"","v":"Total Population bonus (0  →  0)"},{"$f":"AA12+AA9+$A$326*AA5","v":0},{"$f":"AB12+AB9+$A$326*AB5","v":0},{"$f":"AC12+AC9+$A$326*AC5+(J15*(F127+F128))","v":0},{"$f":"AD12+AD9+$A$326*AD5","v":0},{"$f":"AE12+AE9+$A$326*AE5","v":0},{"$f":"AF12+AF9","v":0},null,null,{"$f":"AI12+AI9+$T$326*AI5","v":0},{"$f":"AJ12+AJ9+$T$326*AJ5","v":0},{"$f":"AK12+AK9+$T$326*AK5+(R15*(F127+F128))","v":0},{"$f":"AL12+AL9+$T$326*AL5","v":0},{"$f":"AM12+AM9+$T$326*AM5","v":0},{"$f":"AN12+AN9","v":0},null,null,null,null,null,null,null,"H","Produit C x <Esclav.>",{"$f":"AA$5*$AG$10","v":0},{"$f":"AB$5*$AG$10","v":0},{"$f":"AC$5*$AG$10","v":0},{"$f":"AD$5*$AG$10","v":0},null,null,{"$f":"($J$15-$A$291)*($P$6-1)","v":0},null,{"$f":"AI$5*$AO$10","v":0},{"$f":"AJ$5*$AO$10","v":0},{"$f":"AK$5*$AO$10","v":0},{"$f":"AL$5*$AO$10","v":0},null,null,{"$f":"($R$15-$T$291)*($P$7-1)","v":0},null,"H","Produit = C x <Esclaves>                 Production des esclaves = +100% NIBS","Product = C x <Slaves>                      Slave production = +100% FIDS"]
[null,null,{"$f":"Language!A162 & IF($T$8=2,Language!A159,\"\")","v":"Total"},{"$f":"AA17","v":0},{"$f":"AB17","v":0},0,0,0,0,{"$f":"SUM(J19:J286)","v":0},null,{"$f":"AI17","v":0},0,0,0,0,0,{"$f":"SUM(R19:R286)","v":0},null,null,null,null,null,null,"I","Total H (si épuisée)",{"$f":"AA$10/$T$8","v":0},{"$f":"AB$10/$T$8","v":0},{"$f":"AC$10/$T$8","v":0},{"$f":"AD$10/$T$8","v":0},null,null,null,null,{"$f":"AI$10/$T$8","v":0},{"$f":"AJ$10/$T$8","v":0},{"$f":"AK$10/$T$8","v":0},{"$f":"AL$10/$T$8","v":0},null,null,null,null,"I","Total = H /2                                              Si planète épuisée (Sauf Approbation)","Total = H /2                                              If planet depleted (except Approuval)"]
[null,null,null,null,null,null,null,null,null,null,null,null,null,null,null,null,null,null,null,null,{"$f":"Language!A186","v":"Planet name"},null,null,null,"J","Total  (bonus pop.)",{"$f":"SUM(D$291:D$336)","v":0},0,0,0,0,0,null,null,{"$f":"SUM(L$291:L$336)","v":0},0,0,0,0,0,null,null,"J","Total bonus pop.                                  Total des bonus des différentes populations     (= L.10)","Total bonus pop.                                  Total bonuses of different populations     (= L.10)"]
[null,null,{"$f":"Language!A163","v":"Gain on terraforming"},{"$f":"L$11-D$11","v":0},{"$f":"M$11-E$11","v":0},{"$f":"N$11-F$11","v":0},0,0,0,{"$f":"R16-J16","v":0},null,null,null,null,null,null,null,null,null,null,"Sarthrus III",null,null,null,"K","Bonus Étrangers",{"$f":"SUMIF($AA$19:$AA$286,\"=EXT\",D$19:D$286)","v":0},0,0,0,0,0,null,null,{"$f":"SUMIF($AA$19:$AA$286,\"=EXT\",L$19:L$286)","v":0},0,0,0,0,0,null,null,"K","Total des bonus des améliorations systèmes par population Étrangère","Total system improvement bonuses by foreign population"]
[null,null,null,null,null,null,null,null,null,null,null,null,null,null,null,null,null,null,null,null,null,null,null,null,"L","Produit K x <Étrangers>",{"$f":"AA13*$AG$14","v":0},0,0,0,0,0,{"$f":"$AG$6-$A$290","v":0},null,{"$f":"AI13*$AO$14","v":0},0,0,0,0,0,{"$f":"$AO$6-$T$290","v":0},null,"L","Produit K x <Étrangers>                    Production spécifique aux polulations étrangères","Product K x <Foreigners>                 Production specific to foreign polulations"]
[null,null,null," ",null,null,null,null,null,{"$f":" SUM($A$291:$A$336)","v":0},"è",{"$f":"INDEX('Planets - Planètes'!A3:A32,'Planets - Planètes'!$A$37,1)","v":"Terran"},null,null,null,null,null,{"$f":"SUM($T$291:$T$336)","v":0},null,null,null,null,null,null,"M","Infos planète",{"$f":"ROUNDDOWN((AA3+SUM(D135:D165)+SUM(D176:D248))/$T$8,0)","v":8},{"$f":"ROUNDDOWN((AB3+SUM(E135:E165)+SUM(E176:E248))/$T$8,0)","v":3},{"$f":"ROUNDDOWN((AC3+SUM(F135:F165)+SUM(F176:F248))/$T$8,0)","v":4},{"$f":"ROUNDDOWN((AD3+SUM(G135:G165)+SUM(G176:G248))/$T$8,0)","v":4},{"$f":"ROUNDDOWN((AE3+SUM(H135:H165)+SUM(H176:H248))/$T$8,0)","v":0},{"$f":"AF3+SUM(I135:I165)+SUM(I176:I248)","v":0},{"$f":"AG3+SUM(J135:J165)+SUM(J176:J248)","v":8},null,{"$f":"ROUNDDOWN((AI3+SUM(L135:L165)+SUM(L176:L248))/$T$8,0)","v":8},{"$f":"ROUNDDOWN((AJ3+SUM(M135:M165)+SUM(M176:M248))/$T$8,0)","v":3},{"$f":"ROUNDDOWN((AK3+SUM(N135:N165)+SUM(N176:N248))/$T$8,0)","v":4},{"$f":"ROUNDDOWN((AL3+SUM(O135:O165)+SUM(O176:O248))/$T$8,0)","v":4},{"$f":"ROUNDDOWN((AM3+SUM(P135:P165)+SUM(P176:P248))/$T$8,0)","v":0},{"$f":"AN3+SUM(Q135:Q165)+SUM(Q176:Q248)","v":0},{"$f":"AO3+SUM(R135:R165)+SUM(R176:R248)","v":8},null,"M","Planète + Gisements + Anomalies + Curiosités / 2 si planète épuisée","Planet + Ressources deposit + Anomalies + Curiosities / 2 if depleted planet"]
[null,null,null,{"$f":"Language!A174","v":"Max. population with bonus →"},null,null,null,null,null,{"$f":"IF(PopVodyani,INDEX('Planets - Planètes'!$AN$40:$AN$43,$T$9,1),$J$3+SUM(J20:J286)+($AA$314*$A$314)+($AA$315*$A$315))","v":8},"è",{"$f":"Language!A174","v":"Max. population with bonus →"},null,null,null,null,null,{"$f":"IF(PopVodyani,INDEX('Planets - Planètes'!$AN$40:$AN$43,$T$9,1),$J$4+SUM(R20:R286)+($AA$314*$T$314)+($AA$315*$T$315))","v":8},null,null,null,null,null,null,"N","Total = E + G + I + J",{"$f":"AA7+AA9+AA11+AA12+AA14","v":0},0,0,0,0,0,null,null,{"$f":"AI7+AI9+AI11+AI12+AI14","v":0},0,0,0,0,0,null,null,"N","Total = E + G + I + J","Total = E + G + I + J"]
[null,null,null,{"$f":"Language!$A125","v":"F"},{"$f":"Language!$A126","v":"I"},{"$f":"Language!$A127","v":"D"},{"$f":"Language!$A128","v":"S"},{"$f":"Language!$A129","v":"In"},{"$f":"Language!$A130","v":"A"},{"$f":"Language!$A131","v":"P"},null,{"$f":"Language!$A125","v":"F"},{"$f":"Language!$A126","v":"I"},{"$f":"Language!$A127","v":"D"},{"$f":"Language!$A128","v":"S"},{"$f":"Language!$A129","v":"In"},{"$f":"Language!$A130","v":"A"},{"$f":"Language!$A131","v":"P"},null,null,null,null,null,null,"O","Total Final + Extra",{"$f":"ROUNDDOWN(AA16+D338+D93+IF(Devoration,(AA16+D338+D93)*2*(2-T8),0),0)","v":0},{"$f":"ROUNDDOWN(AB16+E338+E93+IF(Devoration,(AB16+E338+E93)*2*(2-T8),0),0)","v":0},{"$f":"ROUNDDOWN(AC16+F338+F93+IF(Devoration,(AC16+F338+F93)*2*(2-T8),0),0)","v":0},{"$f":"ROUNDDOWN(AD16+G338+G93+IF(Devoration,(AD16+G338+G93)*2*(2-T8),0),0)","v":0},{"$f":"ROUNDDOWN(AE16+H93+IF(Devoration,(AE16+H338+H93)*2*(2-T8),0),0)","v":0},{"$f":"ROUNDDOWN(AF16,0)","v":0},{"$f":"AG5","v":8},null,{"$f":"ROUNDDOWN(AI16+L338+L93+IF(Devoration,(AI16+L338+L93)*2*(2-T8),0),0)","v":0},{"$f":"ROUNDDOWN(AJ16+M338+M93+IF(Devoration,(AJ16+M338+M93)*2*(2-T8),0),0)","v":0},{"$f":"ROUNDDOWN(AK16+N338+N93+IF(Devoration,(AK16+N338+N93)*2*(2-T8),0),0)","v":0},{"$f":"ROUNDDOWN(AL16+O338+O93+IF(Devoration,(AL16+O338+O93)*2*(2-T8),0),0)","v":0},{"$f":"ROUNDDOWN(AM16+P93+IF(Devoration,(AM16+P338+P93)*2*(2-T8),0),0)","v":0},{"$f":"ROUNDDOWN(AN16,0)","v":0},{"$f":"AO5","v":8},null,"O","Total final + Bonus Horatio/Cravers/Héros Cravers (arrondi inférieur)","Final total + Bonus Horatio/Cravers/Cravers Heroes  (rounded down)"]
[null,null,{"$f":"Language!A189","v":"System improvements"},null,null,null,null,null,null,null,null,null,null,null,null,null,null,null,null,null,null,null,null,null,null,"↓ Autotochne : vide(=faux) / vrai / duo - ","↓  Ext = Esclave"]
[false,{"$f":"IF(A19,1,0)","v":0},{"$f":"Language!A190","v":"Improvement - Super Biofuel Factory (F → I)"},null,{"$f":"$B19*(D$3+SUM(D$20:D$286))","v":0},null,null,null,null,null,null,null,{"$f":"$B19*(D$4+SUM(L$20:L$286))","v":0},null,null,null,null,null,null,null,{"$f":"Language!$A$175","v":"← Bonus added directly to the System!"}]
[false,{"$f":"IF(A20,1,0)","v":0},{"$f":"Language!A191","v":"Improvement unique - Intensive Cultivation (+3F on Original Empire population)"},{"$f":"IF($B$20=0,0,$B20*3)","v":0},null,null,null,null,null,null,null,{"$f":"IF($B$20=0,0,$B20*3)","v":0},null,null,null,null,null,null,null,null,null,null,null,null,null,true]
[false,{"$f":"IF(A21,1,0)","v":0},{"$f":"Language!A192","v":"Improvement - Horatio - Organic Purity (+2F)"},{"$f":"$B21*2","v":0},null,null,null,null,null,null,null,{"$f":"$B21*2","v":0},null,null,null,null,null,null,null,null,{"$f":"IF(AND(A21,NOT(PopHoratio)),Language!$A$661,\"\")","v":""}]
[false,{"$f":"IF(A22,1,0)","v":0},{"$f":"Language!A193","v":"Improvement - Horatio - Quest - Nanocuisine Plant (+3F) [+5A on System]"},{"$f":"$B22*3","v":0},null,null,null,null,null,null,null,{"$f":"$B22*3","v":0},null,null,null,null,null,null,null,null,{"$f":"IF(AND(A22,NOT(PopHoratio)),Language!$A$661,\"\")","v":""}]
[false,{"$f":"IF(A23,1,0)","v":0},{"$f":"Language!A194","v":"Improvement - Horatio - Quest - Crafted Nutrition Plant (+4N on Original Empire population)"},{"$f":"$B23*4","v":0},null,null,null,null,null,null,null,{"$f":"$B23*4","v":0},null,null,null,null,null,null,null,null,{"$f":"IF(AND(A23,NOT(PopHoratio)),Language!$A$661,\"\")","v":""},null,null,null,null,true]
[false,{"$f":"IF(A24,1,0)","v":0},{"$f":"Language!A195","v":"Improvement - Epigenetic Crop Seeding (+2F)"},{"$f":"$B24*2","v":0},null,null,null,null,null,null,null,{"$f":"$B24*2","v":0}]
[false,{"$f":"IF(A25,1,0)","v":0},{"$f":"Language!A196","v":"Improvement - Sophons - Ultra Greenhouses (+2F) (+2F on Cold)"},{"$f":"$B25*(2+2*$L$3)","v":0},null,null,null,null,null,null,null,{"$f":"$B25*(2+2*$L$4)","v":0},null,null,null,null,null,null,null,null,{"$f":"IF(AND(A25,NOT(PopHoratio)),Language!$A$665,\"\")","v":""}]
[false,{"$f":"IF(A26,1,0)","v":0},{"$f":"Language!A197","v":"Improvement - Microstasis Motors (+2F) (+20% MP on Empire)"},{"$f":"$B26*2","v":0},null,null,null,null,null,null,null,{"$f":"$B26*2","v":0},null,null,null,null,null,null,null,null,{"$f":"IF(AND(A26,NOT(PopVodyani)),Language!$A$667,\"\")","v":""}]
[false,{"$f":"IF(A27,1,0)","v":0},{"$f":"Language!A198","v":"Improvement - Horatio - Quest - HyperHelix Dynamo (+3I) [+5A on System]"},null,{"$f":"$B27*3","v":0},null,null,null,null,null,null,null,{"$f":"$B27*3","v":0},null,null,null,null,null,null,null,{"$f":"IF(AND(A27,NOT(PopHoratio)),Language!$A$661,\"\")","v":""}]
[false,{"$f":"IF(A28,1,0)","v":0},{"$f":"Language!A199","v":"Improvement - Horatio - Quest - Unique - Artisanal Excellence Museum (+4I)"},null,{"$f":"$B28*4","v":0},null,null,null,null,null,null,null,{"$f":"$B28*4","v":0},null,null,null,null,null,null,null,{"$f":"IF(AND(A28,NOT(PopHoratio)),Language!$A$661,\"\")","v":""}]
[false,{"$f":"IF(A29,1,0)","v":0},{"$f":"Language!A200","v":"Improvement - AI Labor (+5I on Hot) (+5I on Sterile)"},null,{"$f":"$B29*((5*$K$3)+(5*$O$3))","v":0},null,null,null,null,null,null,null,{"$f":"$B29*((5*$K$4)+(5*$O$4))","v":0}]
[false,0,{"$f":"Language!A201","v":"Improvement - Hazardous Minig Facility (+5I with Strategic deposit)"},null,{"$f":"$B30*5*$L$6","v":0},null,null,null,null,null,null,null,{"$f":"$B30*5*$L$6","v":0}]
[false,0,{"$f":"Language!A202","v":"Improvement - Fabrication License (+4I)"},null,{"$f":"$B31*4","v":0},null,null,null,null,null,null,null,{"$f":"$B31*4","v":0}]
[false,0,{"$f":"Language!A203","v":"Improvement - Interplanetary Transport Network (+1I) (+3I with Strategic deposit)"},null,{"$f":"$B32*(1+3*$L$7)","v":0},null,null,null,null,null,null,null,{"$f":"$B32*(1+3*$L$7)","v":0}]
[false,{"$f":"IF(A33,1,0)","v":0},{"$f":"Language!A204","v":"Improvement - Dust Bonanza (+5D with Negative Anomaly) (+5D with Reduced Anomaly)"},null,null,{"$f":"$B33*((5*$O$7)+(5*$R$7))","v":0},null,null,null,null,null,null,null,{"$f":"$B33*((5*$O$7)+(5*$R$7))","v":0}]
[false,0,{"$f":"Language!A205","v":"Improvement - Xenotourism Agencies (+1D) (+3D with Luxery deposit)"},null,null,{"$f":"$B34*(1+3*$M$7)","v":0},null,null,null,null,null,null,null,{"$f":"$B34*(1+3*$M$7)","v":0}]
[false,0,{"$f":"Language!A206","v":"Improvement - Borer's Guild Bourse (+5D sur Sterile)"},null,null,{"$f":"$B35*5*$O$3","v":0},null,null,null,null,null,null,null,{"$f":"$B35*5*$O$4","v":0}]
[false,{"$f":"IF(A36,1,0)","v":0},{"$f":"Language!A207","v":"Improvement - Lumeris - Workers' Campus (+2D) [+20% Ship and Construction buyout reduction]"},null,null,{"$f":"$B36*2","v":0},null,null,null,null,null,null,null,{"$f":"$B36*2","v":0}]
[false,{"$f":"IF(A37,1,0)","v":0},{"$f":"Language!A208","v":"Improvement - Pulvis Production (+2D)"},null,null,{"$f":"$B37*2","v":0},null,null,null,null,null,null,null,{"$f":"$B37*2","v":0}]
[false,{"$f":"IF(A38,1,0)","v":0},{"$f":"Language!A209","v":"Improvement - Adaptive Taxation Systems (+4D on Fertile) (+4D on Temperate)"},null,null,{"$f":"$B38*(4*$N$3+4*$M$3)","v":0},null,null,null,null,null,null,null,{"$f":"$B38*(4*$N$4+4*$M$4)","v":0}]
[false,{"$f":"IF(A39,1,0)","v":0},{"$f":"Language!A210","v":"Improvement - Unique - Dust Anti-Trafficking Center (+3D)"},null,null,{"$f":"$B39*3","v":0},null,null,null,null,null,null,null,{"$f":"$B39*3","v":0}]
[false,{"$f":"IF(A40,1,0)","v":0},{"$f":"Language!A211","v":"Improvement - Unique - Intergalacitic Supermarket (+3D)"},null,null,{"$f":"$B40*3","v":0},null,null,null,null,null,null,null,{"$f":"$B40*3","v":0},null,null,null,null,null,null,{"$f":"Language!$A$175","v":"← Bonus added directly to the System!"}]
[false,{"$f":"IF(A41,1,0)","v":0},{"$f":"Language!A212","v":"Improvement - Unique - Riftborn - Cube of the Viceroy (+5D on Original Empire population)"},null,null,{"$f":"$B41*5","v":0},null,null,null,null,null,null,null,{"$f":"$B41*5","v":0},null,null,null,null,null,null,{"$f":"Language!$A$175","v":"← Bonus added directly to the System!"},null,null,null,null,true]
[false,0,{"$f":"Language!A213","v":"Improvement - School of Geniuses (+5S with Negative Anomaly) (+5S with Reduced Anomaly)"},null,null,null,{"$f":"$B42*((5*$O$7)+(5*$R$7))","v":0},null,null,null,null,null,null,null,{"$f":"$B42*((5*$O$7)+(5*$R$7))","v":0}]
[false,0,{"$f":"Language!A214","v":"Improvement - Punctuated Evolution Foundation (+4S on Fertile) (+2S on Cold)"},null,null,null,{"$f":"$B43*(4*$N$3+2*$L$3)","v":0},null,null,null,null,null,null,null,{"$f":"$B43*(4*$N$4+2*$L$4)","v":0}]
[false,0,{"$f":"Language!A215","v":"Improvement - Magnectic Field Generators (+1S)  (+2S with Anomalies)"},null,null,null,{"$f":"$B44*(1+2*$N$7)","v":0},null,null,null,null,null,null,null,{"$f":"$B44*(1+2*$N$7)","v":0}]
[false,0,{"$f":"Language!A216","v":"Improvement - Graviton-shielded Laboratories (+2S)"},null,null,null,{"$f":"$B45*2","v":0},null,null,null,null,null,null,null,{"$f":"$B45*2","v":0}]
[false,{"$f":"IF(A46,1,0)","v":0},{"$f":"Language!A217","v":"Improvement - Gamma Analysis Platforms (+2S on Planet) (+4S on Large)  (+5S on Huge)"},null,null,null,{"$f":"$B46*(2+4*IF($C$7=4,1,0)+5*IF($C$7=5,1,0))","v":0},null,null,null,null,null,null,null,{"$f":"$B46*(2+4*IF($C$7=4,1,0)+5*IF($C$7=5,1,0))","v":0}]
[false,{"$f":"IF(A47,1,0)","v":0},{"$f":"Language!A218","v":"Improvement - Sophons - Graviton-shielded Laboratories (+3S)"},null,null,null,{"$f":"$B47*3","v":0},null,null,null,null,null,null,null,{"$f":"$B47*3","v":0},null,null,null,null,null,{"$f":"IF(AND(A47,NOT(PopHoratio)),Language!$A$665,\"\")","v":""}]
[false,{"$f":"IF(A48,1,0)","v":0},{"$f":"Language!A219","v":"Improvement - United Empire - Who's Yuri? (+5S with Anomalies)"},null,null,null,{"$f":"$B48*(5*$N$7)","v":0},null,null,null,null,null,null,null,{"$f":"$B48*(5*$N$7)","v":0},null,null,null,null,null,{"$f":"IF(AND(A48,NOT(OR(PopUnited))),Language!$A$666,\"\")","v":""}]
[false,0,{"$f":"Language!A220","v":"Improvement - Citizen's Entrepreneurium (+2In)"},null,null,null,null,{"$f":"$B49*1","v":0},null,null,null,null,null,null,null,{"$f":"$B49*1","v":0},null,null,null,null,{"$f":"Language!$A$175","v":"← Bonus added directly to the System!"}]
[false,{"$f":"IF(A50,1,0)","v":0},{"$f":"Language!A221","v":"Improvement - Horatio - Quest - Cultural Apogee Center (+2In on Original Empire population)"},null,null,null,null,{"$f":"$B50*2","v":0},null,null,null,null,null,null,null,{"$f":"$B50*2","v":0},null,null,null,null,{"$f":"IF(AND(A50,NOT(PopHoratio)),Language!$A$661,\"\")","v":""},null,null,null,null,true]
[false,{"$f":"IF(A51,1,0)","v":0},{"$f":"Language!A222","v":"Improvement - Horatio - Quest - The Horatio Channel (+2In) [+5A on System]"},null,null,null,null,{"$f":"$B51*2","v":0},null,null,null,null,null,null,null,{"$f":"$B51*2","v":0},null,null,null,null,{"$f":"IF(AND(A51,NOT(PopHoratio)),Language!$A$661,\"\")","v":""}]
[false,{"$f":"IF(A52,1,0)","v":0},{"$f":"Language!A223","v":"Improvement - National Museum (+1In where Happy) (+2In where Ecstatic)"},null,null,null,null,{"$f":"$B52*(IF($T$7,2,IF($T$6,1,0)))","v":0},null,null,null,null,null,null,null,{"$f":"$B52*(IF($T$7,2,IF($T$6,1,0)))","v":0}]
[false,{"$f":"IF(A53,1,0)","v":0},{"$f":"Language!A224","v":"Improvement - Microwave Pipes (+2Σ)"},{"$f":"$B53*2","v":0},{"$f":"$B53*2","v":0},{"$f":"$B53*2","v":0},{"$f":"$B53*2","v":0},{"$f":"$B53*2","v":0},null,null,null,{"$f":"$B53*2","v":0},{"$f":"$B53*2","v":0},{"$f":"$B53*2","v":0},{"$f":"$B53*2","v":0},{"$f":"$B53*2","v":0}]
[false,{"$f":"IF(A54,1,0)","v":0},{"$f":"Language!A225","v":"Improvement - Lodestone Link (+1Σ on Planet) (+2Σ on Small) (+3Σ on Tiny)"},{"$f":"$B54*(1+2*IF($C$7=2,1,0)+3*IF($C$7=1,1,0))","v":0},{"$f":"$B54*(1+2*IF($C$7=2,1,0)+3*IF($C$7=1,1,0))","v":0},0,0,0,null,null,null,{"$f":"$B54*(1+2*IF($C$7=2,1,0)+3*IF($C$7=1,1,0))","v":0},{"$f":"$B54*(1+2*IF($C$7=2,1,0)+3*IF($C$7=1,1,0))","v":0},0,0,0]
[0,{"$f":"A55","v":0},{"$f":"Language!A226","v":"Improvement - Obelisks of All Space-Time (+5Σ)"},{"$f":"$B55*5","v":0},{"$f":"$B55*5","v":0},{"$f":"$B55*5","v":0},{"$f":"$B55*5","v":0},{"$f":"$B55*5","v":0},null,null,null,{"$f":"$B55*5","v":0},{"$f":"$B55*5","v":0},{"$f":"$B55*5","v":0},{"$f":"$B55*5","v":0},{"$f":"$B55*5","v":0},null,null,null,null,{"$f":"Language!$A$669","v":"Several Obelisks possible with Umbral Choir"}]
[false,{"$f":"IF(A56,1,0)","v":0},{"$f":"Language!A227","v":"Improvement - Unique - Denarque University (+2Σ)"},{"$f":"$B56*2","v":0},{"$f":"$B56*2","v":0},{"$f":"$B56*2","v":0},{"$f":"$B56*2","v":0},{"$f":"$B56*2","v":0},null,null,null,{"$f":"$B56*2","v":0},{"$f":"$B56*2","v":0},{"$f":"$B56*2","v":0},{"$f":"$B56*2","v":0},{"$f":"$B56*2","v":0}]
[false,{"$f":"IF(A57,1,0)","v":0},{"$f":"Language!A228","v":"Improvement - Vodyani - Phased Cloths (+1FIDS)"},{"$f":"$B57*1","v":0},{"$f":"$B57*1","v":0},{"$f":"$B57*1","v":0},{"$f":"$B57*1","v":0},null,null,null,null,{"$f":"$B57*1","v":0},{"$f":"$B57*1","v":0},{"$f":"$B57*1","v":0},{"$f":"$B57*1","v":0},null,null,null,null,null,{"$f":"IF(AND(A57,NOT(PopVodyani)),Language!$A$667,\"\")","v":""}]
[false,{"$f":"IF(A58,1,0)","v":0},{"$f":"Language!A229","v":"Improvement - Habitable Anomalies (+1P with Anomalies)"},null,null,null,null,null,null,{"$f":"$B58*$N$7","v":0},null,null,null,null,null,null,null,{"$f":"$B58*$N$7","v":0}]
[false,{"$f":"IF(A59,1,0)","v":0},{"$f":"Language!A230","v":"Improvement - Umbral Choir - Wraith Compression (+1P on Crescent)"},null,null,null,null,null,null,{"$f":"$B59*1*IF($P$3=Language!$A$101,1,0)","v":0},null,null,null,null,null,null,null,{"$f":"$B59*1*IF($P$4=Language!$A$101,1,0)","v":0},null,null,{"$f":"IF(AND(A59,NOT(PopUmbral)),Language!$A$658,\"\")","v":""}]
[false,{"$f":"IF(A60,1,0)","v":0},{"$f":"Language!A231","v":"Improvement - Umbral Choir - Micro Domiciles (+1P on Crescent)"},null,null,null,null,null,null,{"$f":"$B60*1*IF($P$3=Language!$A$101,1,0)","v":0},null,null,null,null,null,null,null,{"$f":"$B60*1*IF($P$4=Language!$A$101,1,0)","v":0},null,null,{"$f":"IF(AND(A60,NOT(PopUmbral)),Language!$A$658,\"\")","v":""}]
[false,{"$f":"IF(A61,1,0)","v":0},{"$f":"Language!A232","v":"Improvement - Eco Habitats (+1P on Sterile)"},null,null,null,null,null,null,{"$f":"$B61*$O$3","v":0},null,null,null,null,null,null,null,{"$f":"$B61*$O$4","v":0}]
[false,{"$f":"IF(A62,1,0)","v":0},{"$f":"Language!A233","v":"Improvement - Lunar Suburbs (+2P with Lunar Anomaly)"},null,null,null,null,null,null,{"$f":"$B62*2*SUM($B$176:$B$178)","v":0},null,null,null,null,null,null,null,{"$f":"$B62*2*SUM($B$176:$B$178)","v":0}]
[false,{"$f":"IF(A63,1,0)","v":0},{"$f":"Language!A234","v":"Improvement - Cosmetic Genetics (+1P on Fertile) (+1P on Sterile)"},null,null,null,null,null,null,{"$f":"$B63*IF(OR($N$3,$O$3),1,0)","v":0},null,null,null,null,null,null,null,{"$f":"$B63*IF(OR($N$4,$O$4),1,0)","v":0}]
[false,0,{"$f":"Language!A235","v":"Improvement - Deep Atmosphere Habitats (+3P on Gas)"},null,null,null,null,null,null,{"$f":"$B64*3*IF($P$3=Language!$A$100,1,0)","v":0},null,null,null,null,null,null,null,{"$f":"$B64*3*IF($P$4=Language!$A$100,1,0)","v":0}]
[false,{"$f":"IF(A65,1,0)","v":0},{"$f":"Language!A236","v":"Improvement - Horatio - Skyward Dwellings (+1P)"},null,null,null,null,null,null,{"$f":"$B65*1","v":0},null,null,null,null,null,null,null,{"$f":"$B65*1","v":0},null,null,{"$f":"IF(AND(A65,NOT(PopHoratio)),Language!$A$661,\"\")","v":""}]
[false,{"$f":"IF(A66,1,0)","v":0},{"$f":"Language!A237","v":"Improvement - Riftborn - Burrows (+2P on Sterile)"},null,null,null,null,null,null,{"$f":"$B66*2*$O$3","v":0},null,null,null,null,null,null,null,{"$f":"$B66*2*$O$4","v":0},null,null,{"$f":"IF(AND(A66,NOT(PopHoratio)),Language!$A$664,\"\")","v":""}]
[null,null,{"$f":"Language!A238","v":"Planetary Specializations"}]
[false,0,{"$f":"Language!A239","v":"Planetary Specialization - Evolved Soils (+1F) (+1F on Fertile)"},{"$f":"$B68*(1+1*$N$3)","v":0},null,null,null,null,null,null,null,{"$f":"$B68*(1+1*$N$4)","v":0}]
[false,0,{"$f":"Language!A240","v":"Planetary Specialization - Alien Grafting (+2F) (+2F on Fertile)"},{"$f":"$B69*(2+2*$N$3)","v":0},null,null,null,null,null,null,null,{"$f":"$B69*(2+2*$N$4)","v":0}]
[false,0,{"$f":"Language!A241","v":"Planetary Specialization - Aquaculture Dome (+3F) (+3F on Fertile)"},{"$f":"$B70*(3+3*$N$3)","v":0},null,null,null,null,null,null,null,{"$f":"$B70*(3+3*$N$4)","v":0}]
[false,0,{"$f":"Language!A242","v":"Planetary Specialization - Industrial Zones (+1I) (+1I on Hot)"},null,{"$f":"$B71*(1+1*$K$3)","v":0},null,null,null,null,null,null,null,{"$f":"$B71*(1+1*$K$4)","v":0}]
[false,0,{"$f":"Language!A243","v":"Planetary Specialization - Geo-industrial Plants (+2I) (+2I on Hot)"},null,{"$f":"$B72*(2+2*$K$3)","v":0},null,null,null,null,null,null,null,{"$f":"$B72*(2+2*$K$4)","v":0}]
[false,0,{"$f":"Language!A244","v":"Planetary Specialization - Colonial Exchange (+1D) (+1D on Sterile)"},null,null,{"$f":"$B73*(1+1*$O$3)","v":0},null,null,null,null,null,null,null,{"$f":"$B73*(1+1*$O$4)","v":0}]
[false,{"$f":"IF(A74,1,0)","v":0},{"$f":"Language!A245","v":"Planetary Specialization - Atemporal Finance (+2D) (+2D on Sterile)"},null,null,{"$f":"$B74*(2+2*$O$3)","v":0},null,null,null,null,null,null,null,{"$f":"$B74*(2+2*$O$4)","v":0}]
[false,0,{"$f":"Language!A246","v":"Planetary Specialization - Exoscience Stations (+1S) (+1S on Cold)"},null,null,null,{"$f":"$B75*(1+1*$L$3)","v":0},null,null,null,null,null,null,null,{"$f":"$B75*(1+1*$L$4)","v":0}]
[false,0,{"$f":"Language!A247","v":"Planetary Specialization - Citizen Science (+2S) (+2S on Cold)"},null,null,null,{"$f":"$B76*(2+2*$L$3)","v":0},null,null,null,null,null,null,null,{"$f":"$B76*(2+2*$L$4)","v":0}]
[false,0,{"$f":"Language!A248","v":"Planetary Specialization - SPIN Project (+1In)"},null,null,null,null,{"$f":"$B77*1","v":0},null,null,null,null,null,null,null,{"$f":"$B77*1","v":0}]
[false,0,{"$f":"Language!A249","v":"Planetary Specialization - Edenization (+2In)"},null,null,null,null,{"$f":"$B78*2","v":0},null,null,null,null,null,null,null,{"$f":"$B78*2","v":0}]
[false,0,{"$f":"Language!A251","v":"Planetary Specialization - Hissho - Fealty Center (+1FIDS)"},null,null,null,null,{"$f":"$B79*3","v":0},null,null,null,null,null,null,null,{"$f":"$B79*3","v":0}]
[false,{"$f":"IF(A80,1,0)","v":0},{"$f":"Language!A251","v":"Planetary Specialization - Hissho - Fealty Center (+1FIDS)"},{"$f":"$B80*1","v":0},{"$f":"$B80*1","v":0},{"$f":"$B80*1","v":0},{"$f":"$B80*1","v":0},null,null,null,null,{"$f":"$B80*1","v":0},{"$f":"$B80*1","v":0},{"$f":"$B80*1","v":0},{"$f":"$B80*1","v":0}]
[false,0,{"$f":"Language!A252","v":"Planetary Specialization - Hissho - Fealty Foundation (+2FIDS)"},{"$f":"$B81*2","v":0},{"$f":"$B81*2","v":0},{"$f":"$B81*2","v":0},{"$f":"$B81*2","v":0},null,null,null,null,{"$f":"$B81*2","v":0},{"$f":"$B81*2","v":0},{"$f":"$B81*2","v":0},{"$f":"$B81*2","v":0},null,null,null,null,null,{"$f":"IF(AND(A81,NOT(PopHissho)),Language!$A$660,\"\")","v":""}]
[false,0,{"$f":"Language!A253","v":"Planetary Specialization - Hissho - Fealty Institute (+3FIDS)"},{"$f":"$B82*3","v":0},{"$f":"$B82*3","v":0},{"$f":"$B82*3","v":0},{"$f":"$B82*3","v":0},null,null,null,null,{"$f":"$B82*3","v":0},{"$f":"$B82*3","v":0},{"$f":"$B82*3","v":0},{"$f":"$B82*3","v":0},null,null,null,null,null,{"$f":"IF(AND(A82,NOT(PopHissho)),Language!$A$660,\"\")","v":""}]
[null,null,{"$f":"Language!A254","v":"Heroes"}]
[false,{"$f":"IF(A84,1,0)","v":0},{"$f":"Language!A270","v":"Hero - Infallible Authority (+2Σ)"},{"$f":"$B84*2","v":0},{"$f":"$B84*2","v":0},{"$f":"$B84*2","v":0},{"$f":"$B84*2","v":0},{"$f":"$B84*2","v":0},null,null,null,{"$f":"$B84*2","v":0},{"$f":"$B84*2","v":0},{"$f":"$B84*2","v":0},{"$f":"$B84*2","v":0},{"$f":"$B84*2","v":0}]
[false,{"$f":"IF(A85,1,0)","v":0},{"$f":"Language!A255","v":"Hero - Starting skill - Generic Skill (+1F on Orignal Empire population)"},{"$f":"$B85*1","v":0},null,null,null,null,null,null,null,{"$f":"$B85*1","v":0},null,null,null,null,null,null,null,null,null,null,null,null,null,true]
[false,{"$f":"IF(A86,1,0)","v":0},{"$f":"Language!A256","v":"Hero - Starting skill - Generic Skill (+1I)"},null,{"$f":"$B86*1","v":0},null,null,null,null,null,null,null,{"$f":"$B86*1","v":0}]
[false,0,{"$f":"Language!A257","v":"Hero - Starting skill - Generic Skill (+1D)"},null,null,{"$f":"$B87*1","v":0},null,null,null,null,null,null,null,{"$f":"$B87*1","v":0}]
[false,{"$f":"IF(A88,1,0)","v":0},{"$f":"Language!A258","v":"Hero - Starting skill - Generic Skill (+1S)"},null,null,null,{"$f":"$B88*1","v":0},null,null,null,null,null,null,null,{"$f":"$B88*1","v":0}]
[false,0,{"$f":"Language!A259","v":"Hero - Starting skill - Generic Skill (+1In)"},null,null,null,null,{"$f":"$B89*1","v":0},null,null,null,null,null,null,null,{"$f":"$B89*1","v":0}]
[false,{"$f":"IF(A90,1,0)","v":0},{"$f":"Language!A260","v":"Hero - Starting skill - Generic Skill (+1In on Orignal Empire population)"},null,null,null,null,{"$f":"$B90*1","v":0},null,null,null,null,null,null,null,{"$f":"$B90*1","v":0},null,null,null,null,{"$f":"Language!$A$175","v":"← Bonus added directly to the System!"},null,null,null,null,true]
[false,{"$f":"IF(A91,1,0)","v":0},{"$f":"Language!A261","v":"Hero - Starting skill - Generic Skill (+1A on Orignal Empire population)"},null,null,null,null,null,{"$f":"$B91*1","v":0},null,null,null,null,null,null,null,{"$f":"$B91*1","v":0},null,null,null,null,null,null,null,null,true]
[false,{"$f":"IF(A92,1,0)","v":0},{"$f":"Language!A262","v":"Hero - Starting skill - Generic Skill (+0.5Σ)"},{"$f":"$B92*0.5","v":0},{"$f":"$B92*0.5","v":0},{"$f":"$B92*0.5","v":0},{"$f":"$B92*0.5","v":0},{"$f":"$B92*0.5","v":0},null,null,null,{"$f":"$B92*0.5","v":0},{"$f":"$B92*0.5","v":0},{"$f":"$B92*0.5","v":0},{"$f":"$B92*0.5","v":0},{"$f":"$B92*0.5","v":0}]
[false,0,{"$f":"Language!A263","v":"Héros - Cravers - Endless Consumption (+2 FIDSI) (+200% FIDSI on undepleted planets) (+8 DP)"},{"$f":"$B93*2","v":0},{"$f":"$B93*2","v":0},{"$f":"$B93*2","v":0},{"$f":"$B93*2","v":0},{"$f":"$B93*2","v":0},null,null,null,{"$f":"$B93*2","v":0},{"$f":"$B93*2","v":0},{"$f":"$B93*2","v":0},{"$f":"$B93*2","v":0},{"$f":"$B93*2","v":0},null,null,null,null,null,null,null,null,null,"CRAVERS"]
[false,0,{"$f":"Language!A264","v":"Hero - Hive Mind - Level 1 (+1A)"},null,null,null,null,null,{"$f":"$B94*1","v":0},null,null,null,null,null,null,null,{"$f":"$B94*1","v":0}]
[false,{"$f":"IF(A95,1,0)","v":0},{"$f":"Language!A265","v":"Hero - Hive Mind - Level 2 (+2A)"},null,null,null,null,null,{"$f":"$B95*2","v":0},null,null,null,null,null,null,null,{"$f":"$B95*2","v":0}]
[false,{"$f":"IF(A96,1,0)","v":0},{"$f":"Language!A266","v":"Hero - Hive Mind - Hissho - Level 1 (+0.5In)"},null,null,null,null,{"$f":"$B96*0.5","v":0},null,null,null,null,null,null,null,{"$f":"$B96*0.5","v":0}]
[false,0,{"$f":"Language!A267","v":"Hero - Hive Mind - Hissho - Level 2 (+1In)"},null,null,null,null,{"$f":"$B97*1","v":0},null,null,null,null,null,null,null,{"$f":"$B97*1","v":0}]
[false,0,{"$f":"Language!A268","v":"Hero - Optimal Operations Expert - Level 1 (+1F) (+1I)"},{"$f":"$B98*1","v":0},{"$f":"$B98*1","v":0},null,null,null,null,null,null,{"$f":"$B98*1","v":0},{"$f":"$B98*1","v":0}]
[false,{"$f":"IF(A99,1,0)","v":0},{"$f":"Language!A269","v":"Hero - Optimal Operations Expert - Level 2 (+2F) (+2I)"},{"$f":"$B99*2","v":0},{"$f":"$B99*2","v":0},null,null,null,null,null,null,{"$f":"$B99*2","v":0},{"$f":"$B99*2","v":0}]
[false,{"$f":"IF(A100,1,0)","v":0},{"$f":"Language!A271","v":"Hero - Fecund Gardens - Level 1 (+1F) (+1F on Orignal Empire population)"},{"$f":"$B100*1","v":0},null,null,null,null,null,null,null,{"$f":"$B100*1","v":0},null,null,null,null,null,null,null,null,null,null,null,null,null,"DUO"]
[false,0,{"$f":"Language!A272","v":"Hero - Fecund Gardens - Level 2 (+2F) (+2F on Orignal Empire population)"},{"$f":"$B101*2","v":0},null,null,null,null,null,null,null,{"$f":"$B101*2","v":0},null,null,null,null,null,null,null,null,null,null,null,null,null,"DUO"]
[false,0,{"$f":"Language!A273","v":"Hero - Fecund Gardens - Level 1+ (+4F) (+4F on Orignal Empire population)"},{"$f":"$B102*4","v":0},null,null,null,null,null,null,null,{"$f":"$B102*4","v":0},null,null,null,null,null,null,null,null,null,null,null,null,null,"DUO"]
[false,{"$f":"IF(A103,1,0)","v":0},{"$f":"Language!A274","v":"Hero - Fecund Gardens - Level 2+ (+8F) (+8F on Orignal Empire population)"},{"$f":"$B103*8","v":0},null,null,null,null,null,null,null,{"$f":"$B103*8","v":0},null,null,null,null,null,null,null,null,null,null,null,null,null,"DUO"]
[false,0,{"$f":"Language!A275","v":"Hero - Renegade Master (+2FIDS per Foreign population) (+5A per Foreign population)"},{"$f":"$B104*2","v":0},{"$f":"$B104*2","v":0},{"$f":"$B104*2","v":0},{"$f":"$B104*2","v":0},null,{"$f":"$B104*5","v":0},null,null,{"$f":"$B104*2","v":0},{"$f":"$B104*2","v":0},{"$f":"$B104*2","v":0},{"$f":"$B104*2","v":0},null,{"$f":"$B104*5","v":0},null,null,null,{"$f":"Language!$A$175","v":"← Bonus added directly to the System!"},null,null,null,null,null,"EXT"]
[false,0,{"$f":"Language!A276","v":"Hero - Personal Militia - Level 1 (+1In)"},null,null,null,null,{"$f":"$B105*1","v":0},null,null,null,null,null,null,null,{"$f":"$B105*1","v":0}]
[false,{"$f":"IF(A106,1,0)","v":0},{"$f":"Language!A277","v":"Hero - Personal Militia - Level 2 (+2In)"},null,null,null,null,{"$f":"$B106*2","v":0},null,null,null,null,null,null,null,{"$f":"$B106*2","v":0}]
[false,0,{"$f":"Language!A278","v":"Hero - Restricted Supplier (+2I on Ecstatic)"},null,{"$f":"$B107*2*$T$7","v":0},null,null,null,null,null,null,null,{"$f":"$B107*2*$T$7","v":0}]
[false,{"$f":"IF(A108,1,0)","v":0},{"$f":"Language!A279","v":"Hero - Rousing Orator - Level 1 (+1In)"},null,null,null,null,{"$f":"$B108*1","v":0},null,null,null,null,null,null,null,{"$f":"$B108*1","v":0}]
[false,0,{"$f":"Language!A280","v":"Hero - Rousing Orator - Level 2 (+2In)"},null,null,null,null,{"$f":"$B109*2","v":0},null,null,null,null,null,null,null,{"$f":"$B109*2","v":0}]
[false,{"$f":"IF(A110,1,0)","v":0},{"$f":"Language!A281","v":"Hero - Rousing Orator - Level 1+ (+2In) (+2In on Happy)"},null,null,null,null,{"$f":"$B110*(2+2*IF(OR($T$6,$T$7),1,0))","v":0},null,null,null,null,null,null,null,{"$f":"$B110*(2+2*IF(OR($T$6,$T$7),1,0))","v":0}]
[false,{"$f":"IF(A111,1,0)","v":0},{"$f":"Language!A282","v":"Hero - Rousing Orator - Level 2+ (+4In) (+4In on Happy)"},null,null,null,null,{"$f":"$B111*(4+4*IF(OR($T$6,$T$7),1,0))","v":0},null,null,null,null,null,null,null,{"$f":"$B111*(4+4*IF(OR($T$6,$T$7),1,0))","v":0}]
[false,0,{"$f":"Language!A283","v":"Hero - Personal Networking - Level 1 (+3I)"},null,{"$f":"$B112*3","v":0},null,null,null,null,null,null,null,{"$f":"$B112*3","v":0}]
[false,{"$f":"IF(A113,1,0)","v":0},{"$f":"Language!A284","v":"Hero - Personal Networking - Level 2 (+6I)"},null,{"$f":"$B113*6","v":0},null,null,null,null,null,null,null,{"$f":"$B113*6","v":0}]
[null,null,{"$f":"Language!A285","v":"Senate (3 max) - Hero on senate"}]
[0,{"$f":"A115","v":0},{"$f":"Language!A286","v":"Senator - Infallible Authority (+0.5Σ)"},{"$f":"$B115*0.5","v":0},{"$f":"$B115*0.5","v":0},{"$f":"$B115*0.5","v":0},{"$f":"$B115*0.5","v":0},{"$f":"$B115*0.5","v":0},null,null,null,{"$f":"$B115*0.5","v":0},{"$f":"$B115*0.5","v":0},{"$f":"$B115*0.5","v":0},{"$f":"$B115*0.5","v":0},{"$f":"$B115*0.5","v":0},null,null,null,null,"TODO : check"]
[0,{"$f":"A116","v":0},{"$f":"Language!A287","v":"Senator - Personal Networking (+1I)"},null,{"$f":"$B116*1","v":0},null,null,null,null,null,null,null,{"$f":"$B116*1","v":0}]
[null,null,{"$f":"Language!A288","v":"Governement & Laws"}]
[false,{"$f":"IF(A118,1,0)","v":0},"Gouvernement - Démocratie (+1A)",null,null,null,null,null,{"$f":"$B118*1","v":0},null,null,null,null,null,null,null,{"$f":"$B118*1","v":0}]
[false,0,{"$f":"Language!A290","v":"Ecologist law : Green Fertility Bill (+2F on Anomaly) (+3F with Republic)"},{"$f":"$B119*(2+$T$5)*$N$7","v":0},null,null,null,null,null,null,null,{"$f":"$B119*(2+$T$5)*$N$7","v":0}]
[false,0,{"$f":"Language!A291","v":"Ecologist law : Cool Copies Clause (+2F) (+4F with Republic)"},{"$f":"$B120*(2+(2*$T$5))","v":0},null,null,null,null,null,null,null,{"$f":"$B120*(2+(2*$T$5))","v":0}]
[false,0,{"$f":"Language!A292","v":"Independant law : Super Tax Act (+3D) (+4D with Republic)  [-20A on System]"},null,null,{"$f":"$B121*(3+$T$5)","v":0},null,null,null,null,null,null,null,{"$f":"$B121*(3+$T$5)","v":0}]
[false,{"$f":"IF(A122,1,0)","v":0},{"$f":"Language!A293","v":"Independant law : Cram Exam Act (+3S) (-2A) (+4S with Republic)"},null,null,null,{"$f":"$B122*(3+$T$5)","v":0},null,{"$f":"$B122*-2","v":0},null,null,null,null,null,{"$f":"$B122*(3+$T$5)","v":0},null,{"$f":"$B122*-2","v":0}]
[false,0,{"$f":"Language!A294","v":"Independant law : Senateur Bob Act (-2D) (+2A) (+3A with Republic)"},null,null,{"$f":"$B123*-2","v":0},null,null,{"$f":"$B123*(2+$T$5)","v":0},null,null,null,null,{"$f":"$B123*-2","v":0},null,null,{"$f":"$B123*(2+$T$5)","v":0},null,null,null,{"$f":"Language!$A$175","v":"← Bonus added directly to the System!"}]
[false,{"$f":"IF(A124,1,0)","v":0},{"$f":"Language!A295","v":"Independant law : Hi Sci Act (+2S) (+3S with Republic)"},null,null,null,{"$f":"$B124*(2+$T$5)","v":0},null,null,null,null,null,null,null,{"$f":"$B124*(2+$T$5)","v":0}]
[false,{"$f":"IF(A125,1,0)","v":0},{"$f":"Language!A296","v":"Industrialist law : Work Not Shirk Act (+6I) (+8I with Republic)"},null,{"$f":"$B125*(6+(2*$T$5))","v":0},null,null,null,null,null,null,null,{"$f":"$B125*(6+(2*$T$5))","v":0}]
[false,0,{"$f":"Language!A297","v":"Law militaire (Hissho) : US or Them Decree (+1I) (+2I with Republic)"},null,{"$f":"$B126*(1+$T$5)","v":0},null,null,null,null,null,null,null,{"$f":"$B126*(1+$T$5)","v":0}]
[false,0,{"$f":"Language!A298","v":"Pacifist law : Right Thing Rule (+1D)"},null,null,{"$f":"$B127*1","v":0},null,null,null,null,null,null,null,{"$f":"$B127*1","v":0}]
[false,{"$f":"IF(A128,1,0)","v":0},{"$f":"Language!A299","v":"Pacifist law (Dictatorship) : Right Thing Rule (+2D)"},null,null,{"$f":"$B128*2","v":0},null,null,null,null,null,null,null,{"$f":"$B128*2","v":0}]
[false,{"$f":"IF(A129,1,0)","v":0},{"$f":"Language!A300","v":"Religious law : Species Stabilty Act (+5D on Original Empire Pop.) (+10D on EOP with Republic)"},null,null,{"$f":"$B129*(5+(5*$T$5))","v":0},null,null,null,null,null,null,null,{"$f":"$B129*(5+(5*$T$5))","v":0},null,null,null,null,null,null,null,null,null,null,null,true]
[false,0,{"$f":"Language!A301","v":"Religious law : Righteous Fury (+1In)"},null,null,null,null,{"$f":"$B130*1","v":0},null,null,null,null,null,null,null,{"$f":"$B130*1","v":0}]
[false,0,{"$f":"Language!A302","v":"Scientist law (Dictatorship) : Oracle of Science (+1S)"},null,null,null,{"$f":"$B131*1","v":0},null,null,null,null,null,null,null,{"$f":"$B131*1","v":0}]
[false,{"$f":"IF(A132,1,0)","v":0},{"$f":"Language!A303","v":"Hissoh law : Tombs and Trinkets (-2D)"},null,null,{"$f":"$B132*-2","v":0},null,null,null,null,null,null,null,{"$f":"$B132*-2","v":0}]
[false,{"$f":"IF(A133,1,0)","v":0},{"$f":"Language!A304","v":"Niris law : Zero Tolerance Waste Act (+1A)"},null,null,null,null,null,{"$f":"$B133*1","v":0},null,null,null,null,null,null,null,{"$f":"$B133*1","v":0}]
[null,null,{"$f":"Language!A305","v":"Strategics ressources deposit"}]
[false,0,{"$f":"Language!A306","v":"Strategic ressource deposit - Titanium (+1I)"},null,{"$f":"$B135*1","v":0},null,null,null,null,null,null,null,{"$f":"$B135*1","v":0}]
[false,{"$f":"IF(A136,1,0)","v":0},{"$f":"Language!A307","v":"Strategic ressource deposit - Hyperium (+1S)"},null,null,null,{"$f":"$B136*1","v":0},null,null,null,null,null,null,null,{"$f":"$B136*1","v":0}]
[false,{"$f":"IF(A137,1,0)","v":0},{"$f":"Language!A308","v":"Strategic ressource deposit - Adamantian (+2I)"},null,{"$f":"$B137*2","v":0},null,null,null,null,null,null,null,{"$f":"$B137*2","v":0}]
[false,0,{"$f":"Language!A309","v":"Strategic ressource deposit - Antimatter (+2S)"},null,null,null,{"$f":"$B138*2","v":0},null,null,null,null,null,null,null,{"$f":"$B138*2","v":0}]
[false,{"$f":"IF(A139,1,0)","v":0},{"$f":"Language!A310","v":"Strategic ressource deposit - Orichalcix (+2I +1S)"},null,{"$f":"$B139*2","v":0},null,{"$f":"$B139*1","v":0},null,null,null,null,null,{"$f":"$B139*2","v":0},null,{"$f":"$B139*1","v":0}]
[false,0,{"$f":"Language!A311","v":"Strategic ressource deposit - Quadrinix (+1I +2S)"},null,{"$f":"$B140*1","v":0},null,{"$f":"$B140*2","v":0},null,null,null,null,null,{"$f":"$B140*1","v":0},null,{"$f":"$B140*2","v":0}]
[null,null,{"$f":"Language!A312","v":"Luxeries ressources deposit"}]
[false,{"$f":"IF(A142,1,0)","v":0},{"$f":"Language!A313","v":"Luxery ressource deposit - Amianthoid (+2I) (+2D)"},null,{"$f":"$B142*2","v":0},{"$f":"$B142*2","v":0},null,null,null,null,null,null,{"$f":"$B142*2","v":0},{"$f":"$B142*2","v":0}]
[false,0,{"$f":"Language!A314","v":"Luxery ressource deposit - Dustciduous Trees (+2D) (+1A)"},null,null,{"$f":"$B143*2","v":0},null,null,{"$f":"$B143*1","v":0},null,null,null,null,{"$f":"$B143*2","v":0},null,null,{"$f":"$B143*1","v":0}]
[false,0,{"$f":"Language!A315","v":"Luxery ressource deposit - Virtual Artifacts (+4S) (+2A)"},null,null,null,{"$f":"$B144*4","v":0},null,{"$f":"$B144*2","v":0},null,null,null,null,null,{"$f":"$B144*4","v":0},null,{"$f":"$B144*2","v":0}]
[false,0,{"$f":"Language!A316","v":"Luxery ressource deposit - Drift Buds (+8F)"},{"$f":"$B145*8","v":0},null,null,null,null,null,null,null,{"$f":"$B145*8","v":0}]
[false,0,{"$f":"Language!A317","v":"Luxery ressource deposit - Lost Cities (N-P Artifacts) (+1D) (+2S) (+2A)"},null,null,{"$f":"$B146*1","v":0},{"$f":"$B146*2","v":0},null,{"$f":"$B146*2","v":0},null,null,null,null,{"$f":"$B146*1","v":0},{"$f":"$B146*2","v":0},null,{"$f":"$B146*2","v":0}]
[false,0,{"$f":"Language!A318","v":"Luxery ressource deposit - Ionic Crystal (+4S)"},null,null,null,{"$f":"$B147*4","v":0},null,null,null,null,null,null,null,{"$f":"$B147*4","v":0}]
[false,0,{"$f":"Language!A319","v":"Luxery ressource deposit - DustWater (+4F) (+2A)"},{"$f":"$B148*4","v":0},null,null,null,null,{"$f":"$B148*2","v":0},null,null,{"$f":"$B148*4","v":0},null,null,null,null,{"$f":"$B148*2","v":0}]
[false,0,{"$f":"Language!A320","v":"Luxery ressource deposit - Eden Incense (+2S) (+1A)"},null,null,null,{"$f":"$B149*2","v":0},null,{"$f":"$B149*1","v":0},null,null,null,null,null,{"$f":"$B149*2","v":0},null,{"$f":"$B149*1","v":0}]
[false,0,{"$f":"Language!A321","v":"Luxery ressource deposit - Endless Foundries (C-Artifacts) (+4I) (+2A)"},null,{"$f":"$B150*4","v":0},null,null,null,{"$f":"$B150*2","v":0},null,null,null,{"$f":"$B150*4","v":0},null,null,null,{"$f":"$B150*2","v":0}]
[false,0,{"$f":"Language!A322","v":"Luxery ressource deposit - Benthic Gems (+4D) (+2A)"},null,null,{"$f":"$B151*4","v":0},null,null,{"$f":"$B151*2","v":0},null,null,null,null,{"$f":"$B151*4","v":0},null,null,{"$f":"$B151*2","v":0}]
[false,0,{"$f":"Language!A323","v":"Luxery ressource deposit - Giga Lattice (+2In)"},null,null,null,null,{"$f":"$B152*2","v":0},null,null,null,null,null,null,null,{"$f":"$B152*2","v":0}]
[false,0,{"$f":"Language!A324","v":"Luxery ressource deposit - Hydromiel (+4F)"},{"$f":"$B153*4","v":0},null,null,null,null,null,null,null,{"$f":"$B153*4","v":0}]
[false,0,{"$f":"Language!A325","v":"Luxery ressource deposit - Jadonyx (+2I) (+1A)"},null,{"$f":"$B154*2","v":0},null,null,null,{"$f":"$B154*1","v":0},null,null,null,{"$f":"$B154*2","v":0},null,null,null,{"$f":"$B154*1","v":0}]
[false,0,{"$f":"Language!A326","v":"Luxery ressource deposit - Mercurite (+3D) (+2S)"},null,null,{"$f":"$B155*3","v":0},{"$f":"$B155*2","v":0},null,null,null,null,null,null,{"$f":"$B155*3","v":0},{"$f":"$B155*2","v":0}]
[false,0,{"$f":"Language!A327","v":"Luxery ressource deposit - Meta-Entactogen (+3In) (+2A)"},null,null,null,null,{"$f":"$B156*3","v":0},{"$f":"$B156*2","v":0},null,null,null,null,null,null,{"$f":"$B156*3","v":0},{"$f":"$B156*2","v":0}]
[false,0,{"$f":"Language!A328","v":"Luxery ressource deposit - Bluecap Mold (+1F) (+1D) (+1A)"},{"$f":"$B157*1","v":0},null,{"$f":"$B157*1","v":0},null,null,{"$f":"$B157*1","v":0},null,null,{"$f":"$B157*1","v":0},null,{"$f":"$B157*1","v":0},null,null,{"$f":"$B157*1","v":0}]
[false,0,{"$f":"Language!A329","v":"Luxery ressource deposit - Gossamer (+4D)"},null,null,{"$f":"$B158*4","v":0},null,null,null,null,null,null,null,{"$f":"$B158*4","v":0}]
[false,0,{"$f":"Language!A330","v":"Luxery ressource deposit - Dark Glitter (+1I) (+2S)"},null,{"$f":"$B159*1","v":0},null,{"$f":"$B159*2","v":0},null,null,null,null,null,{"$f":"$B159*1","v":0},null,{"$f":"$B159*2","v":0}]
[false,0,{"$f":"Language!A331","v":"Luxery ressource deposit - Void Stone (+4I)"},null,{"$f":"$B160*4","v":0},null,null,null,null,null,null,null,{"$f":"$B160*4","v":0}]
[false,0,{"$f":"Language!A332","v":"Luxery ressource deposit - Proto-Orchid (+1F) (+1I) (+1D) (+1S)"},{"$f":"$B161*1","v":0},{"$f":"$B161*1","v":0},{"$f":"$B161*1","v":0},{"$f":"$B161*1","v":0},null,null,null,null,{"$f":"$B161*1","v":0},{"$f":"$B161*1","v":0},{"$f":"$B161*1","v":0},{"$f":"$B161*1","v":0}]
[false,0,{"$f":"Language!A333","v":"Luxery ressource deposit - Proto-spores (+2F) (+2I) (+2D) (+2S) (+2A)"},{"$f":"$B162*2","v":0},{"$f":"$B162*2","v":0},{"$f":"$B162*2","v":0},{"$f":"$B162*2","v":0},null,{"$f":"$B162*2","v":0},null,null,{"$f":"$B162*2","v":0},{"$f":"$B162*2","v":0},{"$f":"$B162*2","v":0},{"$f":"$B162*2","v":0},null,{"$f":"$B162*2","v":0}]
[false,0,{"$f":"Language!A334","v":"Luxery ressource deposit - RedSang (+1F) (+2D)"},{"$f":"$B163*1","v":0},null,{"$f":"$B163*2","v":0},null,null,null,null,null,{"$f":"$B163*1","v":0},null,{"$f":"$B163*2","v":0}]
[false,0,{"$f":"Language!A335","v":"Luxery ressource deposit - Superspuds (+2F) (+1A)"},{"$f":"$B164*2","v":0},null,null,null,null,{"$f":"$B164*1","v":0},null,null,{"$f":"$B164*2","v":0},null,null,null,null,{"$f":"$B164*1","v":0}]
[false,0,{"$f":"Language!A336","v":"Luxery ressource deposit - Transvine (+3A)"},null,null,null,null,null,{"$f":"$B165*3","v":0},null,null,null,null,null,null,null,{"$f":"$B165*3","v":0}]
[null,null,{"$f":"Language!A337","v":"Systems development (Level 2 / 3 / 4 modernization)"}]
[0,{"$f":"A167","v":0},{"$f":"Language!A338","v":"System development - Lost Cities (N-P Artifacts) (+2A)"},null,null,null,null,null,{"$f":"$B167*2","v":0},null,null,null,null,null,null,null,{"$f":"$B167*2","v":0}]
[0,0,{"$f":"Language!A339","v":"System development - Ionic Crystal (+4S)"},null,null,null,{"$f":"$B168*4","v":0},null,null,null,null,null,null,null,{"$f":"$B168*4","v":0}]
[0,0,{"$f":"Language!A340","v":"System development - Giga Lattice (+2In)"},null,null,null,null,{"$f":"$B169*2","v":0},null,null,null,null,null,null,null,{"$f":"$B169*2","v":0}]
[0,0,{"$f":"Language!A341","v":"System development - Hydromiel (+4F)"},{"$f":"$B170*4","v":0},null,null,null,null,null,null,null,{"$f":"$B170*4","v":0}]
[0,0,{"$f":"Language!A342","v":"System development - Void Stone (+4I)"},null,{"$f":"$B171*4","v":0},null,null,null,null,null,null,null,{"$f":"$B171*4","v":0}]
[0,0,{"$f":"Language!A343","v":"System development - Proto-Orchid (+4D)"},null,null,{"$f":"$B172*4","v":0},null,null,null,null,null,null,null,{"$f":"$B172*4","v":0}]
[0,{"$f":"A173","v":0},{"$f":"Language!A344","v":"System development - Vaulters - Adamantian (+3F) (+3I)"},{"$f":"$B173*3","v":0},{"$f":"$B173*3","v":0},null,null,null,null,null,null,{"$f":"$B173*3","v":0},{"$f":"$B173*3","v":0}]
[0,{"$f":"A174","v":0},{"$f":"Language!A345","v":"System development - Vaulters - Antimatter (+3D) (+3S)"},null,null,{"$f":"$B174*3","v":0},{"$f":"$B174*3","v":0},null,null,null,null,null,null,{"$f":"$B174*3","v":0},{"$f":"$B174*3","v":0}]
[null,null,{"$f":"Language!A346","v":"Anomalies"},null,null,null,null,null,null,null,{"$f":"Language!A176","v":"Reduced anomaly"}]
[false,{"$f":"IF(A176,1,0)","v":0},{"$f":"Language!A347","v":"Moon - Binary Moons (+1P) → Binary Moons (+1P) / Explored Moons (+1I) (+2P)"},null,{"$f":"$B176*1*$T$4","v":0},null,null,null,null,{"$f":"$B176*(1+$T$4)","v":0},"↓",null,{"$f":"$B176*1*$T$4","v":0},null,null,null,null,{"$f":"$B176*(1+$T$4)","v":0},null,null,{"$f":"IF(AND(A176,$P$3=Language!$A$101),Language!$A$671,\"\")","v":""}]
[false,{"$f":"IF(A177,1,0)","v":0},{"$f":"Language!A348","v":"Moon - Multiple Moons (+1P) → Multiple Moons (+1P) / Explored Moons (+2I) (+2P)"},null,{"$f":"$B177*2*$T$4","v":0},null,null,null,null,{"$f":"$B177*(1+$T$4)","v":0},null,null,{"$f":"$B177*2*$T$4","v":0},null,null,null,null,{"$f":"$B177*(1+$T$4)","v":0},null,null,{"$f":"IF(AND(A177,$P$3=Language!$A$101),Language!$A$671,\"\")","v":""}]
[false,{"$f":"IF(A178,1,0)","v":0},{"$f":"Language!A349","v":"Moon - Single Moon (+1P) → Single Moon (+1P) / Explored Moon (+1I) (+1P)"},null,{"$f":"$B178*1*$T$4","v":0},null,null,null,null,{"$f":"$B178*1","v":0},null,null,{"$f":"$B178*1*$T$4","v":0},null,null,null,null,{"$f":"$B178*1","v":0},null,null,{"$f":"IF(AND(A178,$P$3=Language!$A$101),Language!$A$671,\"\")","v":""}]
[false,{"$f":"IF(A179,1,0)","v":0},{"$f":"Language!A350","v":"Mixed anomaly - Geothermic Activity (+1I) (1S)"},null,{"$f":"$B179*1","v":0},null,{"$f":"$B179*-1*$S179","v":0},null,null,null,false,null,{"$f":"$B179*1","v":0},null,{"$f":"$B179*-1*$S179","v":0},null,null,null,{"$f":"IF($K179,0,1)","v":1},null,{"$f":"IF(AND(A179,$P$3=Language!$A$101),Language!$A$671,\"\")","v":""}]
[false,0,{"$f":"Language!A351","v":"Mixed anomaly - Seismic Activity (-1D) (+1S) (-2A)"},null,null,{"$f":"$B180*-1*$S180","v":0},null,{"$f":"$B180*1","v":0},{"$f":"$B180*-2*$S180","v":0},null,false,null,null,{"$f":"$B180*-1*$S180","v":0},null,{"$f":"$B180*1","v":0},{"$f":"$B180*-2*$S180","v":0},null,{"$f":"IF($K180,0,1)","v":1},null,{"$f":"IF(AND(A180,$P$3=Language!$A$101),Language!$A$671,\"\")","v":""}]
[false,0,{"$f":"Language!A352","v":"Mixed anomaly - Psychoactive Air (+1D) (-1S) (+1A)"},null,null,{"$f":"$B181*1","v":0},{"$f":"$B181*-1*$S181","v":0},null,{"$f":"$B181*1","v":0},null,false,null,null,{"$f":"$B181*1","v":0},{"$f":"$B181*-1*$S181","v":0},null,{"$f":"$B181*1","v":0},null,1,null,{"$f":"IF(AND(A181,$P$3=Language!$A$101),Language!$A$671,\"\")","v":""}]
[false,0,{"$f":"Language!A353","v":"Mixed anomaly - Aurora Waves (+2D) (-2S) ( +1A)"},null,null,{"$f":"$B182*2","v":0},{"$f":"$B182*-2*$S182","v":0},null,{"$f":"$B182*1","v":0},null,false,null,null,{"$f":"$B182*2","v":0},{"$f":"$B182*-2*$S182","v":0},null,{"$f":"$B182*1","v":0},null,1,null,{"$f":"IF(AND(A182,$P$3=Language!$A$101),Language!$A$671,\"\")","v":""}]
[false,0,{"$f":"Language!A354","v":"Mixed anomaly - Shattered Crust / Tunneled Crust (-1I) (+2D) (-2A)"},null,{"$f":"$B183*-1*$S183","v":0},{"$f":"$B183*2","v":0},null,null,{"$f":"$B183*-2*$S183","v":0},null,false,null,{"$f":"$B183*-1*$S183","v":0},{"$f":"$B183*2","v":0},null,null,{"$f":"$B183*-2*$S183","v":0},null,1,null,{"$f":"IF(AND(A183,$P$3=Language!$A$101),Language!$A$671,\"\")","v":""}]
[false,0,{"$f":"Language!A355","v":"Mixed anomaly - Metallic Waters (-1F) (+1I) (-2A)"},{"$f":"$B184*-1*$S184","v":0},{"$f":"$B184*1","v":0},null,null,null,0,null,false,{"$f":"$B184*-1*$S184","v":0},{"$f":"$B184*1","v":0},null,null,null,0,null,1,null,{"$f":"IF(AND(A184,$P$3=Language!$A$101),Language!$A$671,\"\")","v":""}]
[false,0,{"$f":"Language!A356","v":"Mixed anomaly - Hostile Fauna / Docile Fauna (+1F)(-1S) (-2A)"},{"$f":"$B185*1","v":0},null,null,{"$f":"$B185*-1*$S185","v":0},null,0,null,false,{"$f":"$B185*1","v":0},null,null,{"$f":"$B185*-1*$S185","v":0},null,0,null,1,null,{"$f":"IF(AND(A185,$P$3=Language!$A$101),Language!$A$671,\"\")","v":""}]
[false,0,{"$f":"Language!A357","v":"Mixed anomaly - Meteor Strikes (+1I) (-1S) (-2A)"},null,{"$f":"$B186*1","v":0},null,{"$f":"$B186*-1*$S186","v":0},null,0,null,false,null,{"$f":"$B186*1","v":0},null,{"$f":"$B186*-1*$S186","v":0},null,0,null,1,null,{"$f":"IF(AND(A186,$P$3=Language!$A$101),Language!$A$671,\"\")","v":""}]
[false,0,{"$f":"Language!A358","v":"Mixed anomaly - Ice-10 (-2F) (+2S) (-2A)"},{"$f":"$B187*-2*$S187","v":0},null,null,{"$f":"$B187*2","v":0},null,0,null,false,{"$f":"$B187*-2*$S187","v":0},null,null,{"$f":"$B187*2","v":0},null,0,null,1,null,{"$f":"IF(AND(A187,$P$3=Language!$A$101),Language!$A$671,\"\")","v":""}]
[false,{"$f":"IF(A188,1,0)","v":0},{"$f":"Language!A359","v":"Mixed anomaly - Flickering Matter (-1I) (+2S)"},null,{"$f":"$B188*-1*$S188","v":0},null,{"$f":"$B188*2","v":0},null,null,null,false,null,{"$f":"$B188*-1*$S188","v":0},null,{"$f":"$B188*2","v":0},null,null,null,1,null,{"$f":"IF(AND(A188,$P$3<>Language!$A$101),Language!$A$672,\"\")","v":""}]
[false,0,{"$f":"Language!A360","v":"Mixed anomaly - Pseudo-Atmosphere (-2S) (+1In) (+1A)"},null,null,null,{"$f":"$B189*-2*$S189","v":0},{"$f":"$B189*1","v":0},{"$f":"$B189*1","v":0},null,false,null,null,null,{"$f":"$B189*-2*$S189","v":0},{"$f":"$B189*1","v":0},{"$f":"$B189*1","v":0},null,1,null,{"$f":"IF(AND(A189,$P$3<>Language!$A$101),Language!$A$672,\"\")","v":""}]
[false,0,{"$f":"Language!A361","v":"Detrimental anomaly - Strong Magnetic Field (-1I) (-1S) (-2A)"},null,{"$f":"$B190*-1*$S190","v":0},null,{"$f":"$B190*-1*$S190","v":0},null,0,null,false,null,{"$f":"$B190*-1*$S190","v":0},null,{"$f":"$B190*-1*$S190","v":0},null,0,null,1,null,{"$f":"IF(AND(A190,$P$3=Language!$A$101),Language!$A$671,\"\")","v":""}]
[false,{"$f":"IF(A191,1,0)","v":0},{"$f":"Language!A362","v":"Detrimental anomaly - Low-Quality Foundations (-1FIDS)"},{"$f":"$B191*-1*$S191","v":0},{"$f":"$B191*-1*$S191","v":0},{"$f":"$B191*-1*$S191","v":0},{"$f":"$B191*-1*$S191*$S191","v":0},null,null,null,false,{"$f":"$B191*-1*$S191","v":0},{"$f":"$B191*-1*$S191","v":0},{"$f":"$B191*-1*$S191","v":0},{"$f":"$B191*-1*$S191*$S191","v":0},null,null,null,1,null,{"$f":"IF(AND(A191,$P$3<>Language!$A$101),Language!$A$672,\"\")","v":""}]
[false,0,{"$f":"Language!A363","v":"Detrimental anomaly - High Gravity / Acceptable Gravity (-2I) (-1S) (-2A)"},null,{"$f":"$B192*-2*$S192","v":0},null,{"$f":"$B192*-1*$S192","v":0},null,0,null,false,null,{"$f":"$B192*-2*$S192","v":0},null,{"$f":"$B192*-1*$S192","v":0},null,0,null,1,null,{"$f":"IF(AND(A192,$P$3=Language!$A$101),Language!$A$671,\"\")","v":""}]
[false,0,{"$f":"Language!A364","v":"Detrimental anomaly - Irradiated / Irradiated (-1F) (-1S) (-4A)"},{"$f":"$B193*-1*$S193","v":0},null,null,{"$f":"$B193*-1*$S193","v":0},null,{"$f":"$B193*-4*$S193","v":0},null,false,{"$f":"$B193*-1*$S193","v":0},null,null,{"$f":"$B193*-1*$S193","v":0},null,{"$f":"$B193*-4*$S193","v":0},null,1,null,{"$f":"IF(AND(A193,$P$3=Language!$A$101),Language!$A$671,\"\")","v":""}]
[false,0,{"$f":"Language!A365","v":"Detrimental anomaly -Long Season (-1F) (-1D)"},{"$f":"$B194*-1*$S194","v":0},null,{"$f":"$B194*-1*$S194","v":0},null,null,null,null,false,{"$f":"$B194*-1*$S194","v":0},null,{"$f":"$B194*-1*$S194","v":0},null,null,null,null,1,null,{"$f":"IF(AND(A194,$P$3=Language!$A$101),Language!$A$671,\"\")","v":""}]
[false,0,{"$f":"Language!A366","v":"Detrimental anomaly - Permanent Monsoon (-2F) (-2I) (-2A)"},{"$f":"$B195*-2*$S195","v":0},null,{"$f":"$B195*-2*$S195","v":0},null,null,{"$f":"$B195*-2*$S195","v":0},null,false,{"$f":"$B195*-2*$S195","v":0},null,{"$f":"$B195*-2*$S195","v":0},null,null,{"$f":"$B195*-2*$S195","v":0},null,1,null,{"$f":"IF(AND(A195,$P$3=Language!$A$101),Language!$A$671,\"\")","v":""}]
[false,0,{"$f":"Language!A367","v":"Detrimental anomaly - Acid Rain (-2I) (-4A)"},null,{"$f":"$B196*-2*$S196","v":0},null,null,null,{"$f":"$B196*-4*$S196","v":0},null,false,null,{"$f":"$B196*-2*$S196","v":0},null,null,null,{"$f":"$B196*-4*$S196","v":0},null,1,null,{"$f":"IF(AND(A196,$P$3=Language!$A$101),Language!$A$671,\"\")","v":""}]
[false,0,{"$f":"Language!A368","v":"Detrimental anomaly - Poor Soil / Arable Soil (-3F) (-2A)"},{"$f":"$B197*-3*$S197","v":0},null,null,null,null,{"$f":"$B197*-2*$S197","v":0},null,false,{"$f":"$B197*-3*$S197","v":0},null,null,null,null,{"$f":"$B197*-2*$S197","v":0},null,1,null,{"$f":"IF(AND(A197,$P$3=Language!$A$101),Language!$A$671,\"\")","v":""}]
[false,0,{"$f":"Language!A369","v":"Detrimental anomaly - Kessler Syndrome (-1I) (-1D) (-2S)"},null,{"$f":"$B198*-1*$S198","v":0},{"$f":"$B198*-1*$S198","v":0},{"$f":"$B198*-2*$S198","v":0},null,null,null,false,null,{"$f":"$B198*-1*$S198","v":0},{"$f":"$B198*-1*$S198","v":0},{"$f":"$B198*-2*$S198","v":0},null,null,null,1,null,{"$f":"IF(AND(A198,$P$3=Language!$A$101),Language!$A$671,\"\")","v":""}]
[false,0,{"$f":"Language!A370","v":"Detrimental anomaly - Polar Tempests (-1F) (-1I) (-2A)"},{"$f":"$B199*-1*$S199","v":0},{"$f":"$B199*-1*$S199","v":0},null,null,null,{"$f":"$B199*-2*$S199","v":0},null,false,{"$f":"$B199*-1*$S199","v":0},{"$f":"$B199*-1*$S199","v":0},null,null,null,{"$f":"$B199*-2*$S199","v":0},null,1,null,{"$f":"IF(AND(A199,$P$3=Language!$A$101),Language!$A$671,\"\")","v":""}]
[false,{"$f":"IF(A200,1,0)","v":0},{"$f":"Language!A371","v":"Detrimental anomaly - Uninhabitable Area (-2A) (-1P)"},null,null,null,null,null,{"$f":"$B200*-2*$S200","v":0},{"$f":"$B200*-1*$S200","v":0},false,null,null,null,null,null,{"$f":"$B200*-2*$S200","v":0},{"$f":"$B200*-1*$S200","v":0},1,null,{"$f":"IF(AND(A200,$P$3<>Language!$A$101),Language!$A$672,\"\")","v":""}]
[false,{"$f":"IF(A201,1,0)","v":0},{"$f":"Language!A372","v":"Beneficial anomaly - Dust Accretor (+4D)"},null,null,{"$f":"$B201*4","v":0},null,null,null,null,null,null,null,{"$f":"$B201*4","v":0},null,null,null,null,null,null,{"$f":"IF(AND(A201,$P$3<>Language!$A$101),Language!$A$672,\"\")","v":""}]
[false,0,{"$f":"Language!A373","v":"Beneficial anomaly - Antonov Rings (+2D) (+1S)"},null,null,{"$f":"$B202*2","v":0},{"$f":"$B202*1","v":0},null,null,null,null,null,null,{"$f":"$B202*2","v":0},{"$f":"$B202*1","v":0},null,null,null,null,null,{"$f":"IF(AND(A202,$P$3=Language!$A$101),Language!$A$671,\"\")","v":""}]
[false,0,{"$f":"Language!A374","v":"Beneficial anomaly - Huygens Rings (+1D) (+2S)"},null,null,{"$f":"$B203*1","v":0},{"$f":"$B203*2","v":0},null,null,null,null,null,null,{"$f":"$B203*1","v":0},{"$f":"$B203*2","v":0},null,null,null,null,null,{"$f":"IF(AND(A203,$P$3=Language!$A$101),Language!$A$671,\"\")","v":""}]
[false,0,{"$f":"Language!A375","v":"Beneficial anomaly - Dense Atmosphere (+2F)"},{"$f":"$B204*2","v":0},null,null,null,null,null,null,null,{"$f":"$B204*2","v":0},null,null,null,null,null,null,null,null,{"$f":"IF(AND(A204,$P$3=Language!$A$101),Language!$A$671,\"\")","v":""}]
[false,0,{"$f":"Language!A376","v":"Beneficial anomaly - Friendly Locals (+1F) (+2A) (+1P)"},{"$f":"$B205*1","v":0},null,null,null,null,{"$f":"$B205*2","v":0},{"$f":"$B205*1","v":0},null,{"$f":"$B205*1","v":0},null,null,null,null,{"$f":"$B205*2","v":0},{"$f":"$B205*1","v":0},null,null,{"$f":"IF(AND(A205,$P$3=Language!$A$101),Language!$A$671,\"\")","v":""}]
[false,0,{"$f":"Language!A377","v":"Beneficial anomaly - Behemoth Song (+5D) (+3A)"},null,null,{"$f":"$B206*5","v":0},null,null,{"$f":"$B206*3","v":0},null,null,null,null,{"$f":"$B206*5","v":0},null,null,{"$f":"$B206*3","v":0},null,null,null,{"$f":"IF(AND(A206,$P$3=Language!$A$101),Language!$A$671,\"\")","v":""}]
[false,0,{"$f":"Language!A378","v":"Beneficial anomaly - Deserted Cities (+2I) (+1D) (+2S)"},null,{"$f":"$B207*2","v":0},{"$f":"$B207*1","v":0},{"$f":"$B207*2","v":0},null,null,null,null,null,{"$f":"$B207*2","v":0},{"$f":"$B207*1","v":0},{"$f":"$B207*2","v":0},null,null,null,null,null,{"$f":"IF(AND(A207,$P$3=Language!$A$101),Language!$A$671,\"\")","v":""}]
[false,0,{"$f":"Language!A379","v":"Beneficial anomaly - Husk of Knowledge (+5S)"},null,null,null,{"$f":"$B208*5","v":0},null,null,null,null,null,null,null,{"$f":"$B208*5","v":0},null,null,null,null,null,{"$f":"IF(AND(A208,$P$3=Language!$A$101),Language!$A$671,\"\")","v":""}]
[false,0,{"$f":"Language!A380","v":"Beneficial anomaly - Cyber Flora (+1F) (+2S) (+1A)"},{"$f":"$B209*1","v":0},null,null,{"$f":"$B209*2","v":0},null,{"$f":"$B209*1","v":0},null,null,{"$f":"$B209*1","v":0},null,null,{"$f":"$B209*2","v":0},null,{"$f":"$B209*1","v":0},null,null,null,{"$f":"IF(AND(A209,$P$3=Language!$A$101),Language!$A$671,\"\")","v":""}]
[false,{"$f":"IF(A210,1,0)","v":0},{"$f":"Language!A381","v":"Beneficial anomaly - Mutated Flora (+2F) (+2A)"},{"$f":"$B210*2","v":0},null,null,null,null,{"$f":"$B210*2","v":0},null,null,{"$f":"$B210*2","v":0},null,null,null,null,{"$f":"$B210*2","v":0},null,null,null,{"$f":"IF(AND(A210,$P$3=Language!$A$101),Language!$A$671,\"\")","v":""}]
[false,0,{"$f":"Language!A382","v":"Beneficial anomaly - Strange Fossils (+2I +1D)"},null,{"$f":"$B211*2","v":0},{"$f":"$B211*1","v":0},null,null,null,null,null,null,{"$f":"$B211*2","v":0},{"$f":"$B211*1","v":0},null,null,null,null,null,null,{"$f":"IF(AND(A211,$P$3=Language!$A$101),Language!$A$671,\"\")","v":""}]
[false,0,{"$f":"Language!A383","v":"Beneficial anomaly - Low Gravity (+2I) (+2A)"},null,{"$f":"$B212*2","v":0},null,null,null,{"$f":"$B212*2","v":0},null,null,null,{"$f":"$B212*2","v":0},null,null,null,{"$f":"$B212*2","v":0},null,null,null,{"$f":"IF(AND(A212,$P$3=Language!$A$101),Language!$A$671,\"\")","v":""}]
[false,0,{"$f":"Language!A384","v":"Beneficial anomaly - Humeris Insidentes (+4S)"},null,null,null,{"$f":"$B213*4","v":0},null,null,null,null,null,null,null,{"$f":"$B213*4","v":0},null,null,null,null,null,{"$f":"IF(AND(A213,$P$3=Language!$A$101),Language!$A$671,\"\")","v":""}]
[false,0,{"$f":"Language!A385","v":"Beneficial anomaly - Garden of Eden (+1F) (+1I) (+1D) (+1S) (+2A) (+1P)"},{"$f":"$B214*1","v":0},{"$f":"$B214*1","v":0},{"$f":"$B214*1","v":0},{"$f":"$B214*1","v":0},null,{"$f":"$B214*2","v":0},{"$f":"$B214*1","v":0},null,{"$f":"$B214*1","v":0},{"$f":"$B214*1","v":0},{"$f":"$B214*1","v":0},{"$f":"$B214*1","v":0},null,{"$f":"$B214*2","v":0},{"$f":"$B214*1","v":0},null,null,{"$f":"IF(AND(A214,$P$3=Language!$A$101),Language!$A$671,\"\")","v":""}]
[false,0,{"$f":"Language!A386","v":"Beneficial anomaly - The Platform of Ys (+2P)"},null,null,null,null,null,null,{"$f":"$B215*2","v":0},null,null,null,null,null,null,null,{"$f":"$B215*2","v":0},null,null,{"$f":"IF(AND(A215,$P$3=Language!$A$101),Language!$A$671,\"\")","v":""}]
[false,0,{"$f":"Language!A387","v":"Beneficial anomaly - Tree of Worlds (+2F) (+6I)"},{"$f":"$B216*2","v":0},null,null,null,null,{"$f":"$B216*6","v":0},null,null,{"$f":"$B216*2","v":0},null,null,null,null,{"$f":"$B216*6","v":0},null,null,null,{"$f":"IF(AND(A216,$P$3=Language!$A$101),Language!$A$671,\"\")","v":""}]
[false,0,{"$f":"Language!A388","v":"Beneficial anomaly - The Seventeen Thousand Islands Bridge (+1Σ) (+2P)"},{"$f":"$B217*1","v":0},{"$f":"$B217*1","v":0},{"$f":"$B217*1","v":0},{"$f":"$B217*1","v":0},{"$f":"$B217*1","v":0},null,{"$f":"$B217*2","v":0},null,{"$f":"$B217*1","v":0},{"$f":"$B217*1","v":0},{"$f":"$B217*1","v":0},{"$f":"$B217*1","v":0},{"$f":"$B217*1","v":0},null,{"$f":"$B217*2","v":0},null,null,{"$f":"IF(AND(A217,$P$3=Language!$A$101),Language!$A$671,\"\")","v":""}]
[false,0,{"$f":"Language!A389","v":"Beneficial anomaly - The Fallen Gardens (+2I)"},null,{"$f":"$B218*2","v":0},null,null,null,null,null,null,null,{"$f":"$B218*2","v":0},null,null,null,null,null,null,null,{"$f":"IF(AND(A218,$P$3=Language!$A$101),Language!$A$671,\"\")","v":""}]
[false,0,{"$f":"Language!A390","v":"Beneficial anomaly - Microfactories (+3F) (+1A)"},{"$f":"$B219*3","v":0},null,null,null,null,{"$f":"$B219*1","v":0},null,null,{"$f":"$B219*3","v":0},null,null,null,null,{"$f":"$B219*1","v":0},null,null,null,{"$f":"IF(AND(A219,$P$3=Language!$A$101),Language!$A$671,\"\")","v":""}]
[false,0,{"$f":"Language!A391","v":"Beneficial anomaly - Dust Lode (+2D) (+2S)"},null,null,{"$f":"$B220*2","v":0},{"$f":"$B220*2","v":0},null,null,null,null,null,null,{"$f":"$B220*2","v":0},{"$f":"$B220*2","v":0},null,null,null,null,null,{"$f":"IF(AND(A220,$P$3=Language!$A$101),Language!$A$671,\"\")","v":""}]
[false,0,{"$f":"Language!A392","v":"Beneficial anomaly - Talking World (+2In) (+2A)"},null,null,null,null,{"$f":"$B221*2","v":0},{"$f":"$B221*2","v":0},null,null,null,null,null,null,{"$f":"$B221*2","v":0},{"$f":"$B221*2","v":0},null,null,null,{"$f":"IF(AND(A221,$P$3=Language!$A$101),Language!$A$671,\"\")","v":""}]
[false,0,{"$f":"Language!A393","v":"Beneficial anomaly - Dust Nebula (+2D)"},null,null,{"$f":"$B222*2","v":0},null,null,null,null,null,null,null,{"$f":"$B222*2","v":0},null,null,null,null,null,null,{"$f":"IF(AND(A222,$P$3=Language!$A$101),Language!$A$671,\"\")","v":""}]
[false,0,{"$f":"Language!A394","v":"Beneficial anomaly - Hollow Planet (+1D) (+1S) (+1P)"},null,null,{"$f":"$B223*1","v":0},{"$f":"$B223*1","v":0},null,null,{"$f":"$B223*1","v":0},null,null,null,{"$f":"$B223*1","v":0},{"$f":"$B223*1","v":0},null,null,{"$f":"$B223*1","v":0},null,null,{"$f":"IF(AND(A223,$P$3=Language!$A$101),Language!$A$671,\"\")","v":""}]
[false,0,{"$f":"Language!A395","v":"Beneficial anomaly - High-Energy Plasmasphere (+1I) (+2S)"},null,{"$f":"$B224*1","v":0},null,{"$f":"$B224*2","v":0},null,null,null,null,null,{"$f":"$B224*1","v":0},null,{"$f":"$B224*2","v":0},null,null,null,null,null,{"$f":"IF(AND(A224,$P$3=Language!$A$101),Language!$A$671,\"\")","v":""}]
[false,0,{"$f":"Language!A396","v":"Beneficial anomaly - Tunneled Slipgates [No blockade penalty] [+1 Trade value]"},null,null,null,null,null,null,null,null,null,null,null,null,null,null,null,null,null,{"$f":"IF(AND(A225,$P$3=Language!$A$101),Language!$A$671,\"\")","v":""}]
[false,0,{"$f":"Language!A397","v":"Beneficial anomaly - Coral Reefs (+2F) (+2A)"},{"$f":"$B226*2","v":0},null,null,null,null,{"$f":"$B226*2","v":0},null,null,{"$f":"$B226*2","v":0},null,null,null,null,{"$f":"$B226*2","v":0},null,null,null,{"$f":"IF(AND(A226,$P$3=Language!$A$101),Language!$A$671,\"\")","v":""}]
[false,0,{"$f":"Language!A398","v":"Beneficial anomaly - Mineral Rich (+3I)"},null,{"$f":"$B227*3","v":0},null,null,null,null,null,null,null,{"$f":"$B227*3","v":0},null,null,null,null,null,null,null,{"$f":"IF(AND(A227,$P$3=Language!$A$101),Language!$A$671,\"\")","v":""}]
[false,0,{"$f":"Language!A399","v":"Beneficial anomaly - Ancient Ruins (+4D)"},null,null,{"$f":"$B228*4","v":0},null,null,null,null,null,null,null,{"$f":"$B228*4","v":0},null,null,null,null,null,null,{"$f":"IF(AND(A228,$P$3=Language!$A$101),Language!$A$671,\"\")","v":""}]
[false,0,{"$f":"Language!A400","v":"Beneficial anomaly - Dust Ruins (+3D) (+2A)"},null,null,{"$f":"$B229*3","v":0},null,null,{"$f":"$B229*2","v":0},null,null,null,null,{"$f":"$B229*3","v":0},null,null,{"$f":"$B229*2","v":0},null,null,null,{"$f":"IF(AND(A229,$P$3=Language!$A$101),Language!$A$671,\"\")","v":""}]
[false,0,{"$f":"Language!A401","v":"Beneficial anomaly - Propitious Seasons (+2F) (+1A)"},{"$f":"$B230*2","v":0},null,null,null,null,{"$f":"$B230*1","v":0},null,null,{"$f":"$B230*2","v":0},null,null,null,null,{"$f":"$B230*1","v":0},null,null,null,{"$f":"IF(AND(A230,$P$3=Language!$A$101),Language!$A$671,\"\")","v":""}]
[false,0,{"$f":"Language!A402","v":"Beneficial anomaly - Spotora's Sanctum (+2D) (+3S)"},null,null,{"$f":"$B231*2","v":0},{"$f":"$B231*3","v":0},null,null,null,null,null,null,{"$f":"$B231*2","v":0},{"$f":"$B231*3","v":0},null,null,null,null,null,{"$f":"IF(AND(A231,$P$3=Language!$A$101),Language!$A$671,\"\")","v":""}]
[false,0,{"$f":"Language!A403","v":"Beneficial anomaly - Rich Soil (+3F)"},{"$f":"$B232*3","v":0},null,null,null,null,null,null,null,{"$f":"$B232*3","v":0},null,null,null,null,null,null,null,null,{"$f":"IF(AND(A232,$P$3=Language!$A$101),Language!$A$671,\"\")","v":""}]
[false,0,{"$f":"Language!A404","v":"Beneficial anomaly - Molten Springs (+3I) (+2D)"},null,{"$f":"$B233*3","v":0},{"$f":"$B233*2","v":0},null,null,null,null,null,null,{"$f":"$B233*3","v":0},{"$f":"$B233*2","v":0},null,null,null,null,null,null,{"$f":"IF(AND(A233,$P$3=Language!$A$101),Language!$A$671,\"\")","v":""}]
[false,0,{"$f":"Language!A405","v":"Beneficial anomaly - Fearful Symmetry (+5S) (+3A)"},null,null,null,{"$f":"$B234*5","v":0},null,{"$f":"$B234*3","v":0},null,null,null,null,null,{"$f":"$B234*5","v":0},null,{"$f":"$B234*3","v":0},null,null,null,{"$f":"IF(AND(A234,$P$3=Language!$A$101),Language!$A$671,\"\")","v":""}]
[false,{"$f":"IF(A235,1,0)","v":0},{"$f":"Language!A406","v":"Beneficial anomaly - Artificial Life (+3F) (+2S)"},{"$f":"$B235*3","v":0},null,null,{"$f":"$B235*2","v":0},null,null,null,null,{"$f":"$B235*3","v":0},null,null,{"$f":"$B235*2","v":0},null,null,null,null,null,{"$f":"IF(AND(A235,$P$3<>Language!$A$101),Language!$A$672,\"\")","v":""}]
[false,0,{"$f":"Language!A407","v":"Beneficial anomaly - Hadopelagic Life (+1F) (+2S)"},{"$f":"$B236*1","v":0},null,null,{"$f":"$B236*2","v":0},null,null,null,null,{"$f":"$B236*1","v":0},null,null,{"$f":"$B236*2","v":0},null,null,null,null,null,{"$f":"IF(AND(A236,$P$3=Language!$A$101),Language!$A$671,\"\")","v":""}]
[false,0,{"$f":"Language!A408","v":"Beneficial anomaly - Komatiite Volcano (+4I)"},null,{"$f":"$B237*4","v":0},null,null,null,null,null,null,null,{"$f":"$B237*4","v":0},null,null,null,null,null,null,null,{"$f":"IF(AND(A237,$P$3=Language!$A$101),Language!$A$671,\"\")","v":""}]
[null,null,{"$f":"Language!A409","v":"Curiosities"}]
[false,{"$f":"IF(A239,1,0)","v":0},{"$f":"Language!A410","v":"Curiosity - Pre-galactic Architecture (+1D) (+1S) (+1A)"},null,null,{"$f":"$B239*1","v":0},{"$f":"$B239*1","v":0},null,{"$f":"$B239*1","v":0},null,null,null,null,{"$f":"$B239*1","v":0},{"$f":"$B239*1","v":0},null,{"$f":"$B239*1","v":0}]
[false,{"$f":"IF(A240,1,0)","v":0},{"$f":"Language!A411","v":"Curiosity - Battle - Trenches (-2F) (+2S)"},{"$f":"$B240*-1","v":0},null,null,{"$f":"$B240*1","v":0},null,null,null,null,{"$f":"$B240*-1","v":0},null,null,{"$f":"$B240*1","v":0}]
[false,0,{"$f":"Language!A412","v":"Curiosity - Battle - Devastation (-2F) (+2S)"},{"$f":"$B241*-2","v":0},null,null,{"$f":"$B241*2","v":0},null,null,null,null,{"$f":"$B241*-2","v":0},null,null,{"$f":"$B241*2","v":0}]
[false,0,{"$f":"Language!A413","v":"Curiosity - Battle - Apocalyptic Landscape (-3F) (+3S)"},{"$f":"$B242*-3","v":0},null,null,{"$f":"$B242*3","v":0},null,null,null,null,{"$f":"$B242*-3","v":0},null,null,{"$f":"$B242*3","v":0}]
[false,0,{"$f":"Language!A414","v":"Curiosity - Debris - Small Debris Field (-1D) (+1S)"},null,null,{"$f":"$B243*-1","v":0},{"$f":"$B243*1","v":0},null,null,null,null,null,null,{"$f":"$B243*-1","v":0},{"$f":"$B243*1","v":0}]
[false,0,{"$f":"Language!A415","v":"Curiosity - Debris - Medium Debris Field (-2D) (+2S)"},null,null,{"$f":"$B244*-2","v":0},{"$f":"$B244*2","v":0},null,null,null,null,null,null,{"$f":"$B244*-2","v":0},{"$f":"$B244*2","v":0}]
[false,0,{"$f":"Language!A416","v":"Curiosity - Debris - Large Debris Field (-3D) (+3S)"},null,null,{"$f":"$B245*-3","v":0},{"$f":"$B245*3","v":0},null,null,null,null,null,null,{"$f":"$B245*-3","v":0},{"$f":"$B245*3","v":0}]
[false,0,{"$f":"Language!A417","v":"Curiosity - Pirate - Gutted Pirate Hideout (+1I) (+1D)"},null,{"$f":"$B246*1","v":0},{"$f":"$B246*1","v":0},null,null,null,null,null,null,{"$f":"$B246*3","v":0},{"$f":"$B246*3","v":0}]
[false,{"$f":"IF(A247,1,0)","v":0},{"$f":"Language!A418","v":"Curiosity - Pirate - Gutted Pirate Lair (+2I) (+2D)"},null,{"$f":"$B247*2","v":0},{"$f":"$B247*2","v":0},null,null,null,null,null,null,{"$f":"$B247*2","v":0},{"$f":"$B247*2","v":0}]
[false,0,{"$f":"Language!A419","v":"Curiosity - Pirate - Gutted Pirate Stronghold (+3I) (+3D)"},null,{"$f":"$B248*3","v":0},{"$f":"$B248*3","v":0},null,null,null,null,null,null,{"$f":"$B248*2","v":0},{"$f":"$B248*2","v":0}]
[null,null,{"$f":"Language!A420","v":"Empire improvements"}]
[false,{"$f":"IF(A250,1,0)","v":0},{"$f":"Language!A421","v":"Empire improvement - Power of the Endless (+1Σ on Ecstatic / Devoted)"},{"$f":"$B250*1*$T$7","v":0},{"$f":"$B250*1*$T$7","v":0},{"$f":"$B250*1*$T$7","v":0},{"$f":"$B250*1*$T$7","v":0},{"$f":"$B250*1*$T$7","v":0},null,null,null,{"$f":"$B250*1*$T$7","v":0},{"$f":"$B250*1*$T$7","v":0},{"$f":"$B250*1*$T$7","v":0},{"$f":"$B250*1*$T$7","v":0},{"$f":"$B250*1*$T$7","v":0}]
[false,0,{"$f":"Language!A422","v":"Empire improvement - Floating Superstructures (+1P on Gas) (+1P on Large Gas) (+2P on Huge Gas)"},null,null,null,null,null,null,{"$f":"$B251*IF($P$3=Language!$A$100,$C$7-2,0)","v":0},null,null,null,null,null,null,null,{"$f":"$B251*IF($P$4=Language!$A$100,$C$7-2,0)","v":0}]
[false,0,{"$f":"Language!A423","v":"Empire improvement - Hissho - Obsidian Penance Center (+1P on Sterile)"},null,null,null,null,null,null,{"$f":"$B252*1*$O$3","v":0},null,null,null,null,null,null,null,{"$f":"$B252*1*$O$4","v":0}]
[false,0,{"$f":"Language!A424","v":"Empire improvement - Hissho - Obsidian Devotion Center (+2P on Sterile)"},null,null,null,null,null,null,{"$f":"$B253*2*$O$3","v":0},null,null,null,null,null,null,null,{"$f":"$B253*2*$O$4","v":0}]
[false,0,{"$f":"Language!A425","v":"Empire improvement - Quest - Empire Academie (+2F +2D on Original Empire population)"},{"$f":"$B254*2","v":0},null,{"$f":"$B254*2","v":0},null,null,null,null,null,{"$f":"$B254*2","v":0},null,{"$f":"$B254*2","v":0},null,null,null,null,null,null,null,null,null,null,null,true]
[false,0,{"$f":"Language!A426","v":"Empire improvement - Riftborn - Isolationist Cells (+1P on Sterile)"},null,null,null,null,null,null,{"$f":"$B255*1*$O$3","v":0},null,null,null,null,null,null,null,{"$f":"$B255*1*$O$4","v":0}]
[null,null,{"$f":"Language!A427","v":"Empire Traits"}]
[false,{"$f":"IF(A257,1,0)","v":0},{"$f":"Language!A428","v":"Faction Trait - Biophobic (+1P on Sterile) (-1P on Fertile) (+10A on Sterile) (-2A on Fertile)"},null,null,null,null,null,{"$f":"$B257*(10*$O$3-2*$N$3)","v":0},{"$f":"$B257*(1*$O$3-1*$N$3)","v":0},null,null,null,null,null,null,{"$f":"$B257*(10*$O$3-2*$N$3)","v":0},{"$f":"$B257*(1*$O$4-1*$N$4)","v":0}]
[false,{"$f":"IF(A258,1,0)","v":0},{"$f":"Language!A429","v":"Faction Trait - Agriculture Experts (minimum 5F if the natural planet value is lower than that)"},{"$f":"$B258*(MAX(5,$D$3)-$D$3)","v":0},null,null,null,null,null,null,null,{"$f":"$B258*(MAX(5,$D$4)-$D$4)","v":0},null,null,null,null,null,null,null,null,{"$f":"Language!A653","v":"Assimilation: Haroshems"}]
[false,{"$f":"IF(A259,1,0)","v":0},{"$f":"Language!A430","v":"Faction Trait - Research Experts (minimum 5S if the natural planet value is lower than that)"},null,null,null,{"$f":"$B259*(MAX(5,$G$3)-$G$3)","v":0},null,null,null,null,null,null,null,{"$f":"$B259*(MAX(5,$G$4)-$G$4)","v":0},null,null,null,null,null,{"$f":"Language!A654","v":"Assimilation: Deuyivans"}]
[false,{"$f":"IF(A260,1,0)","v":0},{"$f":"Language!A431","v":"Faction Trait - Soil Healers (+2Σ on Reduced Anomalies) [+25F per Stetile on System]"},{"$f":"$B260*2*$O$7","v":0},{"$f":"$B260*2*$O$7","v":0},{"$f":"$B260*2*$O$7","v":0},{"$f":"$B260*2*$O$7","v":0},{"$f":"$B260*2*$O$7","v":0},null,null,null,{"$f":"$B260*2*$O$7","v":0},{"$f":"$B260*2*$O$7","v":0},{"$f":"$B260*2*$O$7","v":0},{"$f":"$B260*2*$O$7","v":0},{"$f":"$B260*2*$O$7","v":0},null,null,null,null,{"$f":"Language!A655","v":"Assimilation: Sowers"}]
[false,{"$f":"IF(A261,1,0)","v":0},{"$f":"Language!A432","v":"Faction Trait - Utopian Infrastructure (+1A on Level 2 Modernization / +2A on Lvl 3 / +3A on Lvl 4)"},null,null,null,null,null,{"$f":"$B261*($T$9-1)","v":0},null,null,null,null,null,null,null,{"$f":"$B261*($T$9-1)","v":0}]
[false,{"$f":"IF(A262,1,0)","v":0},{"$f":"Language!A433","v":"Faction Trait - Crowded Planets I (+1P)"},null,null,null,null,null,null,{"$f":"$B262*1","v":0},null,null,null,null,null,null,null,{"$f":"$B262*1","v":0}]
[false,0,{"$f":"Language!A434","v":"Faction Trait - Crowded Planets II (+2P)"},null,null,null,null,null,null,{"$f":"$B263*2","v":0},null,null,null,null,null,null,null,{"$f":"$B263*2","v":0}]
[false,{"$f":"IF(A264,1,0)","v":0},{"$f":"Language!A435","v":"Faction Trait - Quest - Immigrant Integration (+2I +2S on Foreign population)"},null,{"$f":"$B264*2","v":0},null,{"$f":"$B264*2","v":0},null,null,null,null,null,{"$f":"$B264*2","v":0},null,{"$f":"$B264*2","v":0},null,null,null,null,null,null,null,null,null,null,null,"Ext"]
[null,null,{"$f":"Language!A437","v":"Other bonus & Unique planets"}]
[0,{"$f":"A266","v":0},{"$f":"Language!A438","v":"Neutron Star (+1S) (+1In)"},null,null,null,{"$f":"$B266*1","v":0},{"$f":"$B266*1","v":0},null,null,null,null,null,null,{"$f":"$B266*1","v":0},{"$f":"$B266*1","v":0}]
[false,{"$f":"IF(A267,1,0)","v":0},{"$f":"Language!A440","v":"Vanguard - Medium Snow - Riftborn's home planet (+2F) (+2I)"},{"$f":"$B267*2","v":0},{"$f":"$B267*2","v":0},null,null,null,null,null,null,{"$f":"$B267*2","v":0},{"$f":"$B267*2","v":0}]
[false,{"$f":"IF(A268,1,0)","v":0},{"$f":"Language!A441","v":"Bilgeli - variable Savannah (+4F) (+6D) (+8S) (+5In)"},{"$f":"$B268*4","v":0},null,{"$f":"$B268*6","v":0},{"$f":"$B268*8","v":0},{"$f":"$B268*5","v":0},null,null,null,{"$f":"$B268*4","v":0},null,{"$f":"$B268*6","v":0},{"$f":"$B268*8","v":0},{"$f":"$B268*5","v":0}]
[false,{"$f":"IF(A269,1,0)","v":0},{"$f":"Language!A442","v":"Husk - Medium Jungle - Cravers home planet (+2D) (+2S)"},null,null,{"$f":"$B269*2","v":0},{"$f":"$B269*2","v":0},null,null,null,null,null,null,{"$f":"$B269*2","v":0},{"$f":"$B269*2","v":0}]
[false,{"$f":"IF(A270,1,0)","v":0},{"$f":"Language!A443","v":"Chiark - Tiny Terran / Huge Desert / Small Lava - Quest (+5In)"},null,null,null,null,{"$f":"$B270*5","v":0},null,null,null,null,null,null,null,{"$f":"$B270*5","v":0}]
[false,{"$f":"IF(A271,1,0)","v":0},{"$f":"Language!A444","v":"Hekim - Medium Boreal - Sophons home planet (+3I)"},null,null,null,{"$f":"$B271*3","v":0},null,null,null,null,null,null,null,{"$f":"$B271*3","v":0}]
[false,{"$f":"IF(A272,1,0)","v":0},{"$f":"Language!A445","v":"Horatio Prime - Medium Mediterranean - Horatio's home planet (+2D) (+3S)"},null,null,{"$f":"$B272*2","v":0},{"$f":"$B272*3","v":0},null,null,null,null,null,null,{"$f":"$B272*2","v":0},{"$f":"$B272*3","v":0}]
[false,{"$f":"IF(A273,1,0)","v":0},{"$f":"Language!A446","v":"Jenes - Medium Atoll - Lumeris home planet (no bonus)"}]
[false,{"$f":"IF(A274,1,0)","v":0},{"$f":"Language!A447","v":"Koyasil - Medium Forest - Unfallen's home planet (no bonus)"}]
[false,{"$f":"IF(A275,1,0)","v":0},{"$f":"Language!A448","v":"Kyros - variable Barren (+5D) (+12S) (+10In)"},null,null,{"$f":"$B275*5","v":0},{"$f":"$B275*12","v":0},{"$f":"$B275*10","v":0},null,null,null,null,null,{"$f":"$B275*5","v":0},{"$f":"$B275*12","v":0},{"$f":"$B275*10","v":0}]
[false,{"$f":"IF(A276,1,0)","v":0},{"$f":"Language!A449","v":"Nexus - variable Crescent - Umbral Choir's home crescent (no bonus)"}]
[false,{"$f":"IF(A277,1,0)","v":0},{"$f":"Language!A450","v":"Mezan - Small Jungle / Medium Ash / Large Lava - Quest (+15In)"},null,null,null,null,{"$f":"$B277*15","v":0},null,null,null,null,null,null,null,{"$f":"$B277*15","v":0}]
[false,{"$f":"IF(A278,1,0)","v":0},{"$f":"Language!A451","v":"Raia - Medium Terran - United Empire's home planet (+1I) (+2D)"},null,{"$f":"$B278*1","v":0},{"$f":"$B278*2","v":0},null,null,null,null,null,null,{"$f":"$B278*1","v":0},{"$f":"$B278*2","v":0}]
[false,{"$f":"IF(A279,1,0)","v":0},{"$f":"Language!A452","v":"Sahar - variable Arid (+1F) (+12I) (+5S) (+4In)"},{"$f":"$B279*1","v":0},{"$f":"$B279*12","v":0},null,{"$f":"$B279*5","v":0},{"$f":"$B279*4","v":0},null,null,null,{"$f":"$B279*1","v":0},{"$f":"$B279*12","v":0},null,{"$f":"$B279*5","v":0},{"$f":"$B279*4","v":0}]
[false,{"$f":"IF(A280,1,0)","v":0},{"$f":"Language!A453","v":"Sykagoja - variable Monsoon (+12F) (+7S) (+5In)"},{"$f":"$B280*12","v":0},null,null,{"$f":"$B280*7","v":0},{"$f":"$B280*5","v":0},null,null,null,{"$f":"$B280*12","v":0},null,null,{"$f":"$B280*7","v":0},{"$f":"$B280*5","v":0}]
[false,{"$f":"IF(A281,1,0)","v":0},{"$f":"Language!A454","v":"Tchinomy - variable Tundra - Vodyani's home planet (+2I)"},null,{"$f":"$B281*2","v":0},null,null,null,null,null,null,null,{"$f":"$B281*2","v":0}]
[false,{"$f":"IF(A282,1,0)","v":0},{"$f":"Language!A455","v":"Teonha - variable Atoll (+2F) (+2I) (+2D) (+2S) (+15In)"},{"$f":"$B282*2","v":0},{"$f":"$B282*2","v":0},{"$f":"$B282*2","v":0},{"$f":"$B282*2","v":0},{"$f":"$B282*15","v":0},null,null,null,{"$f":"$B282*2","v":0},{"$f":"$B282*2","v":0},{"$f":"$B282*2","v":0},{"$f":"$B282*2","v":0},{"$f":"$B282*15","v":0}]
[false,{"$f":"IF(A283,1,0)","v":0},{"$f":"Language!A456","v":"Tor - variable Tundra (+2F) (+10D) (+2S) (+12In)"},{"$f":"$B283*2","v":0},null,{"$f":"$B283*10","v":0},{"$f":"$B283*2","v":0},{"$f":"$B283*12","v":0},null,null,null,{"$f":"$B283*2","v":0},null,{"$f":"$B283*10","v":0},{"$f":"$B283*2","v":0},{"$f":"$B283*12","v":0}]
[false,{"$f":"IF(A284,1,0)","v":0},{"$f":"Language!A457","v":"Uchi - Medium Jungle - Hissho's home planet (+3D) (+3S)"},null,null,{"$f":"$B284*3","v":0},{"$f":"$B284*3","v":0},null,null,null,null,null,null,{"$f":"$B284*3","v":0},{"$f":"$B284*3","v":0}]
[false,{"$f":"IF(A285,1,0)","v":0},{"$f":"Language!A458","v":"Veil - variable Terran (+7F) (+3I) (+8D) (+2S) (+5In)"},{"$f":"$B285*7","v":0},{"$f":"$B285*3","v":0},{"$f":"$B285*8","v":0},{"$f":"$B285*2","v":0},{"$f":"$B285*5","v":0},null,null,null,{"$f":"$B285*7","v":0},{"$f":"$B285*3","v":0},{"$f":"$B285*8","v":0},{"$f":"$B285*2","v":0},{"$f":"$B285*5","v":0}]
[null,null,{"$f":"Language!A459","v":"Other bonus (Hissho's Mining Probes, …)                                                                                         EDIT HERE →"},0,0,0,0,0,0,0,null,{"$f":"D286","v":0},{"$f":"E286","v":0},0,0,0,0,{"$f":"J286","v":0}]
[]
[null,null,"POPULATIONS"]
[]
[{"$f":"SUMIF($K$291:$K$336,\"=\"&TRUE(),$A$291:$A$336)","v":0},null,{"$f":"Language!A461","v":"Majors factions"},null,null,null,{"$f":"IF($Q$6,Language!$A167,\"\")","v":""},null,null,null,{"$f":"Language!A169","v":"Major faction"},null,null,null,{"$f":"IF($Q$7,Language!$A167,\"\")","v":""},null,null,null,null,{"$f":"SUMIF($K$291:$K$336,\"=\"&TRUE(),$T$291:$T$336)","v":0},{"$f":"Language!A170","v":"  ↓ Favor this population"}]
[0,{"$f":"A291","v":0},{"$f":"INDEX(Language!A462:A463,IF(Z291,2,1),1)","v":"Cravers (+150% FIDS on Undepleted Planets) (-10A per enslaved pop) [+1 Depletion Pt]"},{"$f":"IF($T$8=2,0,$B291*($AA$291+AA5+IF($K$291,AA8,0))*1.5)+($AA$291*$B291)","v":0},{"$f":"IF($T$8=2,0,$B291*($AA$291+AB5+IF($K$291,AB8,0))*1.5)+($AA$291*$B291)","v":0},{"$f":"IF($T$8=2,0,$B291*($AA$291+AC5+IF($K$291,AC8,0))*1.5)+($AA$291*$B291)","v":0},{"$f":"IF($T$8=2,0,$B291*($AA$291+AD5+IF($K$291,AD8,0))*1.5)+($AA$291*$B291)","v":0},null,{"$f":"SUM($A$292:$A$336)*-10*($P$6-1)","v":0},null,false,{"$f":"IF($T$8=2,0,$S291*($AA$291+AI5+IF($K$291,AI8,0))*1.5)+($AA$291*$S291)","v":0},{"$f":"IF($T$8=2,0,$S291*($AA$291+AJ5+IF($K$291,AJ8,0))*1.5)+($AA$291*$S291)","v":0},{"$f":"IF($T$8=2,0,$S291*($AA$291+AK5+IF($K$291,AK8,0))*1.5)+($AA$291*$S291)","v":0},{"$f":"IF($T$8=2,0,$S291*($AA$291+AL5+IF($K$291,AL8,0))*1.5)+($AA$291*$S291)","v":0},null,{"$f":"SUM($T$292:$T$336)*-10*($P$7-1)","v":0},null,{"$f":"T291","v":0},0,null,null,null,null,null,false,{"$f":"IF($Z291,2,0)","v":0}]
[0,{"$f":"A292*AA292","v":0},{"$f":"INDEX(Language!A464:A465,IF(Z292,2,1),1)","v":"Umbral Choir (+1S) (+1PP)"},null,null,null,{"$f":"$B292*1*$P$6","v":0},null,null,null,false,null,null,null,{"$f":"$S292*1*$P$7","v":0},null,null,null,{"$f":"T292*AA292","v":0},0,null,null,null,null,null,false,{"$f":"IF($Z292,2,1)","v":1}]
[0,{"$f":"A293*AA293","v":0},{"$f":"INDEX(Language!A466:A467,IF(Z293,2,1),1)","v":"Vaulters (+1S) [+25 Damage to attacker]"},null,null,null,{"$f":"$B293*1*$P$6","v":0},null,null,null,false,null,null,null,{"$f":"$S293*1*$P$7","v":0},null,null,null,{"$f":"T293*AA293","v":0},0,null,null,null,null,null,false,1]
[0,0,{"$f":"INDEX(Language!A468:A469,IF(Z294,2,1),1)","v":"Hissho (+1I) [+1MP]"},null,{"$f":"$B294*1*$P$6","v":0},null,null,null,null,null,false,null,{"$f":"$S294*1*$P$7","v":0},null,null,null,null,null,0,0,null,null,null,null,null,false,1]
[0,0,{"$f":"INDEX(Language!A470:A471,IF(Z295,2,1),1)","v":"Horatio (+3F) (+2A on Hot) + Genetically improved bonus                                  EDIT HERE →"},{"$f":"($B$295*3+$A$295*SUM(D339:D377))*$P$6","v":0},{"$f":"$A$295*SUM(E339:E377)*$P$6","v":0},{"$f":"$A$295*SUM(F339:F377)*$P$6","v":0},{"$f":"$A$295*SUM(G339:G377)*$P$6","v":0},{"$f":"$A$295*SUM(H339:H377)*$P$6","v":0},{"$f":"($B$295*2*$K$3+$A$295*SUM(I339:I377))*$P$6","v":0},null,false,{"$f":"($S$295*3+$T$295*SUM(L339:L377))*$P$7","v":0},{"$f":"$T$295*SUM(M339:M377)*$P$7","v":0},{"$f":"$T$295*SUM(N339:N377)*$P$7","v":0},{"$f":"$T$295*SUM(O339:O377)*$P$7","v":0},{"$f":"$T$295*SUM(P339:P377)*$P$7","v":0},{"$f":"($S$295*2*$K$4+$T$295*SUM(Q339:Q377))*$P$7","v":0},null,0,0,null,null,null,null,null,false,1]
[0,0,{"$f":"INDEX(Language!A472:A473,IF(Z296,2,1),1)","v":"Lumeris (+1D) (+3D on Fertile)"},null,null,{"$f":"$B296*(1+((3+(AA296-1)*2)*$N$3))*$P$6","v":0},null,null,null,null,false,null,null,{"$f":"$S296*(1+((3+(AA296-1)*2)*$N$4))*$P$7","v":0},null,null,null,null,0,0,null,null,null,null,null,false,1]
[0,0,{"$f":"INDEX(Language!A474:A475,IF(Z297,2,1),1)","v":"Unfallen (+2F) (+5F on Fertile)"},{"$f":"$B297*(2+(5*$N$3))*$P$6","v":0},null,null,null,null,null,null,false,{"$f":"$S297*(2+(5*$N$4))*$P$7","v":0},null,null,null,null,null,null,0,0,null,null,null,null,null,false,1]
[0,0,{"$f":"Language!A476","v":"Riftborn (+5I) (+5D) (+5S)"},null,{"$f":"$B298*5*$P$6","v":0},{"$f":"$B298*5*$P$6","v":0},{"$f":"$B298*5*$P$6","v":0},null,null,null,false,null,{"$f":"$S298*5*$P$7","v":0},{"$f":"$S298*5*$P$7","v":0},{"$f":"$S298*5*$P$7","v":0},null,null,null,0,0,{"$f":"Language!A173","v":"        ←  This population can not be favored!"},null,null,null,null,false,1]
[0,0,{"$f":"INDEX(Language!A477:A478,IF(Z299,2,1),1)","v":"Sophons (+1S) (+3S on Cold)"},null,null,null,{"$f":"$B299*(1+(3*$L$3))*$P$6","v":0},null,null,null,false,null,null,null,{"$f":"$S299*(1+(3*$L$4))*$P$7","v":0},null,null,null,0,0,null,null,null,null,null,false,1]
[0,0,{"$f":"INDEX(Language!A479:A480,IF(Z300,2,1),1)","v":"United Empire (+1In)"},null,null,null,null,{"$f":"$B300*1","v":0},null,null,false,null,null,null,null,{"$f":"$S300*1","v":0},null,null,0,0,null,null,null,null,null,false,1]
[0,0,{"$f":"INDEX(Language!A481:A482,IF(Z301,2,1),1)","v":"United Empire → Mezari (+1S) (+0.5In)"},null,null,null,{"$f":"$B301*1*$P$6","v":0},{"$f":"$B301*0.5","v":0},null,null,false,null,null,null,{"$f":"$S301*1*$P$7","v":0},{"$f":"$S301*0.5","v":0},null,null,0,0,null,null,null,null,null,false,1]
[0,0,{"$f":"INDEX(Language!A483:A484,IF(Z302,2,1),1)","v":"United Empire → Sheredyn (+0.5In) (+20MP)"},null,null,null,null,{"$f":"$B302*0.5","v":0},null,null,false,null,null,null,null,{"$f":"$S302*0.5","v":0},null,null,{"$f":"T302*AA302","v":0},0,null,null,null,null,null,false,1]
[0,0,{"$f":"INDEX(Language!A485:A486,IF(Z303,2,1),1)","v":"Vodyani (+4F) (+4I) (+4D) (+4S) [-50% Food on System proportional to amount of this pop.]"},{"$f":"$B303*4*$P$6","v":0},{"$f":"$B303*4*$P$6","v":0},{"$f":"$B303*4*$P$6","v":0},{"$f":"$B303*4*$P$6","v":0},null,null,null,false,{"$f":"$S303*4*$P$7","v":0},{"$f":"$S303*4*$P$7","v":0},{"$f":"$S303*4*$P$7","v":0},{"$f":"$S303*4*$P$7","v":0},null,null,null,0,0,null,null,null,null,null,false,1]
[null,null,{"$f":"Language!A487","v":"Minors factions"},null,null,null,{"$f":"IF($Q$6,Language!$A168,\"\")","v":""},null,null,null,null,null,null,null,{"$f":"IF($Q$7,Language!$A168,\"\")","v":""},null,null,null,null,null,{"$f":"Language!A170","v":"  ↓ Favor this population"},null,null,null,null,false,1]
[0,{"$f":"A305*AA305","v":0},{"$f":"INDEX(Language!A488:A489,IF(Z305,2,1),1)","v":"Amblyr (+1I) (+2D on Sterile)"},null,{"$f":"$B305*1*$P$6","v":0},{"$f":"$B305*(2*$O$3)*$P$6","v":0},null,null,null,null,null,null,{"$f":"$S305*1*$P$7","v":0},{"$f":"$S305*(2*$O$4)*$P$7","v":0},null,null,null,null,{"$f":"T305*AA305","v":0},0,null,null,null,null,null,false,{"$f":"IF($Z305,2,1)","v":1}]
[0,0,{"$f":"INDEX(Language!A490:A491,IF(Z306,2,1),1)","v":"Amoeba (+5F)"},{"$f":"$B306*5*$P$6","v":0},null,null,null,null,null,null,null,{"$f":"$S306*5*$P$7","v":0},null,null,null,null,null,null,0,0,null,null,null,null,null,false,1]
[0,{"$f":"A307*AA307","v":0},{"$f":"INDEX(Language!A492:A493,IF(Z307,2,1),1)","v":"Basryxo (+1I) (+2I on Sterile)"},null,{"$f":"$B307*(1+2*$O$3)*$P$6","v":0},null,null,null,null,null,null,null,{"$f":"$B307*(1+2*$O$4)*$P$6","v":0},null,null,null,null,null,{"$f":"T307*AA307","v":0},0,null,null,null,null,null,false,1]
[0,0,{"$f":"INDEX(Language!A494:A495,IF(Z308,2,1),1)","v":"Bhagaba (+1In on Fertile)"},null,null,null,null,{"$f":"$B308*1*$N$3","v":0},null,null,null,null,null,null,null,{"$f":"$S308*1*$N$4","v":0},null,null,0,0,null,null,null,null,null,false,1]
[0,0,{"$f":"INDEX(Language!A496:A497,IF(Z309,2,1),1)","v":"Deuyivans (+5F on Gas) (+2S)"},{"$f":"$B309*IF($P$3=Language!$A$100,5,0)*$P$6","v":0},null,null,{"$f":"$B309*2*$P$6","v":0},null,null,null,null,{"$f":"$S309*IF($P$4=Language!$A$100,5,0)*$P$7","v":0},null,null,{"$f":"$S309*2*$P$7","v":0},null,null,null,0,0,null,null,null,null,null,false,1]
[0,{"$f":"A310*AA310","v":0},{"$f":"INDEX(Language!A498:A499,IF(Z310,2,1),1)","v":"Bereaved (+3S on Cold) [+20 MP capacity]"},null,null,null,{"$f":"$B310*3*$L$3*$P$6","v":0},null,null,null,null,null,null,null,{"$f":"$S310*3*$L$4*$P$7","v":0},null,null,null,{"$f":"T310*AA310","v":0},0,null,null,null,null,null,false,1]
[0,0,{"$f":"INDEX(Language!A500:A501,IF(Z311,2,1),1)","v":"Epistis (+5F on Sterile) (+1I)"},{"$f":"$B311*(5*$O$3)*$P$6","v":0},{"$f":"$B311*1*$P$6","v":0},null,null,null,null,null,null,{"$f":"$S311*(5*$O$4)*$P$7","v":0},{"$f":"$S311*1*$P$7","v":0},null,null,null,null,null,0,0,null,null,null,null,null,false,1]
[0,0,{"$f":"INDEX(Language!A502:A503,IF(Z312,2,1),1)","v":"Eyder (+1D) (+5D on Gas)"},null,null,{"$f":"$B312*(1+IF($P$3=Language!$A$100,5,0))*$P$6","v":0},null,null,null,null,null,null,null,{"$f":"$S312*(1+IF($P$4=Language!$A$100,5,0))*$P$7","v":0},null,null,null,null,0,0,null,null,null,null,null,false,1]
[0,0,{"$f":"INDEX(Language!A504:A505,IF(Z313,2,1),1)","v":"Galvran (+2S)"},null,null,null,{"$f":"$B313*2*$P$6","v":0},null,null,null,null,null,null,null,{"$f":"$S313*2*$P$7","v":0},null,null,null,0,0,null,null,null,null,null,false,1]
[0,0,{"$f":"Language!A506","v":"Guardians [+200 Damage to attacker] [±20In if System's owner friendly or ennemy] [+5A on Syst.]"},null,null,null,null,null,null,null,null,null,null,null,null,null,null,null,0,0,{"$f":"Language!A171","v":"        ←  Add Guardians to maximal population capacity (+1P)"},null,null,null,null,false,{"$f":"IF($Z314,1,0)","v":0},"Gardiens"]
[0,{"$f":"A315*AA315","v":0},{"$f":"Language!A507","v":"Guardian Guides [+300 Damage to at] [±30In if System's owner friendly or ennemy] [+10A on Syst.]"},null,null,null,null,null,null,null,null,null,null,null,null,null,null,null,{"$f":"T315*AA315","v":0},0,{"$f":"Language!A172","v":"        ←  Add Guardian Guides to maximal population capacity (+1P)"},null,null,null,null,false,{"$f":"IF($Z315,1,0)","v":0},"Gardiens"]
[0,0,{"$f":"INDEX(Language!A508:A509,IF(Z316,2,1),1)","v":"Gnashast [+50 Damage to attacker] [+50 Damage to attacker on Fertile]"},null,null,null,null,null,null,null,null,null,null,null,null,null,null,null,0,0,null,null,null,null,null,false,{"$f":"IF($Z316,2,1)","v":1}]
[0,0,{"$f":"INDEX(Language!A510:A511,IF(Z317,2,1),1)","v":"Harmony (+2F on Strategic ressource deposit) (+2S on Strategic ressource deposit)"},{"$f":"$B317*(2*ROUNDUP(SUM($B$135:$B$140)/6,0))*$P$6","v":0},null,null,{"$f":"$B317*(2*ROUNDUP(SUM($B$135:$B$140)/6,0))*$P$6","v":0},null,null,null,null,{"$f":"$S317*(2*ROUNDUP(SUM($B$135:$B$140)/6,0))*$P$7","v":0},null,null,{"$f":"$S317*(2*ROUNDUP(SUM($B$135:$B$140)/6,0))*$P$7","v":0},null,null,null,0,0,null,null,null,null,null,false,1]
[0,0,{"$f":"INDEX(Language!A512:A513,IF(Z318,2,1),1)","v":"Haroshems (+1F) (+3F on Sterile)"},{"$f":"$B318*(1+(3*$O$3))*$P$6","v":0},null,null,null,null,null,null,null,{"$f":"$S318*(1+(3*$O$4))*$P$7","v":0},null,null,null,null,null,null,0,0,null,null,null,null,null,false,1]
[0,0,{"$f":"INDEX(Language!A514:A515,IF(Z319,2,1),1)","v":"Illo (+1In on Hot)"},null,null,null,null,{"$f":"$B319*1*$K$3*$P$6","v":0},null,null,null,null,null,null,null,{"$f":"$S319*1*$K$4*$P$7","v":0},null,null,0,0,null,null,null,null,null,false,1]
[0,0,{"$f":"INDEX(Language!A516:A517,IF(Z320,2,1),1)","v":"Kalgeros (+2A) (+4A on Fertile)"},null,null,null,null,null,{"$f":"$B320*(2+(4*$N$3))","v":0},null,null,null,null,null,null,null,{"$f":"$S320*(2+(4*$N$4))","v":0},null,0,0,null,null,null,null,null,false,1]
[0,{"$f":"A321*AA321","v":0},{"$f":"INDEX(Language!A518:A519,IF(Z321,2,1),1)","v":"Kalmat (+1PP) (+1PP on Small)"},null,null,null,null,null,null,null,null,null,null,null,null,null,null,null,{"$f":"T321*AA321","v":0},0,null,null,null,null,null,false,1]
[0,0,{"$f":"INDEX(Language!A520:A521,IF(Z322,2,1),1)","v":"Kal'Tik'Ma (+2A) (+3A on Sterile)"},null,null,null,null,null,{"$f":"$B322*(2+(3*$O$3))","v":0},null,null,null,null,null,null,null,{"$f":"$S322*(2+(3*$O$4))","v":0},null,0,0,null,null,null,null,null,false,1]
[0,{"$f":"A323*AA323","v":0},{"$f":"INDEX(Language!A522:A523,IF(Z323,2,1),1)","v":"Sisters of Mercy (+2A) [+25 Damage to attacker]"},null,null,null,null,null,{"$f":"$B323*2","v":0},null,null,null,null,null,null,null,{"$f":"$S323*2","v":0},null,{"$f":"T323*AA323","v":0},0,null,null,null,null,null,false,{"$f":"IF($Z323,2,1)","v":1}]
[0,0,{"$f":"INDEX(Language!A524:A525,IF(Z324,2,1),1)","v":"Mavros (+1I) (+2I on Hot)"},null,{"$f":"$B324*(1+(2*$K$3))*$P$6","v":0},null,null,null,null,null,null,null,{"$f":"$S324*(1+(2*$K$4))*$P$7","v":0},null,null,null,null,null,0,0,null,null,null,null,null,false,1]
[0,0,{"$f":"INDEX(Language!A526:A527,IF(Z325,2,1),1)","v":"Niris (+2F) (+3F on Fertile)"},{"$f":"$B325*(2+(3*$N$3))*$P$6","v":0},null,null,null,null,null,null,null,{"$f":"$S325*(2+(3*$N$4))*$P$7","v":0},null,null,null,null,null,null,0,0,null,null,null,null,null,false,1]
[0,{"$f":"A326*AA326","v":0},{"$f":"INDEX(Language!A528:A529,IF(Z326,2,1),1)","v":"Umbral Shadow (+2S) (2x planet FIDSI exploited) (+2PP) (+PP from ex-Sleeper)"},null,null,null,{"$f":"$B326*2*$P$6","v":0},null,null,null,null,null,null,null,{"$f":"$S326*2*$P$7","v":0},null,null,null,{"$f":"T326*AA326","v":0},0,null,null,null,null,null,false,{"$f":"IF($Z326,1.5,1)","v":1}]
[0,{"$f":"A327*AA327","v":0},{"$f":"INDEX(Language!A530:A531,IF(Z327,2,1),1)","v":"Foundlings (+3S)"},null,null,null,{"$f":"$B327*3*$P$6","v":0},null,null,null,null,null,null,null,{"$f":"$S327*3*$P$7","v":0},null,null,null,{"$f":"T327*AA327","v":0},0,null,null,null,null,null,false,1]
[0,0,{"$f":"INDEX(Language!A532:A533,IF(Z328,2,1),1)","v":"Pilgrims (+2S) (+3S on Anomaly)"},null,null,null,{"$f":"$B328*(2+3*ROUNDUP(SUM($B$179:$B$237)/60,0))*$P$6","v":0},null,null,null,null,null,null,null,{"$f":"$S328*(2+3*ROUNDUP(SUM($B$179:$B$237)/60,0))*$P$7","v":0},null,null,null,0,0,null,null,null,null,null,false,1]
[0,0,{"$f":"INDEX(Language!A534:A535,IF(Z329,2,1),1)","v":"Pulsos (+1I) (+5S on Anomaly)"},null,{"$f":"$B329*1*$P$6","v":0},null,{"$f":"$B329*(5*ROUNDUP(SUM($B$179:$B$237)/60,0))*$P$6","v":0},null,null,null,null,null,{"$f":"$S329*1*$P$7","v":0},null,{"$f":"$S329*(5*ROUNDUP(SUM($B$179:$B$237)/60,0))*$P$7","v":0},null,null,null,0,0,null,null,null,null,null,false,1]
[0,0,{"$f":"INDEX(Language!A536:A537,IF(Z330,2,1),1)","v":"Sefaloros (+1I) (+2I on Fertile)"},null,{"$f":"$B330*(1+(2*$N$3))*$P$6","v":0},null,null,null,null,null,null,null,{"$f":"$S330*(1+(2*$N$4))*$P$7","v":0},null,null,null,null,null,0,0,null,null,null,null,null,false,1]
[0,{"$f":"A331*AA331","v":0},{"$f":"Language!A538","v":"Sheredyn (+0.5In) [+20 MP capacity]"},null,null,null,null,{"$f":"$B331*0.5*$P$6","v":0},null,null,null,null,null,null,null,{"$f":"$S331*0.5*$P$7","v":0},null,null,{"$f":"T331*AA331","v":0},0,null,null,null,null,null,false,1]
[0,0,{"$f":"INDEX(Language!A539:A540,IF(Z332,2,1),1)","v":"Sowers (+2F) [-0.5 Pt Depletion Points per turn]"},{"$f":"$B332*2*$P$6","v":0},null,null,null,null,null,null,null,{"$f":"$S332*2*$P$7","v":0},null,null,null,null,null,null,0,0,null,null,null,null,null,false,1]
[0,0,{"$f":"INDEX(Language!A541:A542,IF(Z333,2,1),1)","v":"Tikanan [+5MP] [+5MP on Fertile]"},null,null,null,null,null,null,null,null,null,null,null,null,null,null,null,0,0,null,null,null,null,null,false,1]
[0,0,{"$f":"INDEX(Language!A543:A544,IF(Z334,2,1),1)","v":"Remnant (+1I) (+2D on Happy)"},null,{"$f":"$B334*1*$P$6","v":0},{"$f":"$B334*(2*IF(OR($T$6,$T$7),1,0))*$P$6","v":0},null,null,null,null,null,null,{"$f":"$S334*1*$P$7","v":0},{"$f":"$S334*(2*IF(OR($T$6,$T$7),1,0))*$P$7","v":0},null,null,null,null,0,0,null,null,null,null,null,false,1]
[0,0,{"$f":"INDEX(Language!A545:A546,IF(Z335,2,1),1)","v":"Yuusho [+20 MP capacity] [+30 MP capacity on Sterile]"},null,null,null,null,null,null,null,null,null,null,null,null,null,null,null,0,0,null,null,null,null,null,false,1]
[0,0,{"$f":"INDEX(Language!A547:A548,IF(Z336,2,1),1)","v":"Z'Vali (+3S on Happy) (+2A)"},null,null,null,{"$f":"$B336*(2*IF(OR($T$6,$T$7),1,0))*$P$6","v":0},null,{"$f":"$B336*2","v":0},null,null,null,null,null,{"$f":"$S336*(2*IF(OR($T$6,$T$7),1,0))*$P$7","v":0},null,{"$f":"$S336*2","v":0},null,0,0,null,null,null,null,null,false,1]
[null,null,{"$f":"Language!A549","v":"Special bonus Horatio population genetically modified"},null,null,null,null,null,null,null,{"$f":"IF(AND(COUNTIF(A338:A377,TRUE),K295=FALSE),Language!A551,\"\")","v":""}]
[false,{"$f":"IF(A338,1,0)","v":0},{"$f":"Language!A557","v":"Cravers (+5% FIDS)"},{"$f":"$B338*(AA7+AA12)*(0.05*$A$295)","v":0},{"$f":"$B338*(AB7+AB12)*(0.05*$A$295)","v":0},{"$f":"$B338*(AC7+AC12)*(0.05*$A$295)","v":0},{"$f":"$B338*(AD7+AD12)*(0.05*$A$295)","v":0},null,null,null,null,{"$f":"$B338*(AI7+AI12)*(0.05*$T$295)","v":0},{"$f":"$B338*(AJ7+AJ12)*(0.05*$T$295)","v":0},{"$f":"$B338*(AK7+AK12)*(0.05*$T$295)","v":0},{"$f":"$B338*(AL7+AL12)*(0.05*$T$295)","v":0}]
[false,{"$f":"IF(A339,1,0)","v":0},{"$f":"Language!A552","v":"Amblyr (+1I) (+1D)"},null,{"$f":"$B339*1","v":0},{"$f":"$B339*1","v":0},null,null,null,null,null,null,{"$f":"$B339*1","v":0},{"$f":"$B339*1","v":0}]
[false,0,{"$f":"Language!A553","v":"Amoeba (+3F)"},{"$f":"$B340*3","v":0},null,null,null,null,null,null,null,{"$f":"$B340*3","v":0}]
[false,{"$f":"IF(A341,1,0)","v":0},{"$f":"Language!A554","v":"Basryxo (+3I)"},null,{"$f":"$B341*3","v":0},null,null,null,null,null,null,null,{"$f":"$B341*3","v":0}]
[false,0,{"$f":"Language!A555","v":"Bhagaba (+1In)"},null,null,null,null,{"$f":"$B342*1","v":0},null,null,null,null,null,null,null,{"$f":"$B342*1","v":0}]
[false,{"$f":"IF(A343,1,0)","v":0},{"$f":"Language!A556","v":"Umbral Choir (+1S) (+1PP)"},null,null,null,{"$f":"$B343*1","v":0},null,null,null,null,null,null,null,{"$f":"$B343*1","v":0}]
[false,0,{"$f":"Language!A558","v":"Deuyivans (+1F) (+2S)"},{"$f":"$B344*1","v":0},null,null,{"$f":"$B344*2","v":0},null,null,null,null,{"$f":"$B344*1","v":0},null,null,{"$f":"$B344*2","v":0}]
[false,{"$f":"IF(A345,1,0)","v":0},{"$f":"Language!A559","v":"Bereaved (+1S) [+20 MP capacity]"},null,null,null,{"$f":"$B345*1","v":0},null,null,null,null,null,null,null,{"$f":"$B345*1","v":0}]
[false,0,{"$f":"Language!A560","v":"Epistis (+1F) (+2I)"},{"$f":"$B346*1","v":0},{"$f":"$B346*2","v":0},null,null,null,null,null,null,{"$f":"$B346*1","v":0},{"$f":"$B346*2","v":0}]
[false,0,{"$f":"Language!A561","v":"Vaulters (+1S) [+10 Damage to attacker]"},null,null,null,{"$f":"$B347*1","v":0},null,null,null,null,null,null,null,{"$f":"$B347*1","v":0}]
[false,0,{"$f":"Language!A562","v":"Eyder (+2D)"},null,null,{"$f":"$B348*2","v":0},null,null,null,null,null,null,null,{"$f":"$B348*2","v":0}]
[false,0,{"$f":"Language!A563","v":"Galvran (+2S)"},null,null,null,{"$f":"$B349*2","v":0},null,null,null,null,null,null,null,{"$f":"$B349*2","v":0}]
[false,0,{"$f":"Language!A564","v":"Gnashast [+50 Damage to attacker]"}]
[false,{"$f":"IF(A351,1,0)","v":0},{"$f":"Language!A565","v":"Harmony (+2F) (+2S)"},{"$f":"$B351*2","v":0},null,null,{"$f":"$B351*2","v":0},null,null,null,null,{"$f":"$B351*2","v":0},null,null,{"$f":"$B351*2","v":0}]
[false,0,{"$f":"Language!A566","v":"Haroshems (+3F)"},{"$f":"$B352*3","v":0},null,null,null,null,null,null,null,{"$f":"$B352*3","v":0}]
[false,0,{"$f":"Language!A567","v":"Hissho (+2I) [+1MP]"},null,{"$f":"$B353*2","v":0},null,null,null,null,null,null,null,{"$f":"$B353*2","v":0}]
[false,0,{"$f":"Language!A568","v":"Illo (+1In)"},null,null,null,null,{"$f":"$B354*1","v":0},null,null,null,null,null,null,null,{"$f":"$B354*1","v":0}]
[false,0,{"$f":"Language!A569","v":"Kalgeros (+3A)"},null,null,null,null,null,{"$f":"$B355*3","v":0},null,null,null,null,null,null,null,{"$f":"$B355*3","v":0}]
[false,{"$f":"IF(A356,1,0)","v":0},{"$f":"Language!A570","v":"Kalmat (+1PP)"}]
[false,0,{"$f":"Language!A571","v":"Kal'Tik'Ma (+3A)"},null,null,null,null,null,{"$f":"$B357*3","v":0},null,null,null,null,null,null,null,{"$f":"$B357*3","v":0}]
[false,{"$f":"IF(A358,1,0)","v":0},{"$f":"Language!A572","v":"Sisters of Mercy (+2A) [+10 Damage to attacker]"},null,null,null,null,null,{"$f":"$B358*2","v":0},null,null,null,null,null,null,null,{"$f":"$B358*2","v":0}]
[false,{"$f":"IF(A359,1,0)","v":0},{"$f":"Language!A573","v":"Lumeris (+2D)"},null,null,{"$f":"$B359*2","v":0},null,null,null,null,null,null,null,{"$f":"$B359*2","v":0}]
[false,0,{"$f":"Language!A574","v":"Mavros (+3I)"},null,{"$f":"$B360*3","v":0},null,null,null,null,null,null,null,{"$f":"$B360*3","v":0}]
[false,{"$f":"IF(A361,1,0)","v":0},{"$f":"Language!A575","v":"Mezari (+1S) (+0.5In)"},null,null,null,{"$f":"$B361*1","v":0},{"$f":"$B361*0.5","v":0},null,null,null,null,null,null,{"$f":"$B361*1","v":0},{"$f":"$B361*0.5","v":0}]
[false,0,{"$f":"Language!A576","v":"Niris (+2F)"},{"$f":"$B362*2","v":0},null,null,null,null,null,null,null,{"$f":"$B362*2","v":0}]
[false,{"$f":"IF(A363,1,0)","v":0},{"$f":"Language!A577","v":"Foundlings (+2S)"},null,null,null,{"$f":"$B363*2","v":0},null,null,null,null,null,null,null,{"$f":"$B363*2","v":0}]
[false,0,{"$f":"Language!A578","v":"Pilgrims (+3S)"},null,null,null,{"$f":"$B364*3","v":0},null,null,null,null,null,null,null,{"$f":"$B364*3","v":0}]
[false,{"$f":"IF(A365,1,0)","v":0},{"$f":"Language!A579","v":"Unfallen (+2F)"},{"$f":"$B365*2","v":0},null,null,null,null,null,null,null,{"$f":"$B365*2","v":0}]
[false,0,{"$f":"Language!A580","v":"Riftborn (+2I) (+2D) (+2S)"},null,{"$f":"$B366*2","v":0},{"$f":"$B366*2","v":0},{"$f":"$B366*2","v":0},null,null,null,null,null,{"$f":"$B366*2","v":0},{"$f":"$B366*2","v":0},{"$f":"$B366*2","v":0}]
[false,0,{"$f":"Language!A581","v":"Pulsos (+2I) (+1S)"},null,{"$f":"$B367*2","v":0},null,{"$f":"$B367*1","v":0},null,null,null,null,null,{"$f":"$B367*2","v":0},null,{"$f":"$B367*1","v":0}]
[false,0,{"$f":"Language!A582","v":"Sefaloros (+3I)"},null,{"$f":"$B368*3","v":0},null,null,null,null,null,null,null,{"$f":"$B368*3","v":0}]
[false,{"$f":"IF(A369,1,0)","v":0},{"$f":"Language!A583","v":"Sheredyn (+0.5In) [+10 MP capacity]"},null,null,null,null,{"$f":"$B369*0.5","v":0},null,null,null,null,null,null,null,{"$f":"$B369*0.5","v":0}]
[false,0,{"$f":"Language!A584","v":"Sophons (+2S)"},null,null,null,{"$f":"$B370*2","v":0},null,null,null,null,null,null,null,{"$f":"$B370*2","v":0}]
[false,0,{"$f":"Language!A585","v":"Sowers (+1F) [-0.5 Pt Depletion Points per turn]"},{"$f":"$B371*1","v":0},null,null,null,null,null,null,null,{"$f":"$B371*1","v":0}]
[false,0,{"$f":"Language!A586","v":"Tikanan [+5MP]"}]
[false,0,{"$f":"Language!A587","v":"Imperials (+1In)"},null,null,null,null,{"$f":"$B373*1","v":0},null,null,null,null,null,null,null,{"$f":"$B373*1","v":0}]
[false,0,{"$f":"Language!A588","v":"Remnant (+2I) (+1D)"},null,{"$f":"$B374*2","v":0},{"$f":"$B374*1","v":0},null,null,null,null,null,null,{"$f":"$B374*2","v":0},{"$f":"$B374*1","v":0}]
[false,{"$f":"IF(A375,1,0)","v":0},{"$f":"Language!A589","v":"Vodyani (+2F) (+2I) (+2D) (+2S)"},{"$f":"$B375*2","v":0},{"$f":"$B375*2","v":0},{"$f":"$B375*2","v":0},{"$f":"$B375*2","v":0},null,null,null,null,{"$f":"$B375*2","v":0},{"$f":"$B375*2","v":0},{"$f":"$B375*2","v":0},{"$f":"$B375*2","v":0}]
[false,0,{"$f":"Language!A590","v":"Yuusho [+15 MP capacity]"}]
[false,0,{"$f":"Language!A591","v":"Z'Vali (+1S) (+2A)"},null,null,null,{"$f":"$B377*1","v":0},null,{"$f":"$B377*2","v":0},null,null,null,null,null,{"$f":"$B377*1","v":0},null,{"$f":"$B377*2","v":0}]
[null,null,{"$f":"Language!A592","v":"Total (with +3F) →"},{"$f":"SUM(D339:D377)+3","v":3},{"$f":"SUM(E339:E377)","v":0},{"$f":"SUM(F339:F377)","v":0},{"$f":"SUM(G339:G377)","v":0},{"$f":"SUM(H339:H377)","v":0},{"$f":"SUM(I339:I377)","v":0},null,null,{"$f":"SUM(L339:L377)+3","v":3},{"$f":"SUM(M339:M377)","v":0},{"$f":"SUM(N339:N377)","v":0},{"$f":"SUM(O339:O377)","v":0},{"$f":"SUM(P339:P377)","v":0},{"$f":"SUM(Q339:Q377)","v":0}]

{"sheet":"Difficulties - Difficultés","index":3,"n_rows":30,"n_cols":17,"rows_kept":30,"cut":false,"hidden":false,"merged":[[18,15,18,16],[6,14,6,18],[7,14,7,18],[0,14,0,18],[1,14,1,18],[2,14,2,18],[3,14,3,18],[4,14,4,18],[5,14,5,18]]}
["#",{"$f":"Language!A596","v":"Difficulty"},{"$f":"Language!A597","v":"Raw FIDSI on Planet"},{"$f":"Language!A598","v":"Raw Prestige on Planet"},{"$f":"Language!A599","v":"Approval"},{"$f":"Language!A600","v":"Over colonization threshold"},{"$f":"Language!A601","v":"Over colonization penalty"},{"$f":"Language!A602","v":"Over population penalty"},{"$f":"Language!A603","v":"System Upkeep"},{"$f":"Language!A604","v":"Garrison Upkeep"},{"$f":"Language!A605","v":"Hero Upkeep"},{"$f":"Language!A606","v":"Net Minor Stress"},{"$f":"Language!$A626","v":"Hacking Speed Percent Multiplier"},{"$f":"Language!$A627","v":"Maximum Empire Processing Power Stock"},{"$f":"Language!A607","v":"Description"}]
[0,{"$f":"Language!A610","v":"Sandbox"},2,null,20,2,null,-0.2,-0.2,-0.2,-0.2,-0.5,0.1,40,{"$f":"Language!A632","v":"An AI that allows you to play freely."}]
[1,{"$f":"Language!A611","v":"Easy"},1,null,10,1,null,-0.1,-0.1,-0.1,-0.1,-0.25,0.05,20,{"$f":"Language!A633","v":"It's like you have guns, and they have sticks."}]
[2,{"$f":"Language!A612","v":"Normal"},null,null,null,null,null,null,null,null,null,null,null,null,{"$f":"Language!A634","v":"It’s like you have guns, and they have guns."}]
[3,{"$f":"Language!A613","v":"Hard"},null,null,null,null,null,null,null,null,null,0.1,null,null,{"$f":"Language!A635","v":"It’s like you have guns, and they have better guns."}]
[4,{"$f":"Language!A614","v":"Serious"},null,null,null,null,null,null,null,null,null,0.2,null,null,{"$f":"Language!A636","v":"It’s like you have guns, and they have tanks."}]
[5,{"$f":"Language!A615","v":"Impossible"},null,null,null,null,null,null,null,null,null,0.3,null,null,{"$f":"Language!A637","v":"It’s like you have guns, and they have nuclear weapons systems that can track your biometrics."}]
[6,{"$f":"Language!A616","v":"Endless"},null,null,null,null,null,null,null,null,null,0.4,null,null,{"$f":"Language!A638","v":"You shall not pass!"}]
[]
[]
["#",{"$f":"Language!$A619","v":"AI difficulty"},{"$f":"Language!$A597","v":"Raw FIDSI on Planet"},{"$f":"Language!$A598","v":"Raw Prestige on Planet"},{"$f":"Language!$A599","v":"Approval"},{"$f":"Language!$A600","v":"Over colonization threshold"},{"$f":"Language!$A601","v":"Over colonization penalty"},{"$f":"Language!$A602","v":"Over population penalty"},{"$f":"Language!$A603","v":"System Upkeep"},{"$f":"Language!$A604","v":"Garrison Upkeep"},{"$f":"Language!$A605","v":"Hero Upkeep"},{"$f":"Language!$A620","v":"Simplified\nBattle Damage Multiplier"},{"$f":"Language!$A626","v":"Hacking Speed Percent Multiplier"},{"$f":"Language!$A627","v":"Maximum Empire Processing Power Stock"},{"$f":"Language!$A621","v":"Maximum Juggernauts"},{"$f":"Language!$A622","v":"Essence bonus (Vodyani)\nA=Arch count\nS=Leeching fleets count"},{"$f":"Language!$A623","v":"Keii Hissho\nNO=Not Overcolonized"}]
[0,{"$f":"Language!A610","v":"Sandbox"},-1,1,-10,null,0.1,0.1,0.1,0.1,0.1,null,-0.2,-10]
[1,{"$f":"Language!A611","v":"Easy"},-0.5,0.5,5,null,0.05,0.05,0.05,0.05,0.05,null,-0.1,-5]
[2,{"$f":"Language!A612","v":"Normal"},null,null,null,null,null,null,null,null,null,-0.25,null,0,null,"(A x 10) / S",{"$f":"Language!$A624","v":"+1  and  +1 if NO"}]
[3,{"$f":"Language!A613","v":"Hard"},1,-1,10,null,-0.1,-0.1,-0.1,-0.1,-0.1,-0.4,null,10,1,"(A x 25) / S",{"$f":"Language!$A624","v":"+1  and  +1 if NO"}]
[4,{"$f":"Language!A614","v":"Serious"},2,-1.5,20,null,-0.2,-0.2,-0.2,-0.2,-0.2,-0.55000000000000004,null,20,2,"(A x 30) / S",{"$f":"Language!$A625","v":"+2  and  +2 if NO"}]
[5,{"$f":"Language!A615","v":"Impossible"},3,-1.5,40,null,-0.4,-0.4,-0.4,-0.4,-0.4,-0.7,0.05,30,3,"(A x 40) / S",{"$f":"Language!$A625","v":"+2  and  +2 if NO"}]
[6,{"$f":"Language!A616","v":"Endless"},4,-1.5,60,null,-0.6,-0.6,-0.6,-0.6,-0.6,-0.75,0.1,40,4,"(A x 45) / S",{"$f":"Language!$A625","v":"+2  and  +2 if NO"}]
[null,null,null,null,null,null,null,null,null,null,null,{"$f":"Language!$A628","v":"Used?"},null,null,null,{"$f":"Language!$A629","v":"TO CONFIRM"}]
[]
["#",{"$f":"Language!$A641","v":"Minor faction difficulty"},{"$f":"Language!$A642","v":"Relation Points Trend"},{"$f":"Language!$A643","v":"Relation Points Base Value"},{"$f":"Language!$A626","v":"Hacking Speed Percent Multiplier"},{"$f":"Language!$A651","v":"Net Trace Operation Progress"},{"$f":"Language!A598","v":"Raw Prestige on Planet"},{"$f":"Language!$A599","v":"Approval"},{"$f":"Language!$A644","v":"Stress"},{"$f":"Language!$A645","v":"Troop Health Bonuses"},null,null,"Language"]
[0,{"$f":"Language!A611","v":"Easy"},1,20,-0.5,-0.5,1,-10,"x 0.5",-0.3]
[1,{"$f":"Language!A612","v":"Normal"},null,null,-0.25,-0.25,0.5,5]
[2,{"$f":"Language!A613","v":"Hard"},-1,null,null,null,null,null,null,0.3]
[]
[]
["#",{"$f":"Language!$A648","v":"Pirates AI difficulty"},{"$f":"Language!$A649","v":"Difficulty multiplier"},{"$f":"Language!$A650","v":"Maximum Pirate fleet count"},{"$f":"Language!$A626","v":"Hacking Speed Percent Multiplier"},{"$f":"Language!$A651","v":"Net Trace Operation Progress"}]
[0,{"$f":"Language!A611","v":"Easy"},0.38,2,-0.5,-0.5]
[1,{"$f":"Language!A612","v":"Normal"},0.42,2,-0.25,-0.25]
[2,{"$f":"Language!A613","v":"Hard"},0.46,2]

{"sheet":"Language","index":4,"n_rows":672,"n_cols":7,"rows_kept":672,"cut":false,"hidden":false,"merged":[]}
[{"$f":"INDEX(Language!G4:G10,G3,1)","v":"English"},null,"Français","English","XML",null,"Selection"]
[{"$f":"IF(ISBLANK(C2),\"\",IF($G$3=1,C2,D2))","v":"Planets and Terraforming"},null,"Planètes et Terraformation","Planets and Terraforming"]
["",null,null,null,null,null,2]
["Planet",null,"Planète","Planet","Planet",null,"Français"]
["Terran",null,"Terrienne","Terran","Terran",null,"English"]
["Forest",null,"Forêt","Forest","Forest"]
["Ocean",null,"Océanique","Ocean","Ocean"]
["Atoll",null,"Atoll","Atoll","Atoll"]
["Boreal",null,"Boréal","Boreal","Boreal",null,{"$f":"\"Test\" & CHAR(10) & \"suite\"","v":"Test\nsuite"}]
["Jungle",null,"Jungle","Jungle","Jungle"]
["Tundra",null,"Toundra","Tundra","Tundra"]
["Mediterranean",null,"Méditerranéene","Mediterranean","Tropical"]
["Steppes",null,"Steppes","Steppes","Steppes"]
["Savannah",null,"Savane","Savannah","Veldt"]
["Monsoon",null,"Mousson","Monsoon","Monsoon"]
["Snow",null,"Neige","Snow","Snow"]
["Arid",null,"Aride","Arid","Arid"]
["Arctic",null,"Arctique","Arctic","Arctic"]
["Desert",null,"Désert","Desert","Desert"]
["Ice",null,"Glace","Ice","Ice"]
["Ash",null,"Cendres","Ash","Ash"]
["Toxic",null,"Toxique","Toxic","Swamp"]
["Lava",null,"Lave","Lava","Lava"]
["Barren",null,"Stérile","Barren","Barren"]
["GasFrozen",null,"Gaz glacé","GasFrozen","GasFrozen"]
["GasCold",null,"Gaz froid","GasCold","GasCold"]
["GasTemperate",null,"Gaz tempéré","GasTemperate","GasTemperate"]
["GasWarm",null,"Gaz tiède","GasWarm","GasWarm"]
["GasHot",null,"Gaz chaud","GasHot","GasHot"]
["GasBurning",null,"Gaz brulant","GasBurning","GasBurning"]
[{"$f":"IF(ISBLANK(C31),\"\",IF($G$3=1,C31,D31))","v":"Crescent Solo"},null,"Croissant Solo","Crescent Solo","Fake"]
[{"$f":"IF(ISBLANK(C32),\"\",IF($G$3=1,C32,D32))","v":"Crescent Duo"},null,"Croissant Duo","Crescent Duo","Fake"]
[{"$f":"IF(ISBLANK(C33),\"\",IF($G$3=1,C33,D33))","v":"Crescent Trio"},null,"Croissant Trio","Crescent Trio","Fake"]
["Crescent Hypertrio",null,"Croissant Hypertrio","Crescent Hypertrio","Fake"]
[""]
[{"$f":"IF(ISBLANK(C36),\"\",IF($G$3=1,C36,D36))","v":"Mediterran."},null,"Méditerran.","Mediterran."]
[""]
[{"$f":"IF(ISBLANK(C38),\"\",IF($G$3=1,C38,D38))","v":"Fertile"},null,"Fertile","Fertile"]
["Sterile",null,"Stérile","Sterile"]
[""]
["Temperate",null,"Tempérée","Temperate"]
["Cold",null,"Froide","Cold"]
["Hot",null,"Chaude","Hot"]
[""]
["Endless Space 2 - Planets",null,"Endless Space 2 - Planètes","Endless Space 2 - Planets"]
["FIDSI",null,"NIBSI","FIDSI"]
["Population by size",null,"Population par taille","Population by size"]
["Various informations",null,"Informations diverses","Various informations"]
["Planet size probability",null,"Probabilité taille planète","Planet size probability"]
["Terraforming",null,"Terraformation","Terraforming"]
["Riftborn terraforming",null,"Terraformation \"Peuple de la faille\"","Riftborn terraforming"]
[""]
["Planet type",null,"Type de planète","Planet type"]
["Food",null,"Nourriture","Food"]
["Industry",null,"Industrie","Industry"]
["Dust",null,"Brume","Dust"]
["Science",null,"Science","Science"]
["Influence",null,"Influence","Influence"]
["Approuval",null,"Approbation","Approuval"]
["Population",null,"Population","Population"]
["Total FIDSI",null,"Total NIBSI","Total FIDSI"]
["Total FIDSI - approuval",null,"Total NIBSI - approbation","Total FIDSI - approuval"]
["Tiny",null,"Minuscule","Tiny"]
["Small",null,"Petite","Small"]
["Medium",null,"Moyenne","Medium"]
["Large",null,"Grande","Large"]
["Huge",null,"Gigantesque","Huge"]
["Total X Population on ",null,"Total X Population sur ","Total X Population on "]
["Planet class",null,"Groupe planète","Planet class"]
["Class",null,"Groupe","Class"]
["Temperature",null,"Température","Temperature"]
["Land",null,"Terre","Land"]
["Tree (Guardians)",null,"Arbre (Gardiens)","Tree (Guardians)"]
["Tier",null,"Tier","Tier"]
["% tiny",null,"% minuscule","% tiny"]
["% small",null,"% petite","% small"]
["% medium",null,"% moyenne","% medium"]
["% large",null,"% grande","% large"]
["% huge",null,"% gigantesque","% huge"]
["Minuscule2",null,"Minuscule2","Minuscule2"]
["Petite2",null,"Petite2","Petite2"]
["Moyenne2",null,"Moyenne2","Moyenne2"]
[{"$f":"IF(ISBLANK(C83),\"\",IF($G$3=1,C83,D83))","v":"Grande2"},null,"Grande2","Grande2"]
["Gigantesque2",null,"Gigantesque2","Gigantesque2"]
["Terraforming to",null,"Terraformation vers","Terraforming to"]
["Cost = 2000",null,"Coût = 2000","Cost = 2000"]
[{"$f":"IF(ISBLANK(C87),\"\",IF($G$3=1,C87,D87))","v":"Solo"},null,"Solo","Solo"]
["Duo",null,"Duo","Duo"]
[{"$f":"IF(ISBLANK(C89),\"\",IF($G$3=1,C89,D89))","v":"Trio"},null,"Trio","Trio"]
[{"$f":"IF(ISBLANK(C90),\"\",IF($G$3=1,C90,D90))","v":"Hypertrio"},null,"Hypertrio","Hypertrio"]
[""]
["Planet yield",null,"Rendement planète","Planet yield"]
["Lev.",null,"Niv.","Lev."]
["None",null,"Néant","None"]
["Weak",null,"Négligeable","Weak"]
["Low",null,"Faible","Low"]
["Medium",null,"Moyen","Medium"]
["High",null,"Elevé","High"]
["Outstanding",null,"Exceptionnel","Outstanding"]
["Gas",null,"Gaz","Gas"]
[{"$f":"IF(ISBLANK(C101),\"\",IF($G$3=1,C101,D101))","v":"Nexus"},null,"Nexus","Nexus","Fake"]
[""]
["Planet group",null,"Groupe de planète","Planet group"]
["P1 : Outstanding",null,"P1 : Excellente","P1 : Outstanding"]
["P2 : Good",null,"P2 : Bonne","P2 : Good"]
["P3 : Rough",null,"P3 : Rude","P3 : Rough"]
["P4 : Hard",null,"P4 : Difficile","P4 : Hard"]
["P5 : Extreme",null,"P5 : Extrême","P5 : Extreme"]
[""]
["From → To → Size",null,"De → Vers → Taille","From → To → Size"]
["←Difference x Population",null,"←Différence x Population","←Difference x Population"]
["Non-Gas planet size",null,"Taille planète non gazeuse","Non-Gas planet size"]
["Gas planet size",null,"Taille planète gazeuse","Gas planet size"]
["Default population",null,"Population de base","Default population"]
["Planet class",null,"Groupe de planète","Planet class"]
["Population bonus",null,"Bonus de population","Population bonus"]
["All planets",null,"Toute planète","All planets"]
["Default",null,"De base","Default"]
["Non-Gas",null,"Non Gazeuse","Non-Gas"]
["Gas",null,"Gazeuse","Gas"]
[{"$f":"IF(ISBLANK(C121),\"\",IF($G$3=1,C121,D121))","v":"Depletion points"},null,"Points d'épuisement","Depletion points"]
[{"$f":"IF(ISBLANK(C122),\"\",IF($G$3=1,C122,D122))","v":"Vodyani Ark level"},null,"Niveau Arche Vodyani","Vodyani Ark level"]
[""]
["Σ = FIDSI",null,"Σ = NIBSI","Σ = FIDSI"]
["F",null,"N","F"]
["I",null,"I","I"]
["D",null,"B","D"]
["S",null,"S","S"]
["In",null,"In","In"]
["A",null,"A","A"]
["P",null,"P","P"]
[""]
[true,null,"VRAI","TRUE"]
[""]
["Buttons",null,"Boutons","Buttons"]
[{"$f":"IF(ISBLANK(C136),\"\",IF($G$3=1,C136,D136))","v":"Global Reset"},null,"RAZ Global","Global Reset"]
[{"$f":"IF(ISBLANK(C137),\"\",IF($G$3=1,C137,D137))","v":"Reset Parameters"},null,"RAZ Paramètres","Reset Parameters"]
["System Improvements",null,"Améliorations systèmes","System Improvements"]
["Planetary Specializations",null,"Spécialisations planète","Planetary Specializations"]
["Heroes",null,"Héros","Heroes"]
["Senators & Laws",null,"Sénateurs & Lois","Senators & Laws"]
["Strategics ressources",null,"Gisement stratégiques","Strategics ressources"]
["Luxeries ressources",null,"Gisement luxes","Luxeries ressources"]
["Systems developpement",null,"Développement de systèmes","Systems developpement"]
["Anomalies",null,"Anomalies","Anomalies"]
["Curiosities",null,"Curiosités","Curiosities"]
["Empire improvements",null,"Améliorations d'empire","Empire improvements"]
["Empire traits",null,"Traits d'empire","Empire traits"]
["Other bonus",null,"Autres bonus","Other bonus"]
["Majors factions",null,"Populations majeures","Majors factions"]
["Minors factions",null,"Populations mineures","Minors factions"]
["Horatio's genes",null,"Gènes d'Horatio","Horatio's genes"]
[""]
[""]
[""]
["Terraformation\n\nPlanet: from → to",null,"Terraformation\n\nPlanète : de → vers","Terraformation\n\nPlanet: from → to"]
[""]
["Planet + Ressources deposit + Anomalies + Curiosities",null,"Planète + Gisements + Anomalies + Curiosités","Planet + Ressources deposit + Anomalies + Curiosities"]
[" on depleted planet (-50% FIDSI)",null," sur planète épuisée (-50% NIBSI)"," on depleted planet (-50% FIDSI)"]
["Total Planet + Bonus (without Original Empire and Population bonus)",null,"Total Planète + Bonus (hors Autotochne et bonus population)","Total Planet + Bonus (without Original Empire and Population bonus)"]
["Total Population bonus (",null,"Total Bonus population (","Total Population bonus ("]
["Total",null,"Total","Total"]
["Gain on terraforming",null,"Gain sur la terraformation","Gain on terraforming"]
[""]
["! System bonus !",null,"! Bonus Système !","! System bonus !"]
["!!! Overpopulation !!!",null,"!!! Surpopulation !!!","!!! Overpopulation !!!"]
["↓↓↓ Overpopulation ↓↓↓",null,"↓↓↓ Surpopulation ↓↓↓","↓↓↓ Overpopulation ↓↓↓"]
["↕ ↕ ↕ Overpopulation ↕ ↕ ↕",null,"↕ ↕ ↕ Surpopulation ↕ ↕ ↕","↕ ↕ ↕ Overpopulation ↕ ↕ ↕"]
["Major faction",null,"Autotochne","Major faction"]
["  ↓ Favor this population",null,"  ↓ Favoriser cette population","  ↓ Favor this population"]
["        ←  Add Guardians to maximal population capacity (+1P)",null,"        ←  Ajouter les Gardiens à la capacité de population maximale (+1P)","        ←  Add Guardians to maximal population capacity (+1P)"]
[{"$f":"IF(ISBLANK(C172),\"\",IF($G$3=1,C172,D172))","v":"        ←  Add Guardian Guides to maximal population capacity (+1P)"},null,"        ←  Ajouter les Guides gardiens à la capacité de population maximale (+1P)","        ←  Add Guardian Guides to maximal population capacity (+1P)"]
[{"$f":"IF(ISBLANK(C173),\"\",IF($G$3=1,C173,D173))","v":"        ←  This population can not be favored!"},null,"        ←  Cette population ne peut pas être favorisée !","        ←  This population can not be favored!"]
["Max. population with bonus →",null,"Population max. avec bonus →","Max. population with bonus →"]
["← Bonus added directly to the System!",null,"← Bonus ajouté directement au Système !","← Bonus added directly to the System!"]
["Reduced anomaly",null,"Anomalie réduite","Reduced anomaly"]
[""]
["Explored moon(s)",null,"Lune(s) explorée(s)","Explored moon(s)"]
["Republic (laws bonus)",null,"République (bonus lois)","Republic (laws bonus)"]
["Happy    / Loyal",null,"Heureux   / Loyal","Happy    / Loyal"]
["Ecstatic / Devoted",null,"Extatique / Dévoué","Ecstatic / Devoted"]
["Planet depleted -50% FIDSI",null,"Planète épuisée -50% NIBSI","Planet depleted -50% FIDSI"]
["Modernization level ",null,"Niveau de modernisation ","Modernization level "]
[""]
["Links",null,"Liens","Links"]
["Planet name",null,"Nom planète","Planet name"]
["Details\ncalculation",null,"Détails\ncalculs","Details\ncalculation"]
[""]
["System improvements",null,"Améliorations de système","System improvements"]
["Improvement - Super Biofuel Factory (F → I)",null,"Amélioration - Usine de super carburant biologique (N → I)","Improvement - Super Biofuel Factory (F → I)"]
[{"$f":"IF(ISBLANK(C191),\"\",IF($G$3=1,C191,D191))","v":"Improvement unique - Intensive Cultivation (+3F on Original Empire population)"},null,"Amélioration - Unique - Cultures intensives (+3N par Autotochne)","Improvement unique - Intensive Cultivation (+3F on Original Empire population)"]
["Improvement - Horatio - Organic Purity (+2F)",null,"Amélioration - Horatio - Pureté organique (+2N)","Improvement - Horatio - Organic Purity (+2F)"]
["Improvement - Horatio - Quest - Nanocuisine Plant (+3F) [+5A on System]",null,"Amélioration - Horatio - Quête - Centrale nanoculinaire (+3N) [+5A sur Système]","Improvement - Horatio - Quest - Nanocuisine Plant (+3F) [+5A on System]"]
["Improvement - Horatio - Quest - Crafted Nutrition Plant (+4N on Original Empire population)",null,"Amélioration - Horatio - Quête - Usine de nutrition sur mesure (+4N par Autotochne)","Improvement - Horatio - Quest - Crafted Nutrition Plant (+4N on Original Empire population)"]
["Improvement - Epigenetic Crop Seeding (+2F)",null,"Amélioration - Sémis épigénétiques (+2N)","Improvement - Epigenetic Crop Seeding (+2F)"]
["Improvement - Sophons - Ultra Greenhouses (+2F) (+2F on Cold)",null,"Amélioration - Sophons - Ultra-serres (+2N) (+2N sur Froid)","Improvement - Sophons - Ultra Greenhouses (+2F) (+2F on Cold)"]
["Improvement - Microstasis Motors (+2F) (+20% MP on Empire)",null,"Amélioration - Vodyani - Moteurs à microstase (+2N) (+20% MO sur Empire)","Improvement - Microstasis Motors (+2F) (+20% MP on Empire)"]
["Improvement - Horatio - Quest - HyperHelix Dynamo (+3I) [+5A on System]",null,"Amélioration - Horatio - Quête - Dynamo à hyperhélice (+3I) [+5A sur Système]","Improvement - Horatio - Quest - HyperHelix Dynamo (+3I) [+5A on System]"]
["Improvement - Horatio - Quest - Unique - Artisanal Excellence Museum (+4I)",null,"Amélioration - Horatio - Quête - Unique - Musée de l'excellence artisanale (+4I)","Improvement - Horatio - Quest - Unique - Artisanal Excellence Museum (+4I)"]
["Improvement - AI Labor (+5I on Hot) (+5I on Sterile)",null,"Amélioration - Main d'œuvre IA (+5I sur Chaud) (+5I sur Stérile)","Improvement - AI Labor (+5I on Hot) (+5I on Sterile)"]
["Improvement - Hazardous Minig Facility (+5I with Strategic deposit)",null,"Amélioration - Mine dangereuse (+5I par Gisement stratégique)","Improvement - Hazardous Minig Facility (+5I with Strategic deposit)"]
["Improvement - Fabrication License (+4I)",null,"Amélioration - Permis de fabrication (+4I)","Improvement - Fabrication License (+4I)"]
[{"$f":"IF(ISBLANK(C203),\"\",IF($G$3=1,C203,D203))","v":"Improvement - Interplanetary Transport Network (+1I) (+3I with Strategic deposit)"},null,"Amélioration - Réseau de transport interplanétaire (+1I) (+3I avec Gisement stratégique)","Improvement - Interplanetary Transport Network (+1I) (+3I with Strategic deposit)"]
["Improvement - Dust Bonanza (+5D with Negative Anomaly) (+5D with Reduced Anomaly)",null,"Amélioration - Abondance de brume (+5B sur Anomalie négative) (+5B sur Anomalie réduite)","Improvement - Dust Bonanza (+5D with Negative Anomaly) (+5D with Reduced Anomaly)"]
["Improvement - Xenotourism Agencies (+1D) (+3D with Luxery deposit)",null,"Amélioration - Agences de xénotourisme (+1B) (+3B avec Gisement de luxe)","Improvement - Xenotourism Agencies (+1D) (+3D with Luxery deposit)"]
["Improvement - Borer's Guild Bourse (+5D sur Sterile)",null,"Amélioration - Bourse de la guilde des foreurs (+5B sur Stérile)","Improvement - Borer's Guild Bourse (+5D sur Sterile)"]
[{"$f":"IF(ISBLANK(C207),\"\",IF($G$3=1,C207,D207))","v":"Improvement - Lumeris - Workers' Campus (+2D) [+20% Ship and Construction buyout reduction]"},null,"Amélioration - Lumeris - Campus ouvrier (+2B) [+20% réduction achat vaisseau et construction]","Improvement - Lumeris - Workers' Campus (+2D) [+20% Ship and Construction buyout reduction]"]
["Improvement - Pulvis Production (+2D)",null,"Amélioration - Production Pulvis (+2B)","Improvement - Pulvis Production (+2D)"]
[{"$f":"IF(ISBLANK(C209),\"\",IF($G$3=1,C209,D209))","v":"Improvement - Adaptive Taxation Systems (+4D on Fertile) (+4D on Temperate)"},null,"Amélioration - Système d'imposition adaptatif (+4B sur Fertile) (+4B sur Tempérés)","Improvement - Adaptive Taxation Systems (+4D on Fertile) (+4D on Temperate)"]
[{"$f":"IF(ISBLANK(C210),\"\",IF($G$3=1,C210,D210))","v":"Improvement - Unique - Dust Anti-Trafficking Center (+3D)"},null,"Amélioration - Unique - Centre anti-traffic de brume (+3B)","Improvement - Unique - Dust Anti-Trafficking Center (+3D)"]
[{"$f":"IF(ISBLANK(C211),\"\",IF($G$3=1,C211,D211))","v":"Improvement - Unique - Intergalacitic Supermarket (+3D)"},null,"Amélioration - Unique - Supermarché Intergalacitique (+3B)","Improvement - Unique - Intergalacitic Supermarket (+3D)"]
[{"$f":"IF(ISBLANK(C212),\"\",IF($G$3=1,C212,D212))","v":"Improvement - Unique - Riftborn - Cube of the Viceroy (+5D on Original Empire population)"},null,"Amélioration - Unique - Peuple de la Faille - Cube du Vice-roi (+5B par Autotochne)","Improvement - Unique - Riftborn - Cube of the Viceroy (+5D on Original Empire population)"]
[{"$f":"IF(ISBLANK(C213),\"\",IF($G$3=1,C213,D213))","v":"Improvement - School of Geniuses (+5S with Negative Anomaly) (+5S with Reduced Anomaly)"},null,"Amélioration - École des génies  (+5S sur Anomalie négative) (+5S sur Anomalie réduite)","Improvement - School of Geniuses (+5S with Negative Anomaly) (+5S with Reduced Anomaly)"]
["Improvement - Punctuated Evolution Foundation (+4S on Fertile) (+2S on Cold)",null,"Amélioration - Fondation pour l'évolution ponctuée (+4S sur Fertile) (+2S sur Froid)","Improvement - Punctuated Evolution Foundation (+4S on Fertile) (+2S on Cold)"]
["Improvement - Magnectic Field Generators (+1S)  (+2S with Anomalies)",null,"Amélioration - Générateurs de champs magnétiques (+1S)  (+2S avec Anomalies)","Improvement - Magnectic Field Generators (+1S)  (+2S with Anomalies)"]
["Improvement - Graviton-shielded Laboratories (+2S)",null,"Amélioration - Labos protégés des gravitons (+2S)","Improvement - Graviton-shielded Laboratories (+2S)"]
["Improvement - Gamma Analysis Platforms (+2S on Planet) (+4S on Large)  (+5S on Huge)",null,"Amélioration - Plateforme d'analyse gamma (+2S sur Planète) (+4S Grande)  (+5S Gigantesque)","Improvement - Gamma Analysis Platforms (+2S on Planet) (+4S on Large)  (+5S on Huge)"]
[{"$f":"IF(ISBLANK(C218),\"\",IF($G$3=1,C218,D218))","v":"Improvement - Sophons - Graviton-shielded Laboratories (+3S)"},null,"Amélioration - Sophons - Labos protégés des gravitons (+3S)","Improvement - Sophons - Graviton-shielded Laboratories (+3S)"]
[{"$f":"IF(ISBLANK(C219),\"\",IF($G$3=1,C219,D219))","v":"Improvement - United Empire - Who's Yuri? (+5S with Anomalies)"},null,"Amélioration - United Empire - Qui est Yuri ? (+5S avec Anomalies)","Improvement - United Empire - Who's Yuri? (+5S with Anomalies)"]
["Improvement - Citizen's Entrepreneurium (+2In)",null,"Amélioration - Entreprenarium des citoyens (+1In)","Improvement - Citizen's Entrepreneurium (+2In)"]
[{"$f":"IF(ISBLANK(C221),\"\",IF($G$3=1,C221,D221))","v":"Improvement - Horatio - Quest - Cultural Apogee Center (+2In on Original Empire population)"},null,"Amélioration - Horatio - Quête - Centre d'apogée culturelle (+2In par Autotochne)","Improvement - Horatio - Quest - Cultural Apogee Center (+2In on Original Empire population)"]
[{"$f":"IF(ISBLANK(C222),\"\",IF($G$3=1,C222,D222))","v":"Improvement - Horatio - Quest - The Horatio Channel (+2In) [+5A on System]"},null,"Amélioration - Horatio - Quête - La chaîne Horatio (+2In) [+5A sur Système]","Improvement - Horatio - Quest - The Horatio Channel (+2In) [+5A on System]"]
["Improvement - National Museum (+1In where Happy) (+2In where Ecstatic)",null,"Amélioration - Musée national (+1In avec Heureux) (+2In avec Extatique)","Improvement - National Museum (+1In where Happy) (+2In where Ecstatic)"]
["Improvement - Microwave Pipes (+2Σ)",null,"Amélioration - Canalisation micro-ondes (+2Σ)","Improvement - Microwave Pipes (+2Σ)"]
["Improvement - Lodestone Link (+1Σ on Planet) (+2Σ on Small) (+3Σ on Tiny)",null,"Amélioration - Lien magnétite (+1Σ sur Planète) (+2Σ sur Petite) (+3Σ sur Minuscule)","Improvement - Lodestone Link (+1Σ on Planet) (+2Σ on Small) (+3Σ on Tiny)"]
["Improvement - Obelisks of All Space-Time (+5Σ)",null,"Amélioration - Obélique de Tout l'Espace Temps (+5Σ)","Improvement - Obelisks of All Space-Time (+5Σ)"]
[{"$f":"IF(ISBLANK(C227),\"\",IF($G$3=1,C227,D227))","v":"Improvement - Unique - Denarque University (+2Σ)"},null,"Amélioration - Unique - Université de Denarque (+2Σ)","Improvement - Unique - Denarque University (+2Σ)"]
[{"$f":"IF(ISBLANK(C228),\"\",IF($G$3=1,C228,D228))","v":"Improvement - Vodyani - Phased Cloths (+1FIDS)"},null,"Amélioration - Vodyani - Étoffes phasiques (+2NIBS)","Improvement - Vodyani - Phased Cloths (+1FIDS)"]
[{"$f":"IF(ISBLANK(C229),\"\",IF($G$3=1,C229,D229))","v":"Improvement - Habitable Anomalies (+1P with Anomalies)"},null,"Amélioration - Anomalies habitables (+1P avec Anomalies)","Improvement - Habitable Anomalies (+1P with Anomalies)"]
[{"$f":"IF(ISBLANK(C230),\"\",IF($G$3=1,C230,D230))","v":"Improvement - Umbral Choir - Wraith Compression (+1P on Crescent)"},null,"Amélioration - Chœur ombral - Compression spectrale (+1P sur Croissant)","Improvement - Umbral Choir - Wraith Compression (+1P on Crescent)"]
[{"$f":"IF(ISBLANK(C231),\"\",IF($G$3=1,C231,D231))","v":"Improvement - Umbral Choir - Micro Domiciles (+1P on Crescent)"},null,"Amélioration - Chœur ombral - Micro-domiciles (+1P sur Croissant)","Improvement - Umbral Choir - Micro Domiciles (+1P on Crescent)"]
["Improvement - Eco Habitats (+1P on Sterile)",null,"Amélioration - Eco-Habitats (+1P sur Stérile)","Improvement - Eco Habitats (+1P on Sterile)"]
[{"$f":"IF(ISBLANK(C233),\"\",IF($G$3=1,C233,D233))","v":"Improvement - Lunar Suburbs (+2P with Lunar Anomaly)"},null,"Amélioration - Faubourgs lunaires (+2P avec Anomalie lunaire)","Improvement - Lunar Suburbs (+2P with Lunar Anomaly)"]
["Improvement - Cosmetic Genetics (+1P on Fertile) (+1P on Sterile)",null,"Amélioration - Génétique cosmétique (+1P sur Fertile) (+1P sur Stérile)","Improvement - Cosmetic Genetics (+1P on Fertile) (+1P on Sterile)"]
[{"$f":"IF(ISBLANK(C235),\"\",IF($G$3=1,C235,D235))","v":"Improvement - Deep Atmosphere Habitats (+3P on Gas)"},null,"Amélioration - Habitats en atmosphère profonde (+3P sur Gaz)","Improvement - Deep Atmosphere Habitats (+3P on Gas)"]
[{"$f":"IF(ISBLANK(C236),\"\",IF($G$3=1,C236,D236))","v":"Improvement - Horatio - Skyward Dwellings (+1P)"},null,"Amélioration - Horatio - Habitats céleste (+1P)","Improvement - Horatio - Skyward Dwellings (+1P)"]
[{"$f":"IF(ISBLANK(C237),\"\",IF($G$3=1,C237,D237))","v":"Improvement - Riftborn - Burrows (+2P on Sterile)"},null,"Amélioration - Peuple de la Faille - Terriers (+2P sur Stérile)","Improvement - Riftborn - Burrows (+2P on Sterile)"]
["Planetary Specializations",null,"Spécialisations planète","Planetary Specializations"]
["Planetary Specialization - Evolved Soils (+1F) (+1F on Fertile)",null,"Specialisation planète - Sols évolués (+1N) (+1N sur Fertile)","Planetary Specialization - Evolved Soils (+1F) (+1F on Fertile)"]
[{"$f":"IF(ISBLANK(C240),\"\",IF($G$3=1,C240,D240))","v":"Planetary Specialization - Alien Grafting (+2F) (+2F on Fertile)"},null,"Specialisation planète - Xénogreffre (+2N) (+2N sur Fertile)","Planetary Specialization - Alien Grafting (+2F) (+2F on Fertile)"]
["Planetary Specialization - Aquaculture Dome (+3F) (+3F on Fertile)",null,"Specialisation planète - Dômes d'aquaculture (+3N) (+3N sur Fertile)","Planetary Specialization - Aquaculture Dome (+3F) (+3F on Fertile)"]
["Planetary Specialization - Industrial Zones (+1I) (+1I on Hot)",null,"Specialisation planète - Zone industrielle (+1I) (+1I sur Chaud)","Planetary Specialization - Industrial Zones (+1I) (+1I on Hot)"]
["Planetary Specialization - Geo-industrial Plants (+2I) (+2I on Hot)",null,"Specialisation planète - Usine Géo-Industrielle (+2I) (+2I sur Chaud)","Planetary Specialization - Geo-industrial Plants (+2I) (+2I on Hot)"]
["Planetary Specialization - Colonial Exchange (+1D) (+1D on Sterile)",null,"Specialisation planète - Economie coloniale (+1B) (+1B sur Stérile)","Planetary Specialization - Colonial Exchange (+1D) (+1D on Sterile)"]
["Planetary Specialization - Atemporal Finance (+2D) (+2D on Sterile)",null,"Specialisation planète - Finance intemporelle (+2B) (+2B sur Stérile)","Planetary Specialization - Atemporal Finance (+2D) (+2D on Sterile)"]
["Planetary Specialization - Exoscience Stations (+1S) (+1S on Cold)",null,"Specialisation planète - Station exoscientifique (+1S) (+1S sur Froid)","Planetary Specialization - Exoscience Stations (+1S) (+1S on Cold)"]
["Planetary Specialization - Citizen Science (+2S) (+2S on Cold)",null,"Specialisation planète - Science civile (+2S) (+2S sur Froid)","Planetary Specialization - Citizen Science (+2S) (+2S on Cold)"]
["Planetary Specialization - SPIN Project (+1In)",null,"Specialisation planète - Projet DESINFO (+1In)","Planetary Specialization - SPIN Project (+1In)"]
["Planetary Specialization - Edenization (+2In)",null,"Specialisation planète - Edénisation (+2In)","Planetary Specialization - Edenization (+2In)"]
[{"$f":"IF(ISBLANK(C250),\"\",IF($G$3=1,C250,D250))","v":"Planetary Specialization - Bio-Enhancement Facility (+3In)"},null,"Specialisation planète - Centre de Bio-amélioration (+3In)","Planetary Specialization - Bio-Enhancement Facility (+3In)"]
[{"$f":"IF(ISBLANK(C251),\"\",IF($G$3=1,C251,D251))","v":"Planetary Specialization - Hissho - Fealty Center (+1FIDS)"},null,"Specialisation planète - Hissho - Centre féodal (+1NIBS)","Planetary Specialization - Hissho - Fealty Center (+1FIDS)"]
["Planetary Specialization - Hissho - Fealty Foundation (+2FIDS)",null,"Specialisation planète - Hissho - Fondation féodale (+2NIBS)","Planetary Specialization - Hissho - Fealty Foundation (+2FIDS)"]
["Planetary Specialization - Hissho - Fealty Institute (+3FIDS)",null,"Specialisation planète - Hissho - Institut féodal (+3NIBS)","Planetary Specialization - Hissho - Fealty Institute (+3FIDS)"]
["Heroes",null,"Héros","Heroes"]
[{"$f":"IF(ISBLANK(C255),\"\",IF($G$3=1,C255,D255))","v":"Hero - Starting skill - Generic Skill (+1F on Orignal Empire population)"},null,"Héros - Compétence de départ - Comptétence générique (+1N par Autotochne)","Hero - Starting skill - Generic Skill (+1F on Orignal Empire population)"]
["Hero - Starting skill - Generic Skill (+1I)",null,"Héros - Compétence de départ - Comptétence générique (+1I)","Hero - Starting skill - Generic Skill (+1I)"]
["Hero - Starting skill - Generic Skill (+1D)",null,"Héros - Compétence de départ - Comptétence générique (+1B)","Hero - Starting skill - Generic Skill (+1D)"]
["Hero - Starting skill - Generic Skill (+1S)",null,"Héros - Compétence de départ - Comptétence générique (+1S)","Hero - Starting skill - Generic Skill (+1S)"]
[{"$f":"IF(ISBLANK(C259),\"\",IF($G$3=1,C259,D259))","v":"Hero - Starting skill - Generic Skill (+1In)"},null,"Héros - Compétence de départ - Comptétence générique (+1In)","Hero - Starting skill - Generic Skill (+1In)"]
[{"$f":"IF(ISBLANK(C260),\"\",IF($G$3=1,C260,D260))","v":"Hero - Starting skill - Generic Skill (+1In on Orignal Empire population)"},null,"Héros - Compétence de départ - Comptétence générique (+1In par Autotochne)","Hero - Starting skill - Generic Skill (+1In on Orignal Empire population)"]
["Hero - Starting skill - Generic Skill (+1A on Orignal Empire population)",null,"Héros - Compétence de départ - Comptétence générique (+1A par Autotochne)","Hero - Starting skill - Generic Skill (+1A on Orignal Empire population)"]
[{"$f":"IF(ISBLANK(C262),\"\",IF($G$3=1,C262,D262))","v":"Hero - Starting skill - Generic Skill (+0.5Σ)"},null,"Héros - Compétence de départ - Comptétence générique (+0.5Σ)","Hero - Starting skill - Generic Skill (+0.5Σ)"]
[{"$f":"IF(ISBLANK(C263),\"\",IF($G$3=1,C263,D263))","v":"Héros - Cravers - Endless Consumption (+2 FIDSI) (+200% FIDSI on undepleted planets) (+8 DP)"},null,"Héros - Cravers - Dévoration Endless (+2 NIBSI) (+200% NIBSI sur planète non épuisée) (+8 PE)","Héros - Cravers - Endless Consumption (+2 FIDSI) (+200% FIDSI on undepleted planets) (+8 DP)"]
["Hero - Hive Mind - Level 1 (+1A)",null,"Héros - Esprit de ruche - Niveau 1 (+1A)","Hero - Hive Mind - Level 1 (+1A)"]
["Hero - Hive Mind - Level 2 (+2A)",null,"Héros - Esprit de ruche - Niveau 2 (+2A)","Hero - Hive Mind - Level 2 (+2A)"]
[{"$f":"IF(ISBLANK(C266),\"\",IF($G$3=1,C266,D266))","v":"Hero - Hive Mind - Hissho - Level 1 (+0.5In)"},null,"Héros - Esprit de ruche - Hissho - Niveau 1 (+0.5In)","Hero - Hive Mind - Hissho - Level 1 (+0.5In)"]
["Hero - Hive Mind - Hissho - Level 2 (+1In)",null,"Héros - Esprit de ruche - Hissho - Niveau 2 (+1In)","Hero - Hive Mind - Hissho - Level 2 (+1In)"]
["Hero - Optimal Operations Expert - Level 1 (+1F) (+1I)",null,"Héros - Expert en opérations optimales - Niveau 1 (+1N) (+1I)","Hero - Optimal Operations Expert - Level 1 (+1F) (+1I)"]
["Hero - Optimal Operations Expert - Level 2 (+2F) (+2I)",null,"Héros - Expert en opérations optimales - Niveau 2 (+2N) (+2I)","Hero - Optimal Operations Expert - Level 2 (+2F) (+2I)"]
["Hero - Infallible Authority (+2Σ)",null,"Héros - Autorité infaillible (+2Σ)","Hero - Infallible Authority (+2Σ)"]
["Hero - Fecund Gardens - Level 1 (+1F) (+1F on Orignal Empire population)",null,"Héros - Jardins féconds - Niveau 1 (+1N) (+1N par Autotochne)","Hero - Fecund Gardens - Level 1 (+1F) (+1F on Orignal Empire population)"]
["Hero - Fecund Gardens - Level 2 (+2F) (+2F on Orignal Empire population)",null,"Héros - Jardins féconds - Niveau 2 (+2N) (+2N par Autotochne)","Hero - Fecund Gardens - Level 2 (+2F) (+2F on Orignal Empire population)"]
["Hero - Fecund Gardens - Level 1+ (+4F) (+4F on Orignal Empire population)",null,"Héros - Jardins féconds - Niveau 1+ (+4N) (+4N par Autotochne)","Hero - Fecund Gardens - Level 1+ (+4F) (+4F on Orignal Empire population)"]
["Hero - Fecund Gardens - Level 2+ (+8F) (+8F on Orignal Empire population)",null,"Héros - Jardins féconds - Niveau 2+ (+8N) (+8N par Autotochne)","Hero - Fecund Gardens - Level 2+ (+8F) (+8F on Orignal Empire population)"]
["Hero - Renegade Master (+2FIDS per Foreign population) (+5A per Foreign population)",null,"Héros - Maître renégat (+2NIBS par population étrangère) (+5A par population étrangère)","Hero - Renegade Master (+2FIDS per Foreign population) (+5A per Foreign population)"]
["Hero - Personal Militia - Level 1 (+1In)",null,"Héros - Milice personnelle - Niveau 1 (+1In)","Hero - Personal Militia - Level 1 (+1In)"]
["Hero - Personal Militia - Level 2 (+2In)",null,"Héros - Milice personnelle - Niveau 2 (+2In)","Hero - Personal Militia - Level 2 (+2In)"]
["Hero - Restricted Supplier (+2I on Ecstatic)",null,"Héros - Monopole (+2I avec Extatique)","Hero - Restricted Supplier (+2I on Ecstatic)"]
["Hero - Rousing Orator - Level 1 (+1In)",null,"Héros - Orateur émouvant - Niveau 1 (+1In)","Hero - Rousing Orator - Level 1 (+1In)"]
["Hero - Rousing Orator - Level 2 (+2In)",null,"Héros - Orateur émouvant - Niveau 2 (+2In)","Hero - Rousing Orator - Level 2 (+2In)"]
["Hero - Rousing Orator - Level 1+ (+2In) (+2In on Happy)",null,"Héros - Orateur émouvant - Niveau 1+ (+2In) (+2In avec Heureux)","Hero - Rousing Orator - Level 1+ (+2In) (+2In on Happy)"]
["Hero - Rousing Orator - Level 2+ (+4In) (+4In on Happy)",null,"Héros - Orateur émouvant - Niveau 2+ (+4In) (+4In avec Heureux)","Hero - Rousing Orator - Level 2+ (+4In) (+4In on Happy)"]
["Hero - Personal Networking - Level 1 (+3I)",null,"Héros - Réseaux personnels - Niveau 1 (+3I)","Hero - Personal Networking - Level 1 (+3I)"]
["Hero - Personal Networking - Level 2 (+6I)",null,"Héros - Réseaux personnels - Niveau 2 (+6I)","Hero - Personal Networking - Level 2 (+6I)"]
["Senate (3 max) - Hero on senate",null,"Sénateurs (3 max) - Héros au sénat","Senate (3 max) - Hero on senate"]
["Senator - Infallible Authority (+0.5Σ)",null,"Sénateur - Autorité infaillible (+0.5Σ)","Senator - Infallible Authority (+0.5Σ)"]
["Senator - Personal Networking (+1I)",null,"Sénateur - Réseaux personnels (+1I)","Senator - Personal Networking (+1I)"]
["Governement & Laws",null,"Gouvernement & lois","Governement & Laws"]
["Governement - Democracy (+1A)",null,"Gouvernement - Démocratie (+1A)","Governement - Democracy (+1A)"]
["Ecologist law : Green Fertility Bill (+2F on Anomaly) (+3F with Republic)",null,"Loi écologique : Fertilité verte (+2N sur Anomalie) (+3N sur République)","Ecologist law : Green Fertility Bill (+2F on Anomaly) (+3F with Republic)"]
["Ecologist law : Cool Copies Clause (+2F) (+4F with Republic)",null,"Loi écologique : Les copies, c'est cool (+2N) (+4N sur République)","Ecologist law : Cool Copies Clause (+2F) (+4F with Republic)"]
["Independant law : Super Tax Act (+3D) (+4D with Republic)  [-20A on System]",null,"Loi indépendant : Loi des super-taxes (+3B) (+4B sur République)  [-20A sur système]","Independant law : Super Tax Act (+3D) (+4D with Republic)  [-20A on System]"]
["Independant law : Cram Exam Act (+3S) (-2A) (+4S with Republic)",null,"Loi indépendant : Loi du bachotage (+3S) (-2A) (+4S sur République)","Independant law : Cram Exam Act (+3S) (-2A) (+4S with Republic)"]
["Independant law : Senateur Bob Act (-2D) (+2A) (+3A with Republic)",null,"Loi indépendant : Loi du sénateur Bob (-2B) (+2A) (+3A sur République)","Independant law : Senateur Bob Act (-2D) (+2A) (+3A with Republic)"]
["Independant law : Hi Sci Act (+2S) (+3S with Republic)",null,"Loi indépendant : Loi Hyper-Science (+2S) (+3S sur République)","Independant law : Hi Sci Act (+2S) (+3S with Republic)"]
["Industrialist law : Work Not Shirk Act (+6I) (+8I with Republic)",null,"Loi industrielle : Loi travailler plus, produire plus (+6I) (+8I sur République)","Industrialist law : Work Not Shirk Act (+6I) (+8I with Republic)"]
["Law militaire (Hissho) : US or Them Decree (+1I) (+2I with Republic)",null,"Loi militaire (Hissho) : Décret \"eux ou nous\" (+1I) (+2I sur République)","Law militaire (Hissho) : US or Them Decree (+1I) (+2I with Republic)"]
[{"$f":"IF(ISBLANK(C298),\"\",IF($G$3=1,C298,D298))","v":"Pacifist law : Right Thing Rule (+1D)"},null,"Loi pacifiste : Le règne du bien (+1B)","Pacifist law : Right Thing Rule (+1D)"]
["Pacifist law (Dictatorship) : Right Thing Rule (+2D)",null,"Loi pacifiste (Dictature) : Le règne du bien (+2B)","Pacifist law (Dictatorship) : Right Thing Rule (+2D)"]
["Religious law : Species Stabilty Act (+5D on Original Empire Pop.) (+10D on EOP with Republic)",null,"Loi religieuse : Loi de stabilité des espèces (+5B sur Autochtone) (+10B sur république)","Religious law : Species Stabilty Act (+5D on Original Empire Pop.) (+10D on EOP with Republic)"]
["Religious law : Righteous Fury (+1In)",null,"Loi religieuse : Loi juste fureur (+1In)","Religious law : Righteous Fury (+1In)"]
["Scientist law (Dictatorship) : Oracle of Science (+1S)",null,"Loi scientifique (Dictature) : Oracle de la science (+1S)","Scientist law (Dictatorship) : Oracle of Science (+1S)"]
["Hissoh law : Tombs and Trinkets (-2D)",null,"Loi Hissoh : Tombes et colifichets (-2B)","Hissoh law : Tombs and Trinkets (-2D)"]
["Niris law : Zero Tolerance Waste Act (+1A)",null,"Loi Niris : Tolérance zéro sur les déchets (+1A)","Niris law : Zero Tolerance Waste Act (+1A)"]
["Strategics ressources deposit",null,"Gisements stratégiques","Strategics ressources deposit"]
["Strategic ressource deposit - Titanium (+1I)",null,"Gisement stratégique - Titane (+1I)","Strategic ressource deposit - Titanium (+1I)"]
["Strategic ressource deposit - Hyperium (+1S)",null,"Gisement stratégique - Hyperium (+1S)","Strategic ressource deposit - Hyperium (+1S)"]
["Strategic ressource deposit - Adamantian (+2I)",null,"Gisement stratégique - Adamantian (+2I)","Strategic ressource deposit - Adamantian (+2I)"]
["Strategic ressource deposit - Antimatter (+2S)",null,"Gisement stratégique - Antimatière (+2S)","Strategic ressource deposit - Antimatter (+2S)"]
["Strategic ressource deposit - Orichalcix (+2I +1S)",null,"Gisement stratégique - Orichalcix (+2I +1S)","Strategic ressource deposit - Orichalcix (+2I +1S)"]
["Strategic ressource deposit - Quadrinix (+1I +2S)",null,"Gisement stratégique - Quadrinix (+1I +2S)","Strategic ressource deposit - Quadrinix (+1I +2S)"]
["Luxeries ressources deposit",null,"Gisements de luxe","Luxeries ressources deposit"]
["Luxery ressource deposit - Amianthoid (+2I) (+2D)",null,"Gisement luxe - Amianthoïdes (+2I) (+2B)","Luxery ressource deposit - Amianthoid (+2I) (+2D)"]
["Luxery ressource deposit - Dustciduous Trees (+2D) (+1A)",null,"Gisement luxe - Arbres brumilicieux (+2B) (+1A)","Luxery ressource deposit - Dustciduous Trees (+2D) (+1A)"]
[{"$f":"IF(ISBLANK(C315),\"\",IF($G$3=1,C315,D315))","v":"Luxery ressource deposit - Virtual Artifacts (+4S) (+2A)"},null,"Gisement luxe - Artefacts virtuels (+4S) (+2A)","Luxery ressource deposit - Virtual Artifacts (+4S) (+2A)"]
["Luxery ressource deposit - Drift Buds (+8F)",null,"Gisement luxe - Bourgeons de Brume (+8F)","Luxery ressource deposit - Drift Buds (+8F)"]
["Luxery ressource deposit - Lost Cities (N-P Artifacts) (+1D) (+2S) (+2A)",null,"Gisement luxe - Cités perdus (Artefact N-P) (+1B) (+2S) (+2A)","Luxery ressource deposit - Lost Cities (N-P Artifacts) (+1D) (+2S) (+2A)"]
["Luxery ressource deposit - Ionic Crystal (+4S)",null,"Gisement luxe - Crystal Ionique (+4S)","Luxery ressource deposit - Ionic Crystal (+4S)"]
["Luxery ressource deposit - DustWater (+4F) (+2A)",null,"Gisement luxe - Eau-de-Brume (+4N) (+2A)","Luxery ressource deposit - DustWater (+4F) (+2A)"]
["Luxery ressource deposit - Eden Incense (+2S) (+1A)",null,"Gisement luxe - Encens d'Éden (+2S) (+1A)","Luxery ressource deposit - Eden Incense (+2S) (+1A)"]
["Luxery ressource deposit - Endless Foundries (C-Artifacts) (+4I) (+2A)",null,"Gisement luxe - Fonderie Endless (Artefact C) (+4I) (+2A)","Luxery ressource deposit - Endless Foundries (C-Artifacts) (+4I) (+2A)"]
["Luxery ressource deposit - Benthic Gems (+4D) (+2A)",null,"Gisement luxe - Gemmes benthiques (+4B) (+2A)","Luxery ressource deposit - Benthic Gems (+4D) (+2A)"]
["Luxery ressource deposit - Giga Lattice (+2In)",null,"Gisement luxe - Giga Lacis (+2In)","Luxery ressource deposit - Giga Lattice (+2In)"]
["Luxery ressource deposit - Hydromiel (+4F)",null,"Gisement luxe - Hydromiel (+4N)","Luxery ressource deposit - Hydromiel (+4F)"]
["Luxery ressource deposit - Jadonyx (+2I) (+1A)",null,"Gisement luxe - Jadonyx (+2I) (+1A)","Luxery ressource deposit - Jadonyx (+2I) (+1A)"]
["Luxery ressource deposit - Mercurite (+3D) (+2S)",null,"Gisement luxe - Mercurite (+3B) (+2S)","Luxery ressource deposit - Mercurite (+3D) (+2S)"]
["Luxery ressource deposit - Meta-Entactogen (+3In) (+2A)",null,"Gisement luxe - Méta-entactogène (+3In) (+2A)","Luxery ressource deposit - Meta-Entactogen (+3In) (+2A)"]
["Luxery ressource deposit - Bluecap Mold (+1F) (+1D) (+1A)",null,"Gisement luxe - Moisi bleu (+1N) (+1B) (+1A)","Luxery ressource deposit - Bluecap Mold (+1F) (+1D) (+1A)"]
["Luxery ressource deposit - Gossamer (+4D)",null,"Gisement luxe - Mousseline (+4B)","Luxery ressource deposit - Gossamer (+4D)"]
["Luxery ressource deposit - Dark Glitter (+1I) (+2S)",null,"Gisement luxe - Paillettes noires (+1I) (+2S)","Luxery ressource deposit - Dark Glitter (+1I) (+2S)"]
["Luxery ressource deposit - Void Stone (+4I)",null,"Gisement luxe - Pierre-de-Vide (+4I)","Luxery ressource deposit - Void Stone (+4I)"]
["Luxery ressource deposit - Proto-Orchid (+1F) (+1I) (+1D) (+1S)",null,"Gisement luxe - Proto-orchidée (+1N) (+1I) (+1B) (+1S)","Luxery ressource deposit - Proto-Orchid (+1F) (+1I) (+1D) (+1S)"]
["Luxery ressource deposit - Proto-spores (+2F) (+2I) (+2D) (+2S) (+2A)",null,"Gisement luxe - Proto-spores (+2N) (+2I) (+2B) (+2S) (+2A)","Luxery ressource deposit - Proto-spores (+2F) (+2I) (+2D) (+2S) (+2A)"]
["Luxery ressource deposit - RedSang (+1F) (+2D)",null,"Gisement luxe - Sanguine (+1N) (+2B)","Luxery ressource deposit - RedSang (+1F) (+2D)"]
["Luxery ressource deposit - Superspuds (+2F) (+1A)",null,"Gisement luxe - Super-patates (+2N) (+1A)","Luxery ressource deposit - Superspuds (+2F) (+1A)"]
["Luxery ressource deposit - Transvine (+3A)",null,"Gisement luxe - Transliane (+3A)","Luxery ressource deposit - Transvine (+3A)"]
["Systems development (Level 2 / 3 / 4 modernization)",null,"Développement de systèmes (Modernisation niveau 2 / 3 / 4)","Systems development (Level 2 / 3 / 4 modernization)"]
["System development - Lost Cities (N-P Artifacts) (+2A)",null,"Développement de système - Cités perdus (+2A)","System development - Lost Cities (N-P Artifacts) (+2A)"]
["System development - Ionic Crystal (+4S)",null,"Développement de système - Cristal Ionique (+4S)","System development - Ionic Crystal (+4S)"]
["System development - Giga Lattice (+2In)",null,"Développement de système - Giga Laxis (+2In)","System development - Giga Lattice (+2In)"]
["System development - Hydromiel (+4F)",null,"Développement de système - Hydromiel (+4N)","System development - Hydromiel (+4F)"]
["System development - Void Stone (+4I)",null,"Développement de système - Pierre-de-Vide (+4I)","System development - Void Stone (+4I)"]
[{"$f":"IF(ISBLANK(C343),\"\",IF($G$3=1,C343,D343))","v":"System development - Proto-Orchid (+4D)"},null,"Développement de système - Proto-orchidée (+4B)","System development - Proto-Orchid (+4D)"]
[{"$f":"IF(ISBLANK(C344),\"\",IF($G$3=1,C344,D344))","v":"System development - Vaulters - Adamantian (+3F) (+3I)"},null,"Développement de système - Exilés - Adamantian (+3N) (+3I)","System development - Vaulters - Adamantian (+3F) (+3I)"]
["System development - Vaulters - Antimatter (+3D) (+3S)",null,"Développement de système - Exilés - Antimatière (+3B) (+3S)","System development - Vaulters - Antimatter (+3D) (+3S)"]
["Anomalies",null,"Anomalies","Anomalies"]
["Moon - Binary Moons (+1P) → Binary Moons (+1P) / Explored Moons (+1I) (+2P)",null,"Lune - Lunes binaires (+1P) → Lunes binaires (+1P) / Lunes explorées (+1I) (+2P)","Moon - Binary Moons (+1P) → Binary Moons (+1P) / Explored Moons (+1I) (+2P)"]
["Moon - Multiple Moons (+1P) → Multiple Moons (+1P) / Explored Moons (+2I) (+2P)",null,"Lune - Plusieurs lunes (+1P) → Lunes multiples (+1P) / Lunes explorées (+2I) (+2P)","Moon - Multiple Moons (+1P) → Multiple Moons (+1P) / Explored Moons (+2I) (+2P)"]
["Moon - Single Moon (+1P) → Single Moon (+1P) / Explored Moon (+1I) (+1P)",null,"Lune - Une lune (+1P) → Une seule lune (+1P) / Lune explorée (+1I) (+1P)","Moon - Single Moon (+1P) → Single Moon (+1P) / Explored Moon (+1I) (+1P)"]
["Mixed anomaly - Geothermic Activity (+1I) (1S)",null,"Anomalie complexe - Activité géothermique (+1I) (1S)","Mixed anomaly - Geothermic Activity (+1I) (1S)"]
["Mixed anomaly - Seismic Activity (-1D) (+1S) (-2A)",null,"Anomalie complexe - Activité sismique (-1B) (+1S) (-2A)","Mixed anomaly - Seismic Activity (-1D) (+1S) (-2A)"]
["Mixed anomaly - Psychoactive Air (+1D) (-1S) (+1A)",null,"Anomalie complexe - Air psychoactif (+1B) (-1S) (+1A)","Mixed anomaly - Psychoactive Air (+1D) (-1S) (+1A)"]
["Mixed anomaly - Aurora Waves (+2D) (-2S) ( +1A)",null,"Anomalie complexe - Aurores boréales (+2B) (-2S) ( +1A)","Mixed anomaly - Aurora Waves (+2D) (-2S) ( +1A)"]
["Mixed anomaly - Shattered Crust / Tunneled Crust (-1I) (+2D) (-2A)",null,"Anomalie complexe - Croûte brisée / Croûte traversée (-1I) (+2B) (-2A)","Mixed anomaly - Shattered Crust / Tunneled Crust (-1I) (+2D) (-2A)"]
["Mixed anomaly - Metallic Waters (-1F) (+1I) (-2A)",null,"Anomalie complexe - Eaux riches en métaux (-1N) (+1I) (-2A)","Mixed anomaly - Metallic Waters (-1F) (+1I) (-2A)"]
["Mixed anomaly - Hostile Fauna / Docile Fauna (+1F)(-1S) (-2A)",null,"Anomalie complexe - Faune hostile / Faune docile (+1N)(-1S) (-2A)","Mixed anomaly - Hostile Fauna / Docile Fauna (+1F)(-1S) (-2A)"]
["Mixed anomaly - Meteor Strikes (+1I) (-1S) (-2A)",null,"Anomalie complexe - Frappes de météorites (+1I) (-1S) (-2A)","Mixed anomaly - Meteor Strikes (+1I) (-1S) (-2A)"]
["Mixed anomaly - Ice-10 (-2F) (+2S) (-2A)",null,"Anomalie complexe - Glace 10 (-2N) (+2S) (-2A)","Mixed anomaly - Ice-10 (-2F) (+2S) (-2A)"]
[{"$f":"IF(ISBLANK(C359),\"\",IF($G$3=1,C359,D359))","v":"Mixed anomaly - Flickering Matter (-1I) (+2S)"},null,"Anomalie complexe - Matière oscillatoire (-1I) (+2S)","Mixed anomaly - Flickering Matter (-1I) (+2S)"]
[{"$f":"IF(ISBLANK(C360),\"\",IF($G$3=1,C360,D360))","v":"Mixed anomaly - Pseudo-Atmosphere (-2S) (+1In) (+1A)"},null,"Anomalie complexe - Pseudo-atmosphère (-2S) (+1In) (+1A)","Mixed anomaly - Pseudo-Atmosphere (-2S) (+1In) (+1A)"]
["Detrimental anomaly - Strong Magnetic Field (-1I) (-1S) (-2A)",null,"Anomalie néfaste - Champ magnétique fort (-1I) (-1S) (-2A)","Detrimental anomaly - Strong Magnetic Field (-1I) (-1S) (-2A)"]
[{"$f":"IF(ISBLANK(C362),\"\",IF($G$3=1,C362,D362))","v":"Detrimental anomaly - Low-Quality Foundations (-1FIDS)"},null,"Anomalie néfaste - Fondations médiocres (-1NIBS)","Detrimental anomaly - Low-Quality Foundations (-1FIDS)"]
["Detrimental anomaly - High Gravity / Acceptable Gravity (-2I) (-1S) (-2A)",null,"Anomalie néfaste - Gravité élevée / Gravité acceptable (-2I) (-1S) (-2A)","Detrimental anomaly - High Gravity / Acceptable Gravity (-2I) (-1S) (-2A)"]
["Detrimental anomaly - Irradiated / Irradiated (-1F) (-1S) (-4A)",null,"Anomalie néfaste - Irradiation / Irradié (-1N) (-1S) (-4A)","Detrimental anomaly - Irradiated / Irradiated (-1F) (-1S) (-4A)"]
["Detrimental anomaly -Long Season (-1F) (-1D)",null,"Anomalie néfaste - Longue saison (-1N) (-1B)","Detrimental anomaly -Long Season (-1F) (-1D)"]
["Detrimental anomaly - Permanent Monsoon (-2F) (-2I) (-2A)",null,"Anomalie néfaste - Mousson permanente (-2N) (-2I) (-2A)","Detrimental anomaly - Permanent Monsoon (-2F) (-2I) (-2A)"]
["Detrimental anomaly - Acid Rain (-2I) (-4A)",null,"Anomalie néfaste - Pluie acide (-2I) (-4A)","Detrimental anomaly - Acid Rain (-2I) (-4A)"]
["Detrimental anomaly - Poor Soil / Arable Soil (-3F) (-2A)",null,"Anomalie néfaste - Sol pauvre / Terre arrable (-3N) (-2A)","Detrimental anomaly - Poor Soil / Arable Soil (-3F) (-2A)"]
["Detrimental anomaly - Kessler Syndrome (-1I) (-1D) (-2S)",null,"Anomalie néfaste - Syndrome de Kessler (-1I) (-1B) (-2S)","Detrimental anomaly - Kessler Syndrome (-1I) (-1D) (-2S)"]
["Detrimental anomaly - Polar Tempests (-1F) (-1I) (-2A)",null,"Anomalie néfaste - Tempêtes polaires (-1N) (-1I) (-2A)","Detrimental anomaly - Polar Tempests (-1F) (-1I) (-2A)"]
[{"$f":"IF(ISBLANK(C371),\"\",IF($G$3=1,C371,D371))","v":"Detrimental anomaly - Uninhabitable Area (-2A) (-1P)"},null,"Anomalie néfaste -  Zone inhabitable (-2A) (-1P)","Detrimental anomaly - Uninhabitable Area (-2A) (-1P)"]
[{"$f":"IF(ISBLANK(C372),\"\",IF($G$3=1,C372,D372))","v":"Beneficial anomaly - Dust Accretor (+4D)"},null,"Anomalie bénéfique - Accumulateur de Brume (+4B)","Beneficial anomaly - Dust Accretor (+4D)"]
["Beneficial anomaly - Antonov Rings (+2D) (+1S)",null,"Anomalie bénéfique - Anneaux d'Antonov (+2B) (+1S)","Beneficial anomaly - Antonov Rings (+2D) (+1S)"]
["Beneficial anomaly - Huygens Rings (+1D) (+2S)",null,"Anomalie bénéfique - Anneaux de Huygens (+1B) (+2S)","Beneficial anomaly - Huygens Rings (+1D) (+2S)"]
["Beneficial anomaly - Dense Atmosphere (+2F)",null,"Anomalie bénéfique - Atmosphère dense (+2N)","Beneficial anomaly - Dense Atmosphere (+2F)"]
["Beneficial anomaly - Friendly Locals (+1F) (+2A) (+1P)",null,"Anomalie bénéfique - Autotochnes accueillants (+1N) (+2A) (+1P)","Beneficial anomaly - Friendly Locals (+1F) (+2A) (+1P)"]
["Beneficial anomaly - Behemoth Song (+5D) (+3A)",null,"Anomalie bénéfique - Chant du mastodonte (+5B) (+3A)","Beneficial anomaly - Behemoth Song (+5D) (+3A)"]
["Beneficial anomaly - Deserted Cities (+2I) (+1D) (+2S)",null,"Anomalie bénéfique - Cités désertes (+2I) (+1B) (+2S)","Beneficial anomaly - Deserted Cities (+2I) (+1D) (+2S)"]
["Beneficial anomaly - Husk of Knowledge (+5S)",null,"Anomalie bénéfique - Enveloppe de connaissance (+5S)","Beneficial anomaly - Husk of Knowledge (+5S)"]
["Beneficial anomaly - Cyber Flora (+1F) (+2S) (+1A)",null,"Anomalie bénéfique - Flore cybernétique (+1N) (+2S) (+1A)","Beneficial anomaly - Cyber Flora (+1F) (+2S) (+1A)"]
["Beneficial anomaly - Mutated Flora (+2F) (+2A)",null,"Anomalie bénéfique - Flore mutante (+2N) (+2A)","Beneficial anomaly - Mutated Flora (+2F) (+2A)"]
["Beneficial anomaly - Strange Fossils (+2I +1D)",null,"Anomalie bénéfique - Fossiles étranges (+2I +1B)","Beneficial anomaly - Strange Fossils (+2I +1D)"]
["Beneficial anomaly - Low Gravity (+2I) (+2A)",null,"Anomalie bénéfique - Gravité faible (+2I) (+2A)","Beneficial anomaly - Low Gravity (+2I) (+2A)"]
["Beneficial anomaly - Humeris Insidentes (+4S)",null,"Anomalie bénéfique - Humeris Insidentes (+4S)","Beneficial anomaly - Humeris Insidentes (+4S)"]
["Beneficial anomaly - Garden of Eden (+1F) (+1I) (+1D) (+1S) (+2A) (+1P)",null,"Anomalie bénéfique - Jardin d'Éden (+1N) (+1I) (+1B) (+1S) (+2A) (+1P)","Beneficial anomaly - Garden of Eden (+1F) (+1I) (+1D) (+1S) (+2A) (+1P)"]
[{"$f":"IF(ISBLANK(C386),\"\",IF($G$3=1,C386,D386))","v":"Beneficial anomaly - The Platform of Ys (+2P)"},null,"Anomalie bénéfique - La Plateforme d'Ys (+2P)","Beneficial anomaly - The Platform of Ys (+2P)"]
["Beneficial anomaly - Tree of Worlds (+2F) (+6I)",null,"Anomalie bénéfique - L'arbre des mondes (+2N) (+6I)","Beneficial anomaly - Tree of Worlds (+2F) (+6I)"]
["Beneficial anomaly - The Seventeen Thousand Islands Bridge (+1Σ) (+2P)",null,"Anomalie bénéfique - Le pont des Dix-Sept Mille îles (+1Σ) (+2P)","Beneficial anomaly - The Seventeen Thousand Islands Bridge (+1Σ) (+2P)"]
["Beneficial anomaly - The Fallen Gardens (+2I)",null,"Anomalie bénéfique - Les Jardins effondrés (+2I)","Beneficial anomaly - The Fallen Gardens (+2I)"]
["Beneficial anomaly - Microfactories (+3F) (+1A)",null,"Anomalie bénéfique - Micro-Usines (+3N) (+1A)","Beneficial anomaly - Microfactories (+3F) (+1A)"]
["Beneficial anomaly - Dust Lode (+2D) (+2S)",null,"Anomalie bénéfique - Monde à Brume (+2B) (+2S)","Beneficial anomaly - Dust Lode (+2D) (+2S)"]
["Beneficial anomaly - Talking World (+2In) (+2A)",null,"Anomalie bénéfique - Monde parlant (+2In) (+2A)","Beneficial anomaly - Talking World (+2In) (+2A)"]
["Beneficial anomaly - Dust Nebula (+2D)",null,"Anomalie bénéfique - Nébuleuse de Brume (+2B)","Beneficial anomaly - Dust Nebula (+2D)"]
["Beneficial anomaly - Hollow Planet (+1D) (+1S) (+1P)",null,"Anomalie bénéfique - Planète creuse (+1B) (+1S) (+1P)","Beneficial anomaly - Hollow Planet (+1D) (+1S) (+1P)"]
["Beneficial anomaly - High-Energy Plasmasphere (+1I) (+2S)",null,"Anomalie bénéfique - Plasmasphère à haute énergie (+1I) (+2S)","Beneficial anomaly - High-Energy Plasmasphere (+1I) (+2S)"]
["Beneficial anomaly - Tunneled Slipgates [No blockade penalty] [+1 Trade value]",null,"Anomalie bénéfique - Portails tunneliers [Pas de pénalité de blocus] [+1 Valeur commerciale]","Beneficial anomaly - Tunneled Slipgates [No blockade penalty] [+1 Trade value]"]
["Beneficial anomaly - Coral Reefs (+2F) (+2A)",null,"Anomalie bénéfique - Récifs de corail (+2N) (+2A)","Beneficial anomaly - Coral Reefs (+2F) (+2A)"]
["Beneficial anomaly - Mineral Rich (+3I)",null,"Anomalie bénéfique - Richesse minérale (+3I)","Beneficial anomaly - Mineral Rich (+3I)"]
["Beneficial anomaly - Ancient Ruins (+4D)",null,"Anomalie bénéfique - Ruines antiques (+4B)","Beneficial anomaly - Ancient Ruins (+4D)"]
["Beneficial anomaly - Dust Ruins (+3D) (+2A)",null,"Anomalie bénéfique - Ruines de Brume (+3B) (+2A)","Beneficial anomaly - Dust Ruins (+3D) (+2A)"]
["Beneficial anomaly - Propitious Seasons (+2F) (+1A)",null,"Anomalie bénéfique - Saisons fertiles (+2N) (+1A)","Beneficial anomaly - Propitious Seasons (+2F) (+1A)"]
["Beneficial anomaly - Spotora's Sanctum (+2D) (+3S)",null,"Anomalie bénéfique - Sanctuaire de Spotora (+2B) (+3S)","Beneficial anomaly - Spotora's Sanctum (+2D) (+3S)"]
["Beneficial anomaly - Rich Soil (+3F)",null,"Anomalie bénéfique - Sol riche (+3N)","Beneficial anomaly - Rich Soil (+3F)"]
["Beneficial anomaly - Molten Springs (+3I) (+2D)",null,"Anomalie bénéfique - Sources en fusion (+3I) (+2B)","Beneficial anomaly - Molten Springs (+3I) (+2D)"]
["Beneficial anomaly - Fearful Symmetry (+5S) (+3A)",null,"Anomalie bénéfique - Terrible symétrie (+5S) (+3A)","Beneficial anomaly - Fearful Symmetry (+5S) (+3A)"]
[{"$f":"IF(ISBLANK(C406),\"\",IF($G$3=1,C406,D406))","v":"Beneficial anomaly - Artificial Life (+3F) (+2S)"},null,"Anomalie bénéfique - Vie artificielle (+3N) (+2S)","Beneficial anomaly - Artificial Life (+3F) (+2S)"]
["Beneficial anomaly - Hadopelagic Life (+1F) (+2S)",null,"Anomalie bénéfique - Vie hadopélagique (+1N) (+2S)","Beneficial anomaly - Hadopelagic Life (+1F) (+2S)"]
["Beneficial anomaly - Komatiite Volcano (+4I)",null,"Anomalie bénéfique - Volcan de Komatiite (+4I)","Beneficial anomaly - Komatiite Volcano (+4I)"]
["Curiosities",null,"Curiosités","Curiosities"]
[{"$f":"IF(ISBLANK(C410),\"\",IF($G$3=1,C410,D410))","v":"Curiosity - Pre-galactic Architecture (+1D) (+1S) (+1A)"},null,"Curiosité - Architecture pré-galactique (+1B) (+1S) (+1A)","Curiosity - Pre-galactic Architecture (+1D) (+1S) (+1A)"]
[{"$f":"IF(ISBLANK(C411),\"\",IF($G$3=1,C411,D411))","v":"Curiosity - Battle - Trenches (-2F) (+2S)"},null,"Curiosité - Bataille - Tranchées (-1N) (+1S)","Curiosity - Battle - Trenches (-2F) (+2S)"]
["Curiosity - Battle - Devastation (-2F) (+2S)",null,"Curiosité - Bataille - Dévastation (-2N) (+2S)","Curiosity - Battle - Devastation (-2F) (+2S)"]
["Curiosity - Battle - Apocalyptic Landscape (-3F) (+3S)",null,"Curiosité - Bataille - Paysage apocalyptique (-3N) (+3S)","Curiosity - Battle - Apocalyptic Landscape (-3F) (+3S)"]
[{"$f":"IF(ISBLANK(C414),\"\",IF($G$3=1,C414,D414))","v":"Curiosity - Debris - Small Debris Field (-1D) (+1S)"},null,"Curiosité - Débris - Petit champ de débris (-1B) (+1S)","Curiosity - Debris - Small Debris Field (-1D) (+1S)"]
["Curiosity - Debris - Medium Debris Field (-2D) (+2S)",null,"Curiosité - Débris - Champ de débris moyen (-2B) (+2S)","Curiosity - Debris - Medium Debris Field (-2D) (+2S)"]
["Curiosity - Debris - Large Debris Field (-3D) (+3S)",null,"Curiosite - Débris - Grand champ de débris  (-3B) (+3S)","Curiosity - Debris - Large Debris Field (-3D) (+3S)"]
["Curiosity - Pirate - Gutted Pirate Hideout (+1I) (+1D)",null,"Curiosité - Pirate - Abri pirate délabré (+1I) (+1B)","Curiosity - Pirate - Gutted Pirate Hideout (+1I) (+1D)"]
["Curiosity - Pirate - Gutted Pirate Lair (+2I) (+2D)",null,"Curiosité - Pirate - Repaire pirate délabré (+2I) (+2B)","Curiosity - Pirate - Gutted Pirate Lair (+2I) (+2D)"]
["Curiosity - Pirate - Gutted Pirate Stronghold (+3I) (+3D)",null,"Curiosité - Pirate - Forteresse pirate délabrée (+3I) (+3B)","Curiosity - Pirate - Gutted Pirate Stronghold (+3I) (+3D)"]
["Empire improvements",null,"Améliorations d'empire","Empire improvements"]
["Empire improvement - Power of the Endless (+1Σ on Ecstatic / Devoted)",null,"Amélioration d'empire - Pouvoir des Endless (+1Σ avec Extatique / Dévoué)","Empire improvement - Power of the Endless (+1Σ on Ecstatic / Devoted)"]
["Empire improvement - Floating Superstructures (+1P on Gas) (+1P on Large Gas) (+2P on Huge Gas)",null,"Amélioration d'empire - Superstructures flottantes (+1P sur Gaz) (+1P Grde Gaz) (+2P Gigan. Gaz)","Empire improvement - Floating Superstructures (+1P on Gas) (+1P on Large Gas) (+2P on Huge Gas)"]
["Empire improvement - Hissho - Obsidian Penance Center (+1P on Sterile)",null,"Amélioration d'empire - Hissho - Centre de pénitence obsidienne (+1P sur Stérile)","Empire improvement - Hissho - Obsidian Penance Center (+1P on Sterile)"]
["Empire improvement - Hissho - Obsidian Devotion Center (+2P on Sterile)",null,"Amélioration d'empire - Hissho - Centre de dévotion obsidienne (+2P sur Stérile)","Empire improvement - Hissho - Obsidian Devotion Center (+2P on Sterile)"]
["Empire improvement - Quest - Empire Academie (+2F +2D on Original Empire population)",null,"Amélioration d'empire - Quête - Académie de l'Empire (+2N +2B par Autotochne)","Empire improvement - Quest - Empire Academie (+2F +2D on Original Empire population)"]
["Empire improvement - Riftborn - Isolationist Cells (+1P on Sterile)",null,"Amélioration d'empire - Peuple de la Faille - Cellules isolationnistes (+1P sur Stérile)","Empire improvement - Riftborn - Isolationist Cells (+1P on Sterile)"]
["Empire Traits",null,"Traits d'empire","Empire Traits"]
["Faction Trait - Biophobic (+1P on Sterile) (-1P on Fertile) (+10A on Sterile) (-2A on Fertile)",null,"Traits d'empire - Biophibie (+1P sur Stérile) (-1P sur Fertile) (+10A sur Stérile) (-2A sur Fertile)","Faction Trait - Biophobic (+1P on Sterile) (-1P on Fertile) (+10A on Sterile) (-2A on Fertile)"]
["Faction Trait - Agriculture Experts (minimum 5F if the natural planet value is lower than that)",null,"Traits d'empire - Experts agricoles (5F minimum si la valeur naturelle de la planète est plus faible)","Faction Trait - Agriculture Experts (minimum 5F if the natural planet value is lower than that)"]
["Faction Trait - Research Experts (minimum 5S if the natural planet value is lower than that)",null,"Traits d'empire - Experts en recherche (5S min. si la valeur naturelle de la planète est plus faible)","Faction Trait - Research Experts (minimum 5S if the natural planet value is lower than that)"]
["Faction Trait - Soil Healers (+2Σ on Reduced Anomalies) [+25F per Stetile on System]",null,"Traits d'empire - Guérisseurs des sols (+2Σ sur Anomalies réduites) [+25F par Stétile sur Système]","Faction Trait - Soil Healers (+2Σ on Reduced Anomalies) [+25F per Stetile on System]"]
[{"$f":"IF(ISBLANK(C432),\"\",IF($G$3=1,C432,D432))","v":"Faction Trait - Utopian Infrastructure (+1A on Level 2 Modernization / +2A on Lvl 3 / +3A on Lvl 4)"},null,"Traits d'empire - Infrastructure Utopique (+1A sur Modernisation niveau 2 / +2A sur 3 / +3A sur 4)","Faction Trait - Utopian Infrastructure (+1A on Level 2 Modernization / +2A on Lvl 3 / +3A on Lvl 4)"]
["Faction Trait - Crowded Planets I (+1P)",null,"Traits d'empire - Planète surpeuplée I (+1P)","Faction Trait - Crowded Planets I (+1P)"]
["Faction Trait - Crowded Planets II (+2P)",null,"Traits d'empire - Planète surpeuplée II (+2P)","Faction Trait - Crowded Planets II (+2P)"]
["Faction Trait - Quest - Immigrant Integration (+2I +2S on Foreign population)",null,"Traits d'empire - Quête - Intégration des immigrants (+2I +2S sur population étrangère)","Faction Trait - Quest - Immigrant Integration (+2I +2S on Foreign population)"]
[{"$f":"IF(ISBLANK(C436),\"\",IF($G$3=1,C436,D436))","v":"Faction Trait - Anomalous Science (+2S per Anomalies)"},null,"Traits d'empire - Science anormale (+5S par Anomalies)","Faction Trait - Anomalous Science (+2S per Anomalies)"]
["Other bonus & Unique planets",null,"Autres bonus & planètes uniques","Other bonus & Unique planets"]
[{"$f":"IF(ISBLANK(C438),\"\",IF($G$3=1,C438,D438))","v":"Neutron Star (+1S) (+1In)"},null,"Etoiles à neutrons (+1S) (+1In)","Neutron Star (+1S) (+1In)"]
[{"$f":"IF(ISBLANK(C439),\"\",IF($G$3=1,C439,D439))","v":"Auriga - variable Ice (+12D) (+2S) (+7In)"},null,"Auriga - variable Glace (+12B) (+2S) (+7In)","Auriga - variable Ice (+12D) (+2S) (+7In)"]
[{"$f":"IF(ISBLANK(C440),\"\",IF($G$3=1,C440,D440))","v":"Vanguard - Medium Snow - Riftborn's home planet (+2F) (+2I)"},null,"Avant-garde - Moyenne Neige - Planète d'origine du Peuple de la Faille (+2N) (+2I)","Vanguard - Medium Snow - Riftborn's home planet (+2F) (+2I)"]
[{"$f":"IF(ISBLANK(C441),\"\",IF($G$3=1,C441,D441))","v":"Bilgeli - variable Savannah (+4F) (+6D) (+8S) (+5In)"},null,"Bilgeli - variable Savane (+4N) (+6B) (+8S) (+5In)","Bilgeli - variable Savannah (+4F) (+6D) (+8S) (+5In)"]
["Husk - Medium Jungle - Cravers home planet (+2D) (+2S)",null,"Carcasse - Moyenne Jungle - Planète d'origine des Cravers (+2B) (+2S)","Husk - Medium Jungle - Cravers home planet (+2D) (+2S)"]
["Chiark - Tiny Terran / Huge Desert / Small Lava - Quest (+5In)",null,"Chiark - Minuscule Terrienne / Gigantesque Désert / Petite Lave - Quête (+5In)","Chiark - Tiny Terran / Huge Desert / Small Lava - Quest (+5In)"]
["Hekim - Medium Boreal - Sophons home planet (+3I)",null,"Hekim - Moyenne Boréal - Planète d'origine des Sophons (+3I)","Hekim - Medium Boreal - Sophons home planet (+3I)"]
["Horatio Prime - Medium Mediterranean - Horatio's home planet (+2D) (+3S)",null,"Horatio Prime - Moyenne Méditerranéene - Planète d'origine d'Horatio (+2B) (+3S)","Horatio Prime - Medium Mediterranean - Horatio's home planet (+2D) (+3S)"]
["Jenes - Medium Atoll - Lumeris home planet (no bonus)",null,"Jenes - Moyenne Atoll - Planète d'origine des Lumeris (aucun bonus)","Jenes - Medium Atoll - Lumeris home planet (no bonus)"]
["Koyasil - Medium Forest - Unfallen's home planet (no bonus)",null,"Koyasil - Moyenne Forêt - Planète d'origine des Persistants (aucun bonus)","Koyasil - Medium Forest - Unfallen's home planet (no bonus)"]
["Kyros - variable Barren (+5D) (+12S) (+10In)",null,"Kyros - variable Stérile (+5B) (+12S) (+10In)","Kyros - variable Barren (+5D) (+12S) (+10In)"]
["Nexus - variable Crescent - Umbral Choir's home crescent (no bonus)",null,"Nexus - variable Croissant - Croissant d'origine du Chœur Ombral (aucun bonus)","Nexus - variable Crescent - Umbral Choir's home crescent (no bonus)"]
["Mezan - Small Jungle / Medium Ash / Large Lava - Quest (+15In)",null,"Mezan - Petite Jungle / Moyenne Cendres / Grande Lave - Quête (+15In)","Mezan - Small Jungle / Medium Ash / Large Lava - Quest (+15In)"]
["Raia - Medium Terran - United Empire's home planet (+1I) (+2D)",null,"Raia - Moyenne Terrienne - Planète d'origine de l'United Empire (+1I) (+2B)","Raia - Medium Terran - United Empire's home planet (+1I) (+2D)"]
["Sahar - variable Arid (+1F) (+12I) (+5S) (+4In)",null,"Sahar - variable Aride (+1N) (+12I) (+5S) (+4In)","Sahar - variable Arid (+1F) (+12I) (+5S) (+4In)"]
["Sykagoja - variable Monsoon (+12F) (+7S) (+5In)",null,"Sykagoja - variable Mousson (+12N) (+7S) (+5In)","Sykagoja - variable Monsoon (+12F) (+7S) (+5In)"]
["Tchinomy - variable Tundra - Vodyani's home planet (+2I)",null,"Tchinomy - variable Toundra - Planète d'origine des Vodyani (+2I)","Tchinomy - variable Tundra - Vodyani's home planet (+2I)"]
["Teonha - variable Atoll (+2F) (+2I) (+2D) (+2S) (+15In)",null,"Teonha - variable Atoll (+2N) (+2I) (+2B) (+2S) (+15In)","Teonha - variable Atoll (+2F) (+2I) (+2D) (+2S) (+15In)"]
["Tor - variable Tundra (+2F) (+10D) (+2S) (+12In)",null,"Tor - variable Toundra (+2N) (+10B) (+2S) (+12In)","Tor - variable Tundra (+2F) (+10D) (+2S) (+12In)"]
["Uchi - Medium Jungle - Hissho's home planet (+3D) (+3S)",null,"Uchi - Moyenne Jungle - Planète d'origine des Hissho (+3B) (+3S)","Uchi - Medium Jungle - Hissho's home planet (+3D) (+3S)"]
["Veil - variable Terran (+7F) (+3I) (+8D) (+2S) (+5In)",null,"Voile - variable Terrienne (+7N) (+3I) (+8B) (+2S) (+5In)","Veil - variable Terran (+7F) (+3I) (+8D) (+2S) (+5In)"]
["Other bonus (Hissho's Mining Probes, …)                                                                                         EDIT HERE →",null," Autres bonus (Sondes minières Hissho, …)                                                                              MODIFIER ICI →","Other bonus (Hissho's Mining Probes, …)                                                                                         EDIT HERE →"]
[""]
["Majors factions",null,"Factions majeures","Majors factions"]
["Cravers (+150% FIDS on Undepleted Planets) (-10A per enslaved pop) [+1 Depletion Pt]",null,"Cravers (+150% FIDS sur Planète non épuisée) (-10A par pop. asservie) [+1 Pt d'épuisement]","Cravers (+150% FIDS on Undepleted Planets) (-10A per enslaved pop) [+1 Depletion Pt]"]
[{"$f":"IF(ISBLANK(C463),\"\",IF($G$3=1,C463,D463))","v":"Cravers (+2FIDS) (+150% FIDS on Undepleted Planets) (-10A per enslaved pop) [+1 Depletion Pt]"},null,"Cravers (+2NIBS) (+150% FIDS sur Planète non épuisée) (-10A par pop. asservie) [+1 Pt d'épuisemt]","Cravers (+2FIDS) (+150% FIDS on Undepleted Planets) (-10A per enslaved pop) [+1 Depletion Pt]"]
[{"$f":"IF(ISBLANK(C464),\"\",IF($G$3=1,C464,D464))","v":"Umbral Choir (+1S) (+1PP)"},null,"Chœur ombral (+1S) (+1BP)","Umbral Choir (+1S) (+1PP)"]
[{"$f":"IF(ISBLANK(C465),\"\",IF($G$3=1,C465,D465))","v":"Umbral Choir (+2S) (+2PP)"},null,"Chœur ombral (+2S) (+2BP)","Umbral Choir (+2S) (+2PP)"]
["Vaulters (+1S) [+25 Damage to attacker]",null,"Exilés (+1S) [+25 Dégats aux assaillants]","Vaulters (+1S) [+25 Damage to attacker]"]
[{"$f":"IF(ISBLANK(C467),\"\",IF($G$3=1,C467,D467))","v":"Vaulters (+2S) [+50 Damage to attacker]"},null,"Exilés (+2S) [+50 Dégats aux assaillants]","Vaulters (+2S) [+50 Damage to attacker]"]
["Hissho (+1I) [+1MP]",null,"Hissho (+1I) [+1MO]","Hissho (+1I) [+1MP]"]
[{"$f":"IF(ISBLANK(C469),\"\",IF($G$3=1,C469,D469))","v":"Hissho (+2I) [+2MP]"},null,"Hissho (+2I) [+2MO]","Hissho (+2I) [+2MP]"]
["Horatio (+3F) (+2A on Hot) + Genetically improved bonus                                  EDIT HERE →",null,"Horatio (+3N) (+2A sur Chaud) + bonus améliorations génétiques            MODIFIER ICI →","Horatio (+3F) (+2A on Hot) + Genetically improved bonus                                  EDIT HERE →"]
[{"$f":"IF(ISBLANK(C471),\"\",IF($G$3=1,C471,D471))","v":"Horatio (+6F) (+4A on Hot) + Genetically improved bonus                                  EDIT HERE →"},null,"Horatio (+6N) (+4A sur Chaud) + bonus améliorations génétiques            MODIFIER ICI →","Horatio (+6F) (+4A on Hot) + Genetically improved bonus                                  EDIT HERE →"]
["Lumeris (+1D) (+3D on Fertile)",null,"Lumeris (+1B) (+3B sur Fertile)","Lumeris (+1D) (+3D on Fertile)"]
[{"$f":"IF(ISBLANK(C473),\"\",IF($G$3=1,C473,D473))","v":"Lumeris (+2D) (+10D on Fertile)"},null,"Lumeris (+2B) (+10B sur Fertile)","Lumeris (+2D) (+10D on Fertile)"]
["Unfallen (+2F) (+5F on Fertile)",null,"Persistants (+2N) (+5N sur Fertile)","Unfallen (+2F) (+5F on Fertile)"]
[{"$f":"IF(ISBLANK(C475),\"\",IF($G$3=1,C475,D475))","v":"Unfallen (+4F) (+10F on Fertile)"},null,"Persistants (+4N) (+10N sur Fertile)","Unfallen (+4F) (+10F on Fertile)"]
["Riftborn (+5I) (+5D) (+5S)",null,"Peuple de la Faille (+5I) (+5B) (+5S)","Riftborn (+5I) (+5D) (+5S)"]
["Sophons (+1S) (+3S on Cold)",null,"Sophons (+1S) (+3S sur Froid)","Sophons (+1S) (+3S on Cold)"]
[{"$f":"IF(ISBLANK(C478),\"\",IF($G$3=1,C478,D478))","v":"Sophons (+2S) (+6S on Cold)"},null,"Sophons (+2S) (+6S sur Froid)","Sophons (+2S) (+6S on Cold)"]
["United Empire (+1In)",null,"United Empire (+1In)","United Empire (+1In)"]
[{"$f":"IF(ISBLANK(C480),\"\",IF($G$3=1,C480,D480))","v":"United Empire (+2In)"},null,"United Empire (+2In)","United Empire (+2In)"]
[{"$f":"IF(ISBLANK(C481),\"\",IF($G$3=1,C481,D481))","v":"United Empire → Mezari (+1S) (+0.5In)"},null,"United Empire → Mezari (+1S) (+0.5In)","United Empire → Mezari (+1S) (+0.5In)"]
[{"$f":"IF(ISBLANK(C482),\"\",IF($G$3=1,C482,D482))","v":"United Empire → Mezari (+2S) (+1In)"},null,"United Empire → Mezari (+2S) (+1In)","United Empire → Mezari (+2S) (+1In)"]
[{"$f":"IF(ISBLANK(C483),\"\",IF($G$3=1,C483,D483))","v":"United Empire → Sheredyn (+0.5In) (+20MP)"},null,"United Empire → Sheredyn (+0.5In) (+20MO)","United Empire → Sheredyn (+0.5In) (+20MP)"]
[{"$f":"IF(ISBLANK(C484),\"\",IF($G$3=1,C484,D484))","v":"United Empire → Sheredyn (+1In) (+40MP)"},null,"United Empire → Sheredyn (+1In) (+40MO)","United Empire → Sheredyn (+1In) (+40MP)"]
["Vodyani (+4F) (+4I) (+4D) (+4S) [-50% Food on System proportional to amount of this pop.]",null,"Vodyani (+4N) (+4I) (+4B) (+4S) [-50% de Nourriture sur Système selon quantité de population]","Vodyani (+4F) (+4I) (+4D) (+4S) [-50% Food on System proportional to amount of this pop.]"]
[{"$f":"IF(ISBLANK(C486),\"\",IF($G$3=1,C486,D486))","v":"Vodyani (+8F) (+8I) (+8D) (+8S) [-50% Food on System proportional to amount of this pop.]"},null,"Vodyani (+8N) (+8I) (+8B) (+8S) [-50% de Nourriture sur Système selon quantité de population]","Vodyani (+8F) (+8I) (+8D) (+8S) [-50% Food on System proportional to amount of this pop.]"]
["Minors factions",null,"Factions mineures","Minors factions"]
["Amblyr (+1I) (+2D on Sterile)",null,"Amblyrs (+1I) (+2B sur Stérile)","Amblyr (+1I) (+2D on Sterile)"]
[{"$f":"IF(ISBLANK(C489),\"\",IF($G$3=1,C489,D489))","v":"Amblyr (+2I) (+4D on Sterile)"},null,"Amblyrs (+2I) (+4B sur Stérile)","Amblyr (+2I) (+4D on Sterile)"]
["Amoeba (+5F)",null,"Amibe (+5N)","Amoeba (+5F)"]
[{"$f":"IF(ISBLANK(C491),\"\",IF($G$3=1,C491,D491))","v":"Amoeba (+10F)"},null,"Amibe (+10N)","Amoeba (+10F)"]
["Basryxo (+1I) (+2I on Sterile)",null,"Basryxo (+1I) (+2I sur Stérile)","Basryxo (+1I) (+2I on Sterile)"]
[{"$f":"IF(ISBLANK(C493),\"\",IF($G$3=1,C493,D493))","v":"Basryxo (+2I) (+4I on Sterile)"},null,"Basryxo (+2I) (+4I sur Stérile)","Basryxo (+2I) (+4I on Sterile)"]
["Bhagaba (+1In on Fertile)",null,"Bhagaba (+1In sur Fertile)","Bhagaba (+1In on Fertile)"]
[{"$f":"IF(ISBLANK(C495),\"\",IF($G$3=1,C495,D495))","v":"Bhagaba (+2In on Fertile)"},null,"Bhagaba (+2In sur Fertile)","Bhagaba (+2In on Fertile)"]
["Deuyivans (+5F on Gas) (+2S)",null,"Deuyivans (+5N sur Gaz) (+2S)","Deuyivans (+5F on Gas) (+2S)"]
["Deuyivans (+10F on Gas) (+4S)",null,"Deuyivans (+10N sur Gaz) (+4S)","Deuyivans (+10F on Gas) (+4S)"]
["Bereaved (+3S on Cold) [+20 MP capacity]",null,"Endeuillés (+3S sur Froid) [+20 capacité MO]","Bereaved (+3S on Cold) [+20 MP capacity]"]
[{"$f":"IF(ISBLANK(C499),\"\",IF($G$3=1,C499,D499))","v":"Bereaved (+6S on Cold) [+40 MP capacity]"},null,"Endeuillés (+6S sur Froid) [+40 capacité MO]","Bereaved (+6S on Cold) [+40 MP capacity]"]
["Epistis (+5F on Sterile) (+1I)",null,"Epistis (+5N sur Stérile) (+1I)","Epistis (+5F on Sterile) (+1I)"]
[{"$f":"IF(ISBLANK(C501),\"\",IF($G$3=1,C501,D501))","v":"Epistis (+10F on Sterile) (+2I)"},null,"Epistis (+10N sur Stérile) (+2I)","Epistis (+10F on Sterile) (+2I)"]
["Eyder (+1D) (+5D on Gas)",null,"Eyder (+1B) (+5B sur Gaz)","Eyder (+1D) (+5D on Gas)"]
[{"$f":"IF(ISBLANK(C503),\"\",IF($G$3=1,C503,D503))","v":"Eyder (+2D) (+10D on Gas)"},null,"Eyder (+2B) (+10B sur Gaz)","Eyder (+2D) (+10D on Gas)"]
[{"$f":"IF(ISBLANK(C504),\"\",IF($G$3=1,C504,D504))","v":"Galvran (+2S)"},null,"Galvrans (+2S)","Galvran (+2S)"]
["Galvran (+4S)",null,"Galvrans (+4S)","Galvran (+4S)"]
[{"$f":"IF(ISBLANK(C506),\"\",IF($G$3=1,C506,D506))","v":"Guardians [+200 Damage to attacker] [±20In if System's owner friendly or ennemy] [+5A on Syst.]"},null,"Gardiens [+200 Dégats aux assaillants] [±20In sur Systèmes si proprio ami ou ennemi] [+5A Syst.]","Guardians [+200 Damage to attacker] [±20In if System's owner friendly or ennemy] [+5A on Syst.]"]
["Guardian Guides [+300 Damage to at] [±30In if System's owner friendly or ennemy] [+10A on Syst.]",null,"Guides gardiens [+300 Dégats aux ass.] [±30In sur Systèmes si proprio ami ou ennemi] [+10A Syst.]","Guardian Guides [+300 Damage to at] [±30In if System's owner friendly or ennemy] [+10A on Syst.]"]
["Gnashast [+50 Damage to attacker] [+50 Damage to attacker on Fertile]",null,"Gnashasts [+50 Dégats aux assaillants] [+50 Dégats aux assaillants sur Fertile]","Gnashast [+50 Damage to attacker] [+50 Damage to attacker on Fertile]"]
[{"$f":"IF(ISBLANK(C509),\"\",IF($G$3=1,C509,D509))","v":"Gnashast [+100 Damage to attacker] [+100 Damage to attacker on Fertile]"},null,"Gnashasts [+100 Dégats aux assaillants] [+100 Dégats aux assaillants sur Fertile]","Gnashast [+100 Damage to attacker] [+100 Damage to attacker on Fertile]"]
["Harmony (+2F on Strategic ressource deposit) (+2S on Strategic ressource deposit)",null,"Harmonie (+2N avec Gisement stratégique) (+2S avec Gisement stratégique)","Harmony (+2F on Strategic ressource deposit) (+2S on Strategic ressource deposit)"]
[{"$f":"IF(ISBLANK(C511),\"\",IF($G$3=1,C511,D511))","v":"Harmony (+4F on Strategic ressource deposit) (+4S on Strategic ressource deposit)"},null,"Harmonie (+4N avec Gisement stratégique) (+4S avec Gisement stratégique)","Harmony (+4F on Strategic ressource deposit) (+4S on Strategic ressource deposit)"]
["Haroshems (+1F) (+3F on Sterile)",null,"Haroshem (+1N) (+3N sur Stérile)","Haroshems (+1F) (+3F on Sterile)"]
[{"$f":"IF(ISBLANK(C513),\"\",IF($G$3=1,C513,D513))","v":"Haroshems (+2F) (+6F on Sterile)"},null,"Haroshem (+2N) (+6N sur Stérile)","Haroshems (+2F) (+6F on Sterile)"]
["Illo (+1In on Hot)",null,"Illo (+1In sur Chaud)","Illo (+1In on Hot)"]
[{"$f":"IF(ISBLANK(C515),\"\",IF($G$3=1,C515,D515))","v":"Illo (+2In on Hot)"},null,"Illo (+2In sur Chaud)","Illo (+2In on Hot)"]
["Kalgeros (+2A) (+4A on Fertile)",null,"Kalgeros (+2A) (+4A sur Fertile)","Kalgeros (+2A) (+4A on Fertile)"]
[{"$f":"IF(ISBLANK(C517),\"\",IF($G$3=1,C517,D517))","v":"Kalgeros (+4A) (+8A on Fertile)"},null,"Kalgeros (+4A) (+8A sur Fertile)","Kalgeros (+4A) (+8A on Fertile)"]
[{"$f":"IF(ISBLANK(C518),\"\",IF($G$3=1,C518,D518))","v":"Kalmat (+1PP) (+1PP on Small)"},null,"Kalmat (+1BP) (+1BP sur Petite)","Kalmat (+1PP) (+1PP on Small)"]
[{"$f":"IF(ISBLANK(C519),\"\",IF($G$3=1,C519,D519))","v":"Kalmat (+2PP) (+2PP on Small)"},null,"Kalmat (+2BP) (+2BP sur Petite)","Kalmat (+2PP) (+2PP on Small)"]
["Kal'Tik'Ma (+2A) (+3A on Sterile)",null,"Kal'Tik'Ma (+2A) (+3A sur Stérile)","Kal'Tik'Ma (+2A) (+3A on Sterile)"]
[{"$f":"IF(ISBLANK(C521),\"\",IF($G$3=1,C521,D521))","v":"Kal'Tik'Ma (+4A) (+6A on Sterile)"},null,"Kal'Tik'Ma (+4A) (+6A sur Stérile)","Kal'Tik'Ma (+4A) (+6A on Sterile)"]
[{"$f":"IF(ISBLANK(C522),\"\",IF($G$3=1,C522,D522))","v":"Sisters of Mercy (+2A) [+25 Damage to attacker]"},null,"Les Sœurs de la Miséricorde (+2A) [+25 Dégats aux assaillants]","Sisters of Mercy (+2A) [+25 Damage to attacker]"]
[{"$f":"IF(ISBLANK(C523),\"\",IF($G$3=1,C523,D523))","v":"Sisters of Mercy (+4A) [+50 Damage to attacker]"},null,"Les Sœurs de la Miséricorde (+4A) [+50 Dégats aux assaillants]","Sisters of Mercy (+4A) [+50 Damage to attacker]"]
["Mavros (+1I) (+2I on Hot)",null,"Mavros (+1I) (+2I sur Chaud)","Mavros (+1I) (+2I on Hot)"]
[{"$f":"IF(ISBLANK(C525),\"\",IF($G$3=1,C525,D525))","v":"Mavros (+2I) (+4I on Hot)"},null,"Mavros (+2I) (+4I sur Chaud)","Mavros (+2I) (+4I on Hot)"]
["Niris (+2F) (+3F on Fertile)",null,"Niris (+2N) (+3N sur Fertile)","Niris (+2F) (+3F on Fertile)"]
[{"$f":"IF(ISBLANK(C527),\"\",IF($G$3=1,C527,D527))","v":"Niris (+4F) (+6F on Fertile)"},null,"Niris (+4N) (+6N sur Fertile)","Niris (+4F) (+6F on Fertile)"]
[{"$f":"IF(ISBLANK(C528),\"\",IF($G$3=1,C528,D528))","v":"Umbral Shadow (+2S) (2x planet FIDSI exploited) (+2PP) (+PP from ex-Sleeper)"},null,"Ombre ombrale (+2S) (2 x NIBSI planétaires exploitées) (+2BP) (+2BP d'ex-inflitré)","Umbral Shadow (+2S) (2x planet FIDSI exploited) (+2PP) (+PP from ex-Sleeper)"]
[{"$f":"IF(ISBLANK(C529),\"\",IF($G$3=1,C529,D529))","v":"Umbral Shadow (+3S) (2x planet FIDSI exploited) (+3PP) (+PP from ex-Sleeper)"},null,"Ombre ombrale (+3S) (2 x NIBSI planétaires exploitées) (+3BP) (+2BP d'ex-inflitré)","Umbral Shadow (+3S) (2x planet FIDSI exploited) (+3PP) (+PP from ex-Sleeper)"]
["Foundlings (+3S)",null,"Orphelins (+3S)","Foundlings (+3S)"]
[{"$f":"IF(ISBLANK(C531),\"\",IF($G$3=1,C531,D531))","v":"Foundlings (+6S)"},null,"Orphelins (+6S)","Foundlings (+6S)"]
["Pilgrims (+2S) (+3S on Anomaly)",null,"Pèlerins (+2S) (+3S avec Anomalie)","Pilgrims (+2S) (+3S on Anomaly)"]
[{"$f":"IF(ISBLANK(C533),\"\",IF($G$3=1,C533,D533))","v":"Pilgrims (+4S) (+6S on Anomaly)"},null,"Pèlerins (+4S) (+6S avec Anomalie)","Pilgrims (+4S) (+6S on Anomaly)"]
["Pulsos (+1I) (+5S on Anomaly)",null,"Pulsos (+1I) (+5S avec Anomalie)","Pulsos (+1I) (+5S on Anomaly)"]
[{"$f":"IF(ISBLANK(C535),\"\",IF($G$3=1,C535,D535))","v":"Pulsos (+2I) (+10S on Anomaly)"},null,"Pulsos (+2I) (+10S avec Anomalie)","Pulsos (+2I) (+10S on Anomaly)"]
["Sefaloros (+1I) (+2I on Fertile)",null,"Sefaloros (+1I) (+2I sur Fertile)","Sefaloros (+1I) (+2I on Fertile)"]
[{"$f":"IF(ISBLANK(C537),\"\",IF($G$3=1,C537,D537))","v":"Sefaloros (+2I) (+4I on Fertile)"},null,"Sefaloros (+2I) (+4I sur Fertile)","Sefaloros (+2I) (+4I on Fertile)"]
["Sheredyn (+0.5In) [+20 MP capacity]",null,"Sheredyn (+0.5In) [+20 capacité MO]","Sheredyn (+0.5In) [+20 MP capacity]"]
["Sowers (+2F) [-0.5 Pt Depletion Points per turn]",null,"Sowers (+2N) [-0.5 Pt d'épuisement par tour]","Sowers (+2F) [-0.5 Pt Depletion Points per turn]"]
[{"$f":"IF(ISBLANK(C540),\"\",IF($G$3=1,C540,D540))","v":"Sowers (+4F) [-1 Pt Depletion Points per turn]"},null,"Sowers (+4N) [-1 Pt d'épuisement par tour]","Sowers (+4F) [-1 Pt Depletion Points per turn]"]
["Tikanan [+5MP] [+5MP on Fertile]",null,"Tikanans [+5MO] [+5MO sur Fertile]","Tikanan [+5MP] [+5MP on Fertile]"]
[{"$f":"IF(ISBLANK(C542),\"\",IF($G$3=1,C542,D542))","v":"Tikanan [+10MP] [+10MP on Fertile]"},null,"Tikanans [+10MO] [+10MO sur Fertile]","Tikanan [+10MP] [+10MP on Fertile]"]
["Remnant (+1I) (+2D on Happy)",null,"Vestiges (+1I) (+2B sur Heureux)","Remnant (+1I) (+2D on Happy)"]
[{"$f":"IF(ISBLANK(C544),\"\",IF($G$3=1,C544,D544))","v":"Remnant (+2I) (+4D on Happy)"},null,"Vestiges (+2I) (+4B sur Heureux)","Remnant (+2I) (+4D on Happy)"]
["Yuusho [+20 MP capacity] [+30 MP capacity on Sterile]",null,"Yuusho [+20 capacité MO] [+30 capacité MO sur Stérile]","Yuusho [+20 MP capacity] [+30 MP capacity on Sterile]"]
[{"$f":"IF(ISBLANK(C546),\"\",IF($G$3=1,C546,D546))","v":"Yuusho [+60 MP capacity] [+40 MP capacity on Sterile]"},null,"Yuusho [+40 capacité MO] [+60 capacité MO sur Stérile]","Yuusho [+60 MP capacity] [+40 MP capacity on Sterile]"]
["Z'Vali (+3S on Happy) (+2A)",null,"Z'Vali (+3S sur Heureux) (+2A)","Z'Vali (+3S on Happy) (+2A)"]
[{"$f":"IF(ISBLANK(C548),\"\",IF($G$3=1,C548,D548))","v":"Z'Vali (+6S on Happy) (+4A)"},null,"Z'Vali (+6S sur Heureux) (+4A)","Z'Vali (+6S on Happy) (+4A)"]
["Special bonus Horatio population genetically modified",null,"Bonus spécial population Horatio génétiquement modifiée","Special bonus Horatio population genetically modified"]
["← Very special bonus !",null,"← Bonus très spécial !","← Very special bonus !"]
["! Horatio not original population !",null,"! Horatio non autotochne !","! Horatio not original population !"]
[{"$f":"IF(ISBLANK(C552),\"\",IF($G$3=1,C552,D552))","v":"Amblyr (+1I) (+1D)"},null,"Amblyrs (+1I) (+1B)","Amblyr (+1I) (+1D)"]
["Amoeba (+3F)",null,"Amibe (+3N)","Amoeba (+3F)"]
[{"$f":"IF(ISBLANK(C554),\"\",IF($G$3=1,C554,D554))","v":"Basryxo (+3I)"},null,"Basryxo (+3I)","Basryxo (+3I)"]
["Bhagaba (+1In)",null,"Bhagaba (+1In)","Bhagaba (+1In)"]
[{"$f":"IF(ISBLANK(C556),\"\",IF($G$3=1,C556,D556))","v":"Umbral Choir (+1S) (+1PP)"},null,"Chœur ombral (+1S) (+1BP)","Umbral Choir (+1S) (+1PP)"]
["Cravers (+5% FIDS)",null,"Cravers (+5% NIBS)","Cravers (+5% FIDS)"]
["Deuyivans (+1F) (+2S)",null,"Deuyivans (+1N) (+2S)","Deuyivans (+1F) (+2S)"]
["Bereaved (+1S) [+20 MP capacity]",null,"Endeuillés (+1S) [+20 capacité MO]","Bereaved (+1S) [+20 MP capacity]"]
["Epistis (+1F) (+2I)",null,"Epistis (+1N) (+2I)","Epistis (+1F) (+2I)"]
["Vaulters (+1S) [+10 Damage to attacker]",null,"Exilés (+1S) [+10 Dégats aux assaillants]","Vaulters (+1S) [+10 Damage to attacker]"]
["Eyder (+2D)",null,"Eyders (+2B)","Eyder (+2D)"]
["Galvran (+2S)",null,"Galvrans (+2S)","Galvran (+2S)"]
["Gnashast [+50 Damage to attacker]",null,"Gnashasts [+50 Dégats aux assaillants]","Gnashast [+50 Damage to attacker]"]
["Harmony (+2F) (+2S)",null,"Harmonie (+2N) (+2S)","Harmony (+2F) (+2S)"]
["Haroshems (+3F)",null,"Haroshems (+3N)","Haroshems (+3F)"]
["Hissho (+2I) [+1MP]",null,"Hissho (+2I) [+1MO]","Hissho (+2I) [+1MP]"]
["Illo (+1In)",null,"Illo (+1In)","Illo (+1In)"]
["Kalgeros (+3A)",null,"Kalgeros (+3A)","Kalgeros (+3A)"]
[{"$f":"IF(ISBLANK(C570),\"\",IF($G$3=1,C570,D570))","v":"Kalmat (+1PP)"},null,"Kalmat (+1BP)","Kalmat (+1PP)"]
["Kal'Tik'Ma (+3A)",null,"Kal'Tik'Ma (+3A)","Kal'Tik'Ma (+3A)"]
[{"$f":"IF(ISBLANK(C572),\"\",IF($G$3=1,C572,D572))","v":"Sisters of Mercy (+2A) [+10 Damage to attacker]"},null,"Les Sœurs de la Miséricorde (+2A) [+10 Dégats aux assaillants]","Sisters of Mercy (+2A) [+10 Damage to attacker]"]
["Lumeris (+2D)",null,"Lumeris (+2B)","Lumeris (+2D)"]
["Mavros (+3I)",null,"Mavros (+3I)","Mavros (+3I)"]
[{"$f":"IF(ISBLANK(C575),\"\",IF($G$3=1,C575,D575))","v":"Mezari (+1S) (+0.5In)"},null,"Mezari (+1S) (+0.5In)","Mezari (+1S) (+0.5In)"]
["Niris (+2F)",null,"Niris (+2N)","Niris (+2F)"]
["Foundlings (+2S)",null,"Orphelins (+2S)","Foundlings (+2S)"]
["Pilgrims (+3S)",null,"Pèlerins (+3S)","Pilgrims (+3S)"]
["Unfallen (+2F)",null,"Persistants (+2N)","Unfallen (+2F)"]
["Riftborn (+2I) (+2D) (+2S)",null,"Peuple de la Faille (+2I) (+2B) (+2S)","Riftborn (+2I) (+2D) (+2S)"]
["Pulsos (+2I) (+1S)",null,"Pulsos (+2I) (+1S)","Pulsos (+2I) (+1S)"]
["Sefaloros (+3I)",null,"Sefaloros (+3I)","Sefaloros (+3I)"]
["Sheredyn (+0.5In) [+10 MP capacity]",null,"Sheredyn (+0.5In) [+10 capacité MO]","Sheredyn (+0.5In) [+10 MP capacity]"]
["Sophons (+2S)",null,"Sophons (+2S)","Sophons (+2S)"]
["Sowers (+1F) [-0.5 Pt Depletion Points per turn]",null,"Sowers (+1N) [-0.5 Pt d'épuisement par tour]","Sowers (+1F) [-0.5 Pt Depletion Points per turn]"]
["Tikanan [+5MP]",null,"Tikanans [+5MO]","Tikanan [+5MP]"]
["Imperials (+1In)",null,"United Empire (+1In)","Imperials (+1In)"]
["Remnant (+2I) (+1D)",null,"Vestiges (+2I) (+1B)","Remnant (+2I) (+1D)"]
["Vodyani (+2F) (+2I) (+2D) (+2S)",null,"Vodyani (+2N) (+2I) (+2B) (+2S)","Vodyani (+2F) (+2I) (+2D) (+2S)"]
["Yuusho [+15 MP capacity]",null,"Yuusho [+15 capacité MO]","Yuusho [+15 MP capacity]"]
["Z'Vali (+1S) (+2A)",null,"Z'Vali (+1S) (+2A)","Z'Vali (+1S) (+2A)"]
[{"$f":"IF(ISBLANK(C592),\"\",IF($G$3=1,C592,D592))","v":"Total (with +3F) →"},null,"Total (avec +3N) →","Total (with +3F) →"]
[""]
[{"$f":"IF(ISBLANK(C594),\"\",IF($G$3=1,C594,D594))","v":""}]
[{"$f":"IF(ISBLANK(C595),\"\",IF($G$3=1,C595,D595))","v":""}]
["Difficulty",null,"Difficulté","Difficulty"]
["Raw FIDSI on Planet",null,"NIBSI brute sur Planète","Raw FIDSI on Planet"]
["Raw Prestige on Planet",null,"Prestige brut sur Planète","Raw Prestige on Planet"]
["Approval",null,"Approbation","Approval"]
["Over colonization threshold",null,"Seuil de sur-colonization","Over colonization threshold"]
["Over colonization penalty",null,"Pénalité de sur-colonization","Over colonization penalty"]
["Over population penalty",null,"Pénalité de sur-population","Over population penalty"]
["System Upkeep",null,"Coût d'entretien système","System Upkeep"]
["Garrison Upkeep",null,"Coût d'entretien flotte","Garrison Upkeep"]
["Hero Upkeep",null,"Coût d'entretien Héros","Hero Upkeep"]
["Net Minor Stress",null,"Net Minor Stress","Net Minor Stress"]
["Description",null,"Description","Description"]
[""]
[""]
["Sandbox",null,"Bac à sable","Sandbox"]
["Easy",null,"Facile","Easy"]
["Normal",null,"Normale","Normal"]
["Hard",null,"Difficile","Hard"]
["Serious",null,"Sérieuse","Serious"]
["Impossible",null,"Impossible","Impossible"]
["Endless",null,"Endless","Endless"]
[""]
[""]
["AI difficulty",null,"Difficulté IA","AI difficulty"]
["Simplified\nBattle Damage Multiplier",null,"Simplified\nBattle Damage Multiplier","Simplified\nBattle Damage Multiplier"]
["Maximum Juggernauts",null,"Mastodonte maximum","Maximum Juggernauts"]
["Essence bonus (Vodyani)\nA=Arch count\nS=Leeching fleets count",null,"Bonus sur l'Essence (Vodyani)\nA = nombre d'Arches\nS = nombre de Sangsues","Essence bonus (Vodyani)\nA=Arch count\nS=Leeching fleets count"]
["Keii Hissho\nNO=Not Overcolonized",null,"Keii Hissho\nNSC = non sur-colonisé","Keii Hissho\nNO=Not Overcolonized"]
["+1  and  +1 if NO",null,"+1  et  +1 si NSC","+1  and  +1 if NO"]
["+2  and  +2 if NO",null,"+2  et  +2 si NSC","+2  and  +2 if NO"]
["Hacking Speed Percent Multiplier",null,"Accélération de la vitesse de Hack","Hacking Speed Percent Multiplier"]
["Maximum Empire Processing Power Stock",null,"Niveau de Bande Passante maximum","Maximum Empire Processing Power Stock"]
["Used?",null,"Utilisé ?","Used?"]
["TO CONFIRM",null,"A CONFIRMER","TO CONFIRM"]
[""]
[""]
["An AI that allows you to play freely.",null,"Une IA qui vous permet de jouer librement.","An AI that allows you to play freely."]
["It's like you have guns, and they have sticks.",null,"Comme si vous aviez des canons, et eux des bâtons.","It's like you have guns, and they have sticks."]
[{"$f":"IF(ISBLANK(C634),\"\",IF($G$3=1,C634,D634))","v":"It’s like you have guns, and they have guns."},null,"Comme si vous aviez des canons, et eux aussi.","It’s like you have guns, and they have guns."]
["It’s like you have guns, and they have better guns.",null,"Comme si vous aviez des canons, et eux de meilleurs canons.","It’s like you have guns, and they have better guns."]
["It’s like you have guns, and they have tanks.",null,"Comme si vous aviez des canons, et eux des tanks.","It’s like you have guns, and they have tanks."]
["It’s like you have guns, and they have nuclear weapons systems that can track your biometrics.",null,"C'est comme si vous aviez des canons, et eux des armes nucléaires qui détectent vos signes vitaux.","It’s like you have guns, and they have nuclear weapons systems that can track your biometrics."]
["You shall not pass!",null,"Vous ne passerez pas !","You shall not pass!"]
[""]
[""]
["Minor faction difficulty",null,"Difficulté faction mineure","Minor faction difficulty"]
["Relation Points Trend",null,"Tendance points de relation","Relation Points Trend"]
["Relation Points Base Value",null,"Points de relation de départ","Relation Points Base Value"]
["Stress",null,"Stress","Stress"]
["Troop Health Bonuses",null,"Bonus point de vie troupe au sol","Troop Health Bonuses"]
[""]
[""]
["Pirates AI difficulty",null,"Difficulté IA pirates","Pirates AI difficulty"]
["Difficulty multiplier",null,"Multiplicateur de difficulté","Difficulty multiplier"]
["Maximum Pirate fleet count",null,"Nombre maximum de vaisseau","Maximum Pirate fleet count"]
["Net Trace Operation Progress",null,"Progression vitesse de traçage","Net Trace Operation Progress"]
[""]
["Assimilation: Haroshems",null,"Assimilation : Haroshems","Assimilation: Haroshems"]
["Assimilation: Deuyivans",null,"Assimilation : Deuyivans","Assimilation: Deuyivans"]
["Assimilation: Sowers",null,"Assimilation : Sowers","Assimilation: Sowers"]
[""]
["Cravers specific enhancement!",null,"Amélioration spécifique Cravers !","Cravers specific enhancement!"]
["Umbral Choir specific enhancement!",null,"Amélioration spécifique Chœur ombral !","Umbral Choir specific enhancement!"]
["Vaulters specific enhancement!",null,"Amélioration spécifique Exilés !","Vaulters specific enhancement!"]
["Hissho specific enhancement!",null,"Amélioration spécifique Hissho !","Hissho specific enhancement!"]
["Horatio specific enhancement!",null,"Amélioration spécifique Horatio !","Horatio specific enhancement!"]
["Lumeris specific enhancement!",null,"Amélioration spécifique Lumeris !","Lumeris specific enhancement!"]
["Unfallen specific enhancement!",null,"Amélioration spécifique Persistants !","Unfallen specific enhancement!"]
["Riftborn specific enhancement!",null,"Amélioration spécifique Peuple de la Faille !","Riftborn specific enhancement!"]
["Sophons specific enhancement!",null,"Amélioration spécifique Sophons !","Sophons specific enhancement!"]
["United Empire specific enhancement!",null,"Amélioration spécifique United Empire !","United Empire specific enhancement!"]
["Vodyani specific enhancement!",null,"Amélioration spécifique Vodyani !","Vodyani specific enhancement!"]
[""]
["Several Obelisks possible with Umbral Choir",null,"Plusieurs Obélisques possibles avec les Chœur ombral","Several Obelisks possible with Umbral Choir"]
[""]
["Anomaly not present on Crescents",null,"Anomalie non présente sur les Croissants","Anomaly not present on Crescents"]
["Anomaly only present on Crescents",null,"Anomalie présente uniquement sur les Croissants","Anomaly only present on Crescents"]

{"sheet":"MAP","index":5,"n_rows":0,"n_cols":0,"rows_kept":0,"cut":false,"hidden":false,"merged":[]}

{"sheet":"Sources","index":6,"n_rows":19,"n_cols":3,"rows_kept":19,"cut":false,"hidden":false,"merged":[]}
["Source","Notes","Fichier(s)"]
["! Jeux",null,"E:\\Steam\\steamapps\\common\\Endless Space 2\\Public"]
["Amélioration planète",null,"E:\\Steam\\steamapps\\common\\Endless Space 2\\Public\\Simulation\\SimulationDescriptors[StarSystemImprovement].xml"]
["Améliorations empire",null,"E:\\Steam\\steamapps\\common\\Endless Space 2\\Public\\Simulation\\SimulationDescriptors[EmpireImprovements].xml"]
["Anomalies",null,"E:\\Steam\\steamapps\\common\\Endless Space 2\\Public\\Simulation\\SimulationDescriptors[Planet].xml"]
["ClassColonizedPlanet",null,"E:\\Steam\\steamapps\\common\\Endless Space 2\\Public\\Simulation\\SimulationDescriptors[ColonizedPlanet].xml"]
["Compétences Héros",null,"E:\\Steam\\steamapps\\common\\Endless Space 2\\Public\\Simulation\\HeroSkillDefinitions.xml\nE:\\Steam\\steamapps\\common\\Endless Space 2\\Public\\Simulation\\SimulationDescriptors[HeroSkill].xml"]
["Difficultés",null,"E:\\Steam\\steamapps\\common\\Endless Space 2\\Public\\Simulation\\SimulationDescriptors[GameDifficulty].xml"]
["Inutilisé ?","Population / planète / rang ?","E:\\Steam\\steamapps\\common\\Endless Space 2\\Public\\GalaxyGenerator\\PlanetPopulationCapacityGroupDefinitions.xml"]
["Lois",null,"E:\\Steam\\steamapps\\common\\Endless Space 2\\Public\\Simulation\\LawDefinitions.xml\nE:\\Steam\\steamapps\\common\\Endless Space 2\\Public\\Simulation\\PoliticsDefinitions.xml\nE:\\Steam\\steamapps\\common\\Endless Space 2\\Public\\Simulation\\SimulationDescriptors[LawEffect].xml"]
["Planètes","Ressources FIDSI + population par défaut\nCroissants DLC3","E:\\Steam\\steamapps\\common\\Endless Space 2\\Public\\Simulation\\SimulationDescriptors[Planet].xml\nE:\\Steam\\steamapps\\common\\Endless Space 2\\Public\\Simulation\\SimulationDescriptors[Planet_DLC3].xml"]
["Planètes type","Température (chaud / froid / tempéré)\nTerre (fertile / stérile / gaz) …","E:\\Steam\\steamapps\\common\\Endless Space 2\\Public\\GalaxyGenerator\\PlanetGameplayTypeDefinitions.xml"]
["Empires - Avantages","Enumération des traits\nTraits de caractéristiques des empires","E:\\Steam\\steamapps\\common\\Endless Space 2\\Public\\Simulation\\Factions[Major].xml\nE:\\Steam\\steamapps\\common\\Endless Space 2\\Public\\Simulation\\SimulationDescriptors[FactionTrait].xml"]
["Probabilité taille planète par type",null,"E:\\Steam\\steamapps\\common\\Endless Space 2\\Public\\GalaxyGenerator\\WeightTableDefinitions.xml"]
["Terraformation & coût",null,"E:\\Steam\\steamapps\\common\\Endless Space 2\\Public\\Simulation\\ConstructibleElement_Industry[Terraformation].xml\nE:\\Steam\\steamapps\\common\\Endless Space 2\\Public\\Simulation\\ConstructibleElement_Industry[Terraformation_DLC3].xml"]
["Populations","Caractéristiques pop. + boost ressources\nListe des bonus sur pop.\nDétails des bonus sur pop.\nBonus sur cumul de population","E:\\Steam\\steamapps\\common\\Endless Space 2\\Public\\Simulation\\PopulationDefinitions[DLC2].xml\nE:\\Steam\\steamapps\\common\\Endless Space 2\\Public\\Simulation\\PopulationModifiersTraits.xml\nE:\\Steam\\steamapps\\common\\Endless Space 2\\Public\\Simulation\\SimulationDescriptors[Population].xml\nE:\\Steam\\steamapps\\common\\Endless Space 2\\Public\\Simulation\\SimulationDescriptors[PopulationCollectionBonus].xml"]
["Curiosité (Anomalies DLC2)","Bonus sur planète","E:\\Steam\\steamapps\\common\\Endless Space 2\\Public\\Simulation\\SimulationDescriptors[Anomaly_DLC2].xml"]
["Planète épuisée (-50% NIBSI)\nEsclavagisme","Ligne 738. -50% mais pas sur population\nEsclave = +100% NIBS (bonus planète + pop.)","E:\\Steam\\steamapps\\common\\Endless Space 2\\Public\\Simulation\\SimulationDescriptors[Planet].xml"]
["Planètes uniques",null,"E:\\Steam\\steamapps\\common\\Endless Space 2\\Public\\Simulation\\SimulationDescriptors[UniquePlanet].xml\nE:\\Steam\\steamapps\\common\\Endless Space 2\\Public\\Simulation\\SimulationDescriptors[UniquePlanet_DLC2].xml\nE:\\Steam\\steamapps\\common\\Endless Space 2\\Public\\Simulation\\SimulationDescriptors[UniquePlanet_DLC3].xml\nE:\\Steam\\steamapps\\common\\Endless Space 2\\Public\\Simulation\\SimulationDescriptors[UniquePlanet_Update12].xml\nE:\\Steam\\steamapps\\common\\Endless Space 2\\Public\\GalaxyGenerator\\WeightTableDefinitions.xml"]

{"sheet":"Infos diverses & Notes","index":7,"n_rows":87,"n_cols":4,"rows_kept":87,"cut":false,"hidden":false,"merged":[]}
[null,"Gisements luxes",null,"Population majeure ou Autotochne"]
[null,null,null,"La population principale de l'empire (ex: Les Exilés si on joue avec les Exilés)"]
[1,"Luxe - Amianthoïdes (x2 dégats infligés aux assaillants au sol)"]
[2,"Arbres brumilicieux (+60D sur système)"]
[3,"Artefacts virtuels (+100% cap MO + 5% MO par niveau du système)",null,"A faire"]
[4,"Bourgeons de Brume (+100% valeur commerciale)"]
[5,"Cités perdus (artefacts N-P) (+2App pp)"]
[6,"Cyrstal Ionique (+4S pp)"]
[7,"Eau-de-Brume (+15%D par niveau du syst.)"]
[8,"Encens d'Eden (+30In sur système)"]
[9,"Fonderie Endless (Artefact C)  (+15%I par niveau du système)"]
[10,"Gemmes benthiques (-50% de sur-colonisation sur systèmes)"]
[11,"Giga Lacis (+2In pp)"]
[12,"Hydromiel (+4F pp)"]
[13,"Jadonyx (+60I sur système)",null,"Bande Passante = BP   --> Processing Power = PP"]
[14,"Mercurite (+15%F par niveau du syst.)"]
[15,"Méta-entactogène (+15%In par niveau du syst.)",null,"Heros Cravers"]
[16,"Moisi bleau (+60S sur syst.)",null,"Dévoration Endless +2FIDSI"]
[17,"Mousseline (+100% valeur commerciale en In)",null,"+200% FIDSI sur planète non épuisé"]
[18,"Paillettes noires (+200 capacité MO + 10 MO sur système)"]
[19,"Pierre-de-Vide (+4I par popultation)",null,"The Cravers hero skill \"Endless Consumption\" will now also grant +2 FIDSI to planet FIDS base"]
[20,"Proto-orchidée (+4D pp)",null,"Increase Cravers hero skill \"Endless Consumption\" yields from +50% to +200% FIDS on undepleted planets"]
[21,"Proto-spores (+15%S sur système)"]
[22,"Sanguine (+60F sur syst.)"]
[23,"Super-patates (+15% réduction d'achat de vaisseau et construction)"]
[24,"Transliane (+15A sur système)"]
[]
[]
[]
[null,"Anomalies"]
[]
[1,"Anomalie positive - Jardin d'Éden (+1F) (+1I) (+1D) (+1S) (+2A) (+1P)"]
[2,"Anomalie positive - Ruines de Brume (+3D) (+2A)"]
[3,"Anomalie positive - Autotochnes accueillants (+1F) (+2A) (+1P)"]
[4,"Anomalie positive - Sol riche (+3F)"]
[5,"Anomalie positive - Richesse minérale (+3I)"]
[6,"Anomalie positive - Vie hadopélagique (+1F) (+2S)"]
[7,"Anomalie positive - Anneaux d'Antonov (+2D) (+1S)"]
[8,"Anomalie positive - Anneaux de Huygens (+1D) (+2S)"]
[9,"Anomalie positive - Planète creuse (+1D) (+1S) (+1P)"]
[10,"Anomalie mixte - Glace 10 (-2F) (+2S) (-2A)"]
[11,"Anomalie négative - Mousson permanente (-2F) (-2I) (-2A)"]
[12,"Anomalie mixte - Eaux riches en métaux (-1F) (+1I) (-2A)"]
[13,"Anomalie mixte - Aurores boréales (+2D) (-2S) ( +1A)"]
[14,"Anomalie positive - Atmosphère dense (+2F)"]
[15,"Anomalie mixte - Air psychoactif (+1D) (-1S) (+1A)"]
[16,"Anomalie mixte - Activité géothermique (+1I) (1S)"]
[17,"Anomalie mixte - Activité sismique (-1D) (+1S) (-2A)"]
[18,"Anomalie négative - Longue saison (-1F) (-1D)"]
[19,"Anomalie mixte - Frappes de météorites (+1I) (-1S) (-2A)"]
[20,"Anomalie négative - Tempêtes polaires (-1F) (-1I) (-2A)"]
[21,"Anomalie négative - Champ magnétique fort (-1I) (-1S) (-2A)"]
[22,"Anomalie négative - Syndrome de Kessler (-1I) (-1D) (-2S)"]
[23,"Anomalie négative - Pluie acide (-2I) (-4A)"]
[24,"Anomalie négative - Irradiation / Irradié (-1F) (-1S) (-4A)"]
[25,"Anomalie lune - Une lune (+1P) → Une seule lune (+1P) / Lune explorée (+1I) (+1P)"]
[26,"Anomalie lune - Lunes binaires (+1P) → Lunes binaires (+1P) / Lunes explorées (+1I) (+2P)"]
[27,"Anomalie lune - Plusieurs lunes (+1P) → Lunes multiples (+1P) / Lunes explorées (+2I) (+2P)"]
[28,"Anomalie mixte - Faune hostile / docile (+1F)(-1S) (-2A)"]
[29,"Anomalie positive - Ruines antiques (+4D)"]
[30,"Anomalie positive - Monde à Brume (+2D) (+2S)"]
[31,"Anomalie positive - Récifs de corail (+2F) (+2A)"]
[32,"Anomalie positive - Flore cybernétique (+1F) (+2S) (+1A)"]
[33,"Anomalie positive - Fossiles étranges (+2I +1D)"]
[34,"Anomalie positive - Micro-Usines (+3F) (+1A)"]
[35,"Anomalie positive - Flore mutante (+2F) (+2A)"]
[36,"Anomalie positive - Gravité faible (+2I) (+2A)"]
[37,"Anomalie positive - Cités désertes (+2I) (+1D) (+2S)"]
[38,"Anomalie positive - Sources en fusion (+3I) (+2D)"]
[39,"Anomalie mixte - Croûte brisée / Croûte traversée (-1I) (+2D) (-2A)"]
[40,"Anomalie positive - Volcan de Komatiite (+4I)"]
[41,"Anomalie positive - Saisons fertiles (+2F) (+1A)"]
[42,"Anomalie positive - Humeris Insidentes (+4S)"]
[43,"Anomalie négative - Sol pauvre / Terre arrable (-3F) (-2A)"]
[44,"Anomalie négative - Gravité élevée / Gravité acceptable (-2I) (-1S) (-2A)"]
[45,"Anomalie positive - Chant du mastodonte (+5D) (+3A)"]
[46,"Anomalie positive - Monde parlant (+2In) (+2A)"]
[47,"Anomalie positive - Terrible symétrie (+5S) (+3A)"]
["48U","Anomalie positive - Plasmasphère à haute énergie (+1I) (+2S)"]
["A1","Anomalie positive - Enveloppe de connaissance (+5S)"]
["A2","Anomalie positive - Sanctuaire de Spotora (+2D) (+3S)"]
["B1","Anomalie positive - Nébuleuse de Brume (+2D)"]
["B2","Anomalie positive - Le pont des Dix-Sept Mille îles (+1T) (+2P)"]
["B3","Anomalie positive - Les Jardins effondrés (+2I)"]
["B4","Anomalie positive - La Plateforme d'Ys (+2P)"]
["B5","Anomalie positive - L'arbre des mondes (+2F) (+6I)"]
["B6","Anomalie positive - Portails tunneliers (Pas de pénalité de blocus) (+1 Valeur commerciale)"]